Workbook

Sheet Overview_install_situations
B2: Choose your installation situation:
B4: Corner shower | H4: Recess shower | L4: U-shower
B6: Corner shower with 1 sliding sash | D6: Corner shower with 2 sliding sashes and corner entry | F6: Corner shower with 2 sliding sashes on one side | H6: Recess shower with 1 sliding sash | J6: Recess shower with 2 sliding sashes | L6: U-shower with 1 sliding sash, door at the front | N6: U-shower with 1 sliding sash, door at the side | P6: U-shower with 2 sliding sashes and corner entry
B18: Choose | D18: Choose | F18: Choose | H18: Choose | J18: Choose | L18: Choose | N18: Choose | P18: Choose
B21: Please contact us for divergent installation situations! Extension solutions to or on bathtubs are also possible.

Sheet corner_1_sash
B1: Aquant 40: corner shower with 1 sliding sash
B4: Drawings
B29: User input | H29: Legend & Formulas
I30: Legend W1 = System width of side 1 W2 = System width of side 2 H = System height LS1 = Length of track profile/cover profile 1 LS2 = Length of track profile/cover profile 2 LWt = Clearance with open door WS1 = Glass width of sliding sash 1 with handle WSZ = Additional width of sliding sash for handle HS1 = Glass height of sliding sash 1 WF1 = Glass width of fixed sash 1 WF2 = Glass width of fixed sash 2 WFA = Allowance for fixed sash for wall attachment WFZ1 = Additional width of fixed sash 1 HF1 = Glass height of fixed sash 1 HF2 = Glass height of fixed sash 2 UF = Overlap between sliding sash and fixed sash SMs = Size of gap on the closing side SMo1 = Size of gap on the opening side for sliding sash 1 | M30: Formulas
C31: W1 | D31: System width of side 1 (max. 1,500 mm) | E31: 900 | F31: (mm) | M31: ="WS1 = (W1 - WFA - WFZ1 + WSZ + UF - SMs - "&E1_Glasstärke&") / 2" -> WS1 = (W1 - WFA - WFZ1 + WSZ + UF - SMs - 8) / 2
M32: WF1 = WS1 - WSZ + WFZ1
C33: W2 | D33: System width of side 2 (max. 1,500 mm) | E33: 900 | F33: (mm) | M33: WF2 = W2 - WFA
M34: ="HS1 = H - "&E1_HSA_System -> HS1 = H - 30
C35: H | D35: System height (max. 2,500 mm) | E35: 2,000 | F35: (mm) | M35: ="HF1 = HF2 = H - "&E1_HFA_System -> HF1 = HF2 = H - 42
M36: SMo1 = WFZ1 + WFA
C37: WFZ1 | D37: Additional width of fixed sash 1 | E37: 17 | F37: (mm) | M37: ="LS1 = W1 - "&E1_Eckenabzug -> LS1 = W1 - 49
M38: ="LS2 = W2 - "&E1_Eckenabzug -> LS2 = W2 - 49
C39: Do you wish to attach the fixed sash to the wall via a wall profile or directly via silicon? | E39: Silicon | M39: ="LWt = W1 - WFA - WF1 - WSZ - "&E1_Glasstärke -> LWt = W1 - WFA - WF1 - WSZ - 8
C42: Do you wish to use the Aquant floor profile? | E42: No
C45: Do you wish to use vertical sealing strips between fixed and sliding sash? | E45: No
C48: Do you wish to use an optional threshold profile in the door area (in addition to the obligatory drip rail)?
D51: No
C54: Do you wish to use the Aquant bulb seal? | E54: Yes
C57: Do you wish to use the Aquant finger pull handle? | E57: Yes
B61: =Haftungsausschluss -> Willach assumes no liability for damage of any kind that could arise as a result of using this profile and glass dimensions calculator. (11.05.2016 Rev. 3)
B63: System dimensions
C65: System dimensions specified/recommended by Willach | H65: Deviations from system dimensions
C67: HSA | D67: Höhenabzugsmaß für Aufnahme Schiebeflügel | E67: 30 | F67: (mm) | H67: Deviation from system dimension? | L67: =IF(OR(E1_HSA_Wunsch="",E1_HSA_Wunsch=E1_HSA_System),"Nein","Ja") -> Nein | M67: Desired value | P67: =IF(OR(L67="Nein",O67=""),E67,O67) -> 30 | Q67: (mm)
C69: WSZ | D69: Additional width of sliding sash for handle | E69: 69 | F69: (mm) | H69: Deviation from system dimension? | L69: =IF(OR(E1_WSZ_Wunsch="",E1_WSZ_Wunsch=E1_WSZ_System),"Nein","Ja") -> Nein | M69: Desired value | P69: =IF(OR(L69="Nein",O69=""),E69,O69) -> 69 | Q69: (mm)
C71: WFA | D71: Allowance for fixed sash for wall attachment | E71: =IF(E39="Profile",14,3) -> 3 | F71: (mm) | H71: Deviation from system dimension? | L71: =IF(OR(E1_WFA_Wunsch="",E1_WFA_Wunsch=E1_WFA_System),"Nein","Ja") -> Nein | M71: Desired value | P71: =IF(OR(L71="Nein",O71=""),E71,O71) -> 3 | Q71: (mm)
C73: HFA | D73: Höhenabzugsmaß für Aufnahme Festflügel | E73: 42 | F73: (mm) | H73: Deviation from system dimension? | L73: =IF(OR(E1_HFA_Wunsch="",E1_HFA_Wunsch=E1_HFA_System),"Nein","Ja") -> Nein | M73: Desired value | P73: =IF(OR(L73="Nein",O73=""),E73,O73) -> 42 | Q73: (mm)
C75: UF | D75: Overlap between sliding sash and fixed sash | E75: =IF(E45="Yes",5,35) -> 35 | F75: (mm) | H75: Deviation from system dimension? | L75: =IF(OR(E1_UF_Wunsch="",E1_UF_Wunsch=E1_UF_System),"Nein","Ja") -> Nein | M75: Desired value | P75: =IF(OR(L75="Nein",O75=""),E75,O75) -> 35 | Q75: (mm)
C77: SMs | D77: Size of gap on the closing side | E77: 14 | F77: (mm) | H77: Deviation from system dimension? | L77: =IF(OR(E1_SMs_Wunsch="",E1_SMs_Wunsch=E1_SMs_System),"Nein","Ja") -> Nein | M77: Desired value | P77: =IF(OR(L77="Nein",O77=""),E77,O77) -> 14 | Q77: (mm)
C79: SMo | D79: Vorgabe Mindest-Spaltmaß öffnungsseitig | E79: =IF($E$39="Profile",40,20) -> 20 | F79: (mm) | H79: Deviation from system dimension? | L79: =IF(OR(E1_SMo_Wunsch="",E1_SMo_Wunsch=E1_SMo_System),"Nein","Ja") -> Nein | M79: Desired value | P79: =IF(OR(L79="Nein",O79=""),E79,O79) -> 20 | Q79: (mm)
D81: Weight of Aquant handle | E81: 0.2 | F81: (kg) | H81: Deviation from system dimension? | L81: =IF(OR(E1_Gewicht_Griff_Wunsch="",E1_Gewicht_Griff_Wunsch=E1_Gewicht_Griff_System),"Nein","Ja") -> Nein | M81: Desired value | P81: =IF(OR(L81="Nein",O81=""),E81,O81) -> 0.2 | Q81: (kg)
D83: Glasstärke | E83: 8 | F83: (mm)
D85: Eckenabzug | E85: 49 | F85: (mm)
D87: Glasscheibenabstand | E87: 15 | F87: (mm)
C89: =IF(OR(L67="Ja",L71="Ja",L73="Ja",L75="Ja",L77="Ja",L79="Ja",L69="Ja",L81="Ja"),"Caution: you are deviating from the suggested system dimension, please check whether the system can be built with the value you have selected!","") -> 
B93: Automatic calculation of glass dimensions and profile lengths* | H93: Automatic check of door sash width, sash weight, aspect ratio and gap dimension on the opening side
C95: Glass dimensions of sliding sash 1 | I95: Check of the door sash width
C97: WS1 | D97: Glass width of sliding sash 1 with handle | E97: =(E1_W1-E1_WFA_final-E1_WFZ1+E1_WSZ_final+E1_UF_final-E1_SMs_final-E1_Glasstärke)/2 -> 481 | F97: (mm) | I97: WS1 | J97: Glass width of sliding sash 1 with handle | L97: =E1_WS1 -> 481 | M97: ≥ | N97: 380 | O97: (mm) | Q97: =IF(L97>=N97,"Yes","No") -> Yes
C99: HS1 | D99: Glass height of sliding sash 1 | E99: =E1_H-E1_HSA_final -> 1,970 | F99: (mm) | I99: Check of the sash weight
C101: Please note that drill holes are required, please refer to the relevant drilling drawings! | J101: Weight of sliding sash 1 | L101: =ROUND(E1_WS1/1000*E1_HS/1000*2.5*E1_Glasstärke+E1_Griff_final,0) -> 19 | M101: ≤ | N101: 40 | O101: (kg) | Q101: =IF(L101<=N101,"Yes","No") -> Yes
I103: Check of the aspect ratio
C104: Glass dimensions of fixed sash 1
J105: Height-to-width ratio of sliding sash 1 | L105: =ROUND(E1_HS/E1_WS1,2) -> 4.10 | M105: ≤ | N105: 5 | Q105: =IF(L105<=N105,"Yes","No") -> Yes
C106: WF1 | D106: Glass width of fixed sash 1 | E106: =E1_WS1-E1_WSZ_final+E1_WFZ1 -> 429 | F106: (mm)
C108: HF1 | D108: Glass height of fixed sash 1 | E108: =E1_H-E1_HFA_final -> 1,958 | F108: (mm) | I108: Check of the gap dimension on the opening side
C110: Glass dimensions of fixed sash 2 | I110: =C79&1 -> SMo1 | J110: Gap dimension on the opening side for sliding sash 1 | L110: =E1_WFZ1+E1_WFA_final -> 20 | M110: ≥ | N110: =P79 -> 20 | O110: (mm) | Q110: =IF(L110>=N110,"Yes","No") -> Yes
I111: =IF(Q110="No","Note: if the gap on the opening side is too small , please increase WFZ1.","") -> 
C112: WF2 | D112: Glass width of fixed sash 2 | E112: =E1_W2-E1_WFA_final -> 897 | F112: (mm)
I113: =IF(OR(Q97="No",Q101="No",Q105="No",Q110="No",),"Caution: the technical restrictions have not been observed; please change your planning!","") -> 
C114: HF2 | D114: Glass height of fixed sash 2 | E114: =E1_HF -> 1,958 | F114: (mm)
C116: Length of track profile/cover profile 1
C118: LS1 | D118: Length of track profile/cover profile 1 | E118: =E1_W1-E1_Eckstück -> 851 | F118: (mm)
C120: Length of track profile/cover profile 2
C122: LS2 | D122: Length of track profile/cover profile 2 | E122: =E1_W2-E1_Eckstück -> 851 | F122: (mm)
C124: For information: clearance with open door
C126: LWt | D126: Clearance with open door | E126: =E1_W1-E1_WFA_final-E1_WF1-E1_WSZ_final-E1_Glasstärke -> 391 | F126: (mm)
B129: Willach assumes no liability for damage of any kind that could arise as a result of using this profile and glass dimensions calculator. (11.05.2016 Rev. 3)
B131: Order list
C133: Profile sets
C135: Description | E135: Article number | I135: Quantity | J135: Unit | K135: Sales length | L135: Cut length*
C136: Profile set for side 1 | E136: =IF(K136<1000,"612 070.0"&K136&".111","612 070."&K136&".111") -> 612 070.0950.111 | I136: 1 | J136: piece | K136: =VLOOKUP(L136,$E$217:$I$221,2,TRUE) -> 950 mm | L136: =E118 -> 851 mm
C137: Profile set for side 2 | E137: =IF(K137<1000,"612 070.0"&K137&".111","612 070."&K137&".111") -> 612 070.0950.111 | I137: 1 | J137: piece | K137: =VLOOKUP(L137,$E$217:$I$221,2,TRUE) -> 950 mm | L137: =E122 -> 851 mm
C140: Accessory kits
C142: Description | E142: Article number | I142: Quantity | J142: Unit
C143: Accessory kit door sash 20 kg | E143: 612 002.0000.000 | I143: =IF(E1_Flügelgewicht_1<=20,1,0) -> 1 | J143: piece
C144: Accessory kit door sash 40 kg | E144: 612 004.0000.000 | I144: =IF(E1_Flügelgewicht_1>20,1,0) -> 0 | J144: piece
C145: Accessory kit installation | E145: 612 010.0000.000 | I145: 1 | J145: piece
C146: Accessory kit corner bracket | E146: 612 020.0000.000 | I146: 1 | J146: piece
C148: Sealing strips (optional, please see above to select or deselect)
C150: Description | E150: Article number | I150: Quantity | J150: Unit | K150: Sales length | L150: Cut length*
C151: Bulb seal | E151: ="612 410."&K151&".305" -> 612 410.2000.305 | I151: =IF(E1_Wahl_Dichtl_schließseitig="Yes",1,0) -> 1 | J151: piece | K151: =VLOOKUP(L151,$E$223:$I$224,2,TRUE) -> 2,000 mm | L151: =E1_HS -> 1,970 mm
C152: Vertical sealing strips between fixed and sliding sash | E152: ="612 440."&K152&".305" -> 612 440.2000.305 | I152: =IF(E1_Wahl_Dichtl_F_u_S="Yes",1,0) -> 0 | J152: pair | K152: =VLOOKUP(L152,$E$223:$I$224,2,TRUE) -> 2,000 mm | L152: =E1_HF-24 -> 1,934 mm
C154: Threshold profile (optional, please see above to select or deselect)
C156: Description | E156: Article number | I156: Quantity | J156: Unit | K156: Sales length | L156: Cut length*
C157: Threshold profile, cut straight, gloss-polished aluminium | E157: 612 450.1000.111 | I157: =IF(E1_Wahl_Schwallschutz="Yes, made of gloss-polished aluminium",1,0) -> 0 | J157: piece | K157: 1000 mm | L157: =E1_LWt+E1_WSZ_final -> 460 mm
C158: Threshold profile, cut straight, transparent plastic | E158: 612 450.1000.305 | I158: =IF(E1_Wahl_Schwallschutz="Yes, made of transparent plastic",1,0) -> 0 | J158: piece | K158: 1000 mm | L158: =E1_LWt+E1_WSZ_final -> 460 mm
C160: Wall profile (optional, please see above to select or deselect)
C162: Description | E162: Article number | I162: Quantity | J162: Unit | K162: Sales length | L162: Cut length*
C163: Wall profile incl. plastic insert | E163: ="612 520."&K163&".111" -> 612 520.2000.111 | I163: =IF(E1_Wahl_Wandanschluss="Profile",2,0) -> 0 | J163: piece | K163: =VLOOKUP(L163,$E$223:$I$224,2,TRUE) -> 2,000 mm | L163: =E1_H-50 -> 1,950 mm
C165: Floor profile (optional, please see above to select or deselect)
C167: Description | E167: Article number | I167: Quantity | J167: Unit | K167: Sales length
C168: Floor profile length 1000 mm | E168: ="612 530."&K168&".111" -> 612 530.1000.111 | I168: =IF(E1_Wahl_Bodenprofil="Yes",L182,0) -> 0 | J168: piece | K168: 1,000 mm
C169: Floor profile length 1500 mm | E169: ="612 530."&K169&".111" -> 612 530.1500.111 | I169: =IF(E1_Wahl_Bodenprofil="Yes",M182,0) -> 0 | J169: piece | K169: 1,500 mm
C171: Description | E171: Glass width of fixed sashes
C172: Approximate required length of floor profile for fixed sash 1 | E172: =E1_WF1 -> 429 mm
C173: Approximate required length of floor profile for fixed sash 2 | E173: =E1_WF2 -> 897 mm
C174: Approximate required total length of floor profile | E174: =SUM(E172:H173) -> 1,326 mm
C176: Kaufvarianten
L178: Im Minimum-Fall
C179: Zusammenfassung | I179: Preis Summe | J179: Mögl.? | K179: Minimum und möglich? | L179: Anzahl 1000 mm | M179: Anzahl 1500 mm
C180: =C184 -> Variante 1: Alle einzeln | I180: =IF(J180="Ja",M187,"n.a.") -> 64 | J180: =E195 -> Ja | K180: =IF(AND(I180=MIN($I$180:$I$181),J180="Ja"),"Ja","Nein") -> Nein | L180: =IF(K180="Ja",I185,0) -> 0 | M180: =IF(K180="Ja",I186,0) -> 0
C181: =C197 -> Variante 2: Alle zusammen | I181: =IF(J181="Ja",M200,"n.a.") -> 48 | J181: =E208 -> Ja | K181: =IF(AND(I181=MIN($I$180:$I$181),J181="Ja"),"Ja","Nein") -> Ja | L181: =IF(K181="Ja",I198,0) -> 0 | M181: =IF(K181="Ja",I199,0) -> 1
L182: =SUM(L180:L181) -> 0 | M182: =SUM(M180:M181) -> 1
C184: Variante 1: Alle einzeln | E184: Artikelnummer | I184: Anzahl | J184: Einheit | K184: Verkaufslänge | L184: Brutto-VK-Preis | M184: Summe Brutto-VK-Preis
C185: Anzahl benötigter Bodenprofile in Länge 1000 mm | E185: ="612 XXX."&K185&".111" -> 612 XXX.1000.111 | I185: =COUNTIF(H190:I$200,K185) -> 2 | J185: Stück | K185: 1,000 mm | L185: =F229 -> 32.22 € | M185: =I185*L185 -> 64.44 €
C186: Anzahl benötigter Bodenprofile in Länge 1500 mm | E186: ="612 XXX."&K186&".111" -> 612 XXX.1500.111 | I186: =COUNTIF(H190:I192,K186) -> 0 | J186: Stück | K186: 1,500 mm | L186: =F230 -> 48.33 € | M186: =I186*L186 -> 0
M187: =M185+M186 -> 64.44 €
E189: Länge ben. | I189: Verkaufslänge
C190: =C172 -> Approximate required length of floor profile for fixed sash 1 | E190: =E172 -> 429 mm | I190: =IF(E190<=1500,VLOOKUP(E190,$E$226:$I$227,2,TRUE),"nicht vorhanden") -> 1,000 mm
C191: =C173 -> Approximate required length of floor profile for fixed sash 2 | E191: =E173 -> 897 mm | I191: =IF(E191<=1500,VLOOKUP(E191,$E$226:$I$227,2,TRUE),"nicht vorhanden") -> 1,000 mm
C193: Summe | E193: =SUM(E190:F192) -> 1,326 mm
C195: Ist die Variante eine mögliche Lösung? | E195: =IF(OR(I190="nicht vorhanden",I191="nicht vorhanden",I192="nicht vorhanden"),"Nein","Ja") -> Ja
C197: Variante 2: Alle zusammen | E197: Artikelnummer | I197: Anzahl | J197: Einheit | K197: Verkaufslänge | L197: Brutto-VK-Preis | M197: Summe Brutto-VK-Preis
C198: Anzahl benötigter Bodenprofile in Länge 1000 mm | E198: ="612 XXX."&K198&".111" -> 612 XXX.1000.111 | I198: =COUNTIF(H$200:I203,K198) -> 0 | J198: Stück | K198: 1,000 mm | L198: =F229 -> 32.22 € | M198: =I198*L198 -> 0
C199: Anzahl benötigter Bodenprofile in Länge 1500 mm | E199: ="612 XXX."&K199&".111" -> 612 XXX.1500.111 | I199: =COUNTIF(H203:I205,K199) -> 1 | J199: Stück | K199: 1,500 mm | L199: =F230 -> 48.33 € | M199: =I199*L199 -> 48.33 €
M200: =M198+M199 -> 48.33 €
E202: Länge ben. | I202: Verkaufslänge
C203: Ungefähr benötigte Länge an Bodenprofil für alle zusammen | E203: =E174 -> 1,326 mm | I203: =IF(E203<=1500,VLOOKUP(E203,$E$226:$I$227,2,TRUE),"nicht vorhanden") -> 1,500 mm
C206: Summe | E206: =SUM(E203:F205) -> 1,326 mm
C208: Ist die Variante eine mögliche Lösung? | E208: =IF(OR(I203="nicht vorhanden",I204="nicht vorhanden",I205="nicht vorhanden"),"Nein","Ja") -> Ja
C210: Finger pull handle (optional, please see above to select or deselect)
C212: Description | E212: Article number | I212: Quantity | J212: Unit | N212: * With exactly vertical walls and horizontal floors.
C213: Round finger pull handle, diameter 39 mm (diameter of glass drill hole 10 mm), 1 pair for 1 sash (inside and outside), stainless steel | E213: 612 267.0000.020 | I213: =IF(E1_Wahl_Griff="Yes",1,0) -> 1 | J213: pair
C216: Tabelle Profillängen
D217: Laufschiene/Blende | E217: 0 | F217: 950 | I217: 950 | K217: mm
E218: 950.01 | F218: 1150 | I218: 1150 | K218: mm
E219: 1150.01 | F219: 1550 | I219: 1550 | K219: mm
E220: 1550.01 | F220: 2050 | I220: 2050 | K220: mm
E221: 2050.01 | F221: 4880 | I221: 4880 | K221: mm
D223: Wandprofil/Dichtleisten | E223: 0 | F223: 2000 | I223: 2000 | K223: mm
E224: 2000.01 | F224: 2490 | I224: 2490 | K224: mm
D226: Bodenprofil | E226: 0 | F226: 1000 | I226: 1000 | K226: mm
E227: 1000.01 | F227: 1500 | I227: 1500 | K227: mm
D229: Brutto-VK-Bodenprofil | E229: 1000 | F229: 32.22
E230: 1500 | F230: 48.33
B232: =Haftungsausschluss -> Willach assumes no liability for damage of any kind that could arise as a result of using this profile and glass dimensions calculator. (11.05.2016 Rev. 3)

Sheet corner_2_sashes_corner entry
B1: Aquant 40: corner shower with 2 sliding sashes and corner entry
B4: =corner_1_sash!B4 -> Drawings
B29: =corner_1_sash!B29 -> User input | H29: =corner_1_sash!H29 -> Legend & Formulas
I30: Legend W1 = System width of side 1 W2 = System width of side 2 H = System height LS1 = Length of track profile/cover profile 1 LS2 = Length of track profile/cover profile 2 LWt = Clearance with open doors WS1 = Glass width of sliding sash 1 with handle WS2 = Glass width of sliding sash 2 with handle WSZ = Additional width of sliding sash for handle HS1 = Glass height of sliding sash 1 HS2 = Glass height of sliding sash 2 WF1 = Glass width of fixed sash 1 WF2 = Glass width of fixed sash 2 WFA = Allowance for fixed sash for wall attachment WFZ1 = Additional width of fixed sash 1 WFZ2 = Additional width of fixed sash 2 HF1 = Glass height of fixed sash 1 HF2 = Glass height of fixed sash 2 UF = Overlap between sliding sash and fixed sash SMs = Size of gap on the closing side SMo1 = Size of gap on the opening side for sliding sash 1 SMo2 = Size of gap on the opening side for sliding sash 2 | M30: Formulas
C31: W1 | D31: System width of side 1 (max. 1,500 mm) | E31: 900 | F31: (mm) | M31: ="WS1 = (W1 - SMs - WFA - WFZ1 + UF + WSZ - "&E2_Glasstärke&") / 2" -> WS1 = (W1 - SMs - WFA - WFZ1 + UF + WSZ - 8) / 2
M32: WF1 = WS1 - WSZ + WFZ1
C33: W2 | D33: System width of side 2 (max. 1,500 mm) | E33: 900 | F33: (mm) | M33: ="WS2 = (W2 - SMs - WFA - WFZ2 + UF + WSZ - "&E2_Glasstärke&") / 2" -> WS2 = (W2 - SMs - WFA - WFZ2 + UF + WSZ - 8) / 2
M34: WF2 = WS2 - WSZ + WFZ2
C35: H | D35: System height (max. 2,500 mm) | E35: 2,000 | F35: (mm) | M35: ="HS1 = HS2 = H - "&E2_HSA_System -> HS1 = HS2 = H - 30
M36: ="HF1 = HF2 = H - "&E2_HFA_System -> HF1 = HF2 = H - 42
C37: WFZ1 | D37: Additional width of fixed sash 1 | E37: 17 | F37: (mm) | M37: SMo1 = WFZ1 + WFA
M38: SMo2 = WFZ2 + WFA
C39: WFZ2 | D39: Additional width of fixed sash 2 | E39: 17 | F39: (mm) | M39: ="LS1 = W1 - "&E2_Eckenabzug -> LS1 = W1 - 49
M40: ="LS2 = W2 - "&E2_Eckenabzug -> LS2 = W2 - 49
C41: Do you wish to attach the fixed sash to the wall via a wall profile or directly via silicon? | E41: Silicon
C44: Do you wish to use the Aquant floor profile? | E44: No
C47: Do you wish to use vertical sealing strips between fixed and sliding sash? | E47: No
C50: Do you wish to use an optional threshold profile in the door area (in addition to the obligatory drip rail)?
D53: No
C56: Do you wish to use the Aquant magnetic seals 90°? | E56: Yes
C59: Do you wish to use the Aquant finger pull handle? | E59: Yes
B63: =Haftungsausschluss -> Willach assumes no liability for damage of any kind that could arise as a result of using this profile and glass dimensions calculator. (11.05.2016 Rev. 3)
B65: =corner_1_sash!B63 -> System dimensions
C67: =corner_1_sash!C65 -> System dimensions specified/recommended by Willach | H67: =corner_1_sash!H65 -> Deviations from system dimensions
C69: HSA | D69: =corner_1_sash!D67 -> Höhenabzugsmaß für Aufnahme Schiebeflügel | E69: 30 | F69: (mm) | H69: =corner_1_sash!H67 -> Deviation from system dimension? | L69: =IF(OR(E2_HSA_Wunsch="",E2_HSA_Wunsch=E2_HSA_System),"Nein","Ja") -> Nein | M69: =corner_1_sash!M67 -> Desired value | P69: =IF(OR(L69="Nein",O69=""),E69,O69) -> 30 | Q69: (mm)
C71: WSZ | D71: =corner_1_sash!D69 -> Additional width of sliding sash for handle | E71: 69 | F71: (mm) | H71: =corner_1_sash!H69 -> Deviation from system dimension? | L71: =IF(OR(E2_WSZ_Wunsch="",E2_WSZ_Wunsch=E2_WSZ_System),"Nein","Ja") -> Nein | M71: =corner_1_sash!M69 -> Desired value | P71: =IF(OR(L71="Nein",O71=""),E71,O71) -> 69 | Q71: (mm)
C73: WFA | D73: =corner_1_sash!D71 -> Allowance for fixed sash for wall attachment | E73: =IF(E41="Profile",14,3) -> 3 | F73: (mm) | H73: =H71 -> Deviation from system dimension? | L73: =IF(OR(E2_WFA_Wunsch="",E2_WFA_Wunsch=E2_WFA_System),"Nein","Ja") -> Nein | M73: =M71 -> Desired value | P73: =IF(OR(L73="Nein",O73=""),E73,O73) -> 3 | Q73: (mm)
C75: HFA | D75: =corner_1_sash!D73 -> Höhenabzugsmaß für Aufnahme Festflügel | E75: 42 | F75: (mm) | H75: =corner_1_sash!H73 -> Deviation from system dimension? | L75: =IF(OR(E2_HFA_Wunsch="",E2_HFA_Wunsch=E2_HFA_System),"Nein","Ja") -> Nein | M75: =corner_1_sash!M73 -> Desired value | P75: =IF(OR(L75="Nein",O75=""),E75,O75) -> 42 | Q75: (mm)
C77: UF | D77: =corner_1_sash!D75 -> Overlap between sliding sash and fixed sash | E77: =IF(E47="Yes",5,35) -> 35 | F77: (mm) | H77: =H71 -> Deviation from system dimension? | L77: =IF(OR(E2_UF_Wunsch="",E2_UF_Wunsch=E2_UF_System),"Nein","Ja") -> Nein | M77: =M71 -> Desired value | P77: =IF(OR(L77="Nein",O77=""),E77,O77) -> 35 | Q77: (mm)
C79: SMs | D79: =corner_1_sash!D77 -> Size of gap on the closing side | E79: 31 | F79: (mm) | H79: =H71 -> Deviation from system dimension? | L79: =IF(OR(E2_SMs_Wunsch="",E2_SMs_Wunsch=E2_SMs_System),"Nein","Ja") -> Nein | M79: =M71 -> Desired value | P79: =IF(OR(L79="Nein",O79=""),E79,O79) -> 31 | Q79: (mm)
C81: SMo | D81: =corner_1_sash!D79 -> Vorgabe Mindest-Spaltmaß öffnungsseitig | E81: =IF($E$41="Profile",40,20) -> 20 | F81: (mm) | H81: =corner_1_sash!H79 -> Deviation from system dimension? | L81: =IF(OR(E2_SMo_Wunsch="",E2_SMo_Wunsch=E2_SMo_System),"Nein","Ja") -> Nein | M81: =corner_1_sash!M79 -> Desired value | P81: =IF(OR(L81="Nein",O81=""),E81,O81) -> 20 | Q81: (mm)
D83: =corner_1_sash!D81 -> Weight of Aquant handle | E83: 0.2 | F83: (kg) | H83: =H71 -> Deviation from system dimension? | L83: =IF(OR(E2_Gewicht_Griff_Wunsch="",E2_Gewicht_Griff_Wunsch=E2_Gewicht_Griff),"Nein","Ja") -> Nein | M83: =M71 -> Desired value | P83: =IF(OR(L83="Nein",O83=""),E83,O83) -> 0.2 | Q83: (kg)
D85: Glasstärke | E85: 8 | F85: (mm)
D87: Eckenabzug | E87: 49 | F87: (mm)
D89: Glasscheibenabstand | E89: 15 | F89: (mm)
C91: =IF(OR(L69="Ja",L73="Ja",L75="Ja",L77="Ja",L79="Ja",L81="Ja",L71="Ja",L83="Ja"),"Caution: you are deviating from the suggested system dimension, please check whether the system can be built with the value you have selected!","") -> 
B95: =corner_1_sash!B93 -> Automatic calculation of glass dimensions and profile lengths* | H95: =corner_1_sash!H93 -> Automatic check of door sash width, sash weight, aspect ratio and gap dimension on the opening side
C97: Glass dimensions of sliding sash 1 | I97: =corner_1_sash!I95 -> Check of the door sash width
C99: WS1 | D99: Glass width of sliding sash 1 with handle | E99: =(E2_W1-E2_SMs_final-E2_WFA_final-E2_WFZ1+E2_UF_final+E2_WSZ_final-E2_Glasstärke)/2 -> 473 | F99: (mm) | I99: =C99 -> WS1 | J99: =D99 -> Glass width of sliding sash 1 with handle | L99: =E2_WS1 -> 473 | M99: ≥ | N99: 380 | O99: (mm) | Q99: =IF(L99>=N99,"Yes","No") -> Yes
C101: HS1 | D101: Glass height of sliding sash 1 | E101: =E2_H-E2_HSA_final -> 1,970 | F101: (mm) | I101: =C108 -> WS2 | J101: =D108 -> Glass width of sliding sash 2 with handle | L101: =E2_WS2 -> 473 | M101: ≥ | N101: 380 | O101: (mm) | Q101: =IF(L101>=N101,"Yes","No") -> Yes
C103: =corner_1_sash!$C$101 -> Please note that drill holes are required, please refer to the relevant drilling drawings! | I103: =corner_1_sash!I99 -> Check of the sash weight
J105: Weight of sliding sash 1 | L105: =ROUND(E2_WS1/1000*E2_HS/1000*2.5*E2_Glasstärke+E2_Gewicht_Griff_final,0) -> 19 | M105: ≤ | N105: 40 | O105: (kg) | Q105: =IF(L105<=N105,"Yes","No") -> Yes
C106: Glass dimensions of sliding sash 2
J107: Weight of sliding sash 2 | L107: =ROUND(E2_WS2/1000*E2_HS/1000*2.5*E2_Glasstärke+E2_Gewicht_Griff_final,0) -> 19 | M107: ≤ | N107: 40 | O107: (kg) | Q107: =IF(OR(L107<N107,L107=N107),"Yes","No") -> Yes
C108: WS2 | D108: Glass width of sliding sash 2 with handle | E108: =(E2_W2-E2_SMs_final-E2_WFA_final-E2_WFZ2+E2_UF_final+E2_WSZ_final-E2_Glasstärke)/2 -> 473 | F108: (mm)
I109: =corner_1_sash!I103 -> Check of the aspect ratio
C110: HS2 | D110: Glass height of sliding sash 2 | E110: =E2_HS -> 1,970 | F110: (mm)
J111: Height-to-width ratio of sliding sash 1 | L111: =ROUND(E2_HS/E2_WS1,2) -> 4.17 | M111: ≤ | N111: 5 | Q111: =IF(L111<=N111,"Yes","No") -> Yes
C112: =corner_1_sash!$C$101 -> Please note that drill holes are required, please refer to the relevant drilling drawings!
J114: Height-to-width ratio of sliding sash 2 | L114: =ROUND(E110/E2_WS2,2) -> 4.17 | M114: ≤ | N114: 5 | Q114: =IF(L114<=N114,"Yes","No") -> Yes
C115: Glass dimensions of fixed sash 1
C117: WF1 | D117: Glass width of fixed sash 1 | E117: =E2_WS1-E2_WSZ_final+E2_WFZ1 -> 421 | F117: (mm) | I117: =corner_1_sash!I108 -> Check of the gap dimension on the opening side
C119: HF1 | D119: Glass height of fixed sash 1 | E119: =E2_H-E2_HFA_final -> 1,958 | F119: (mm) | I119: =C81&1 -> SMo1 | J119: Gap dimension on the opening side for sliding sash 1 | L119: =E2_WFZ1+E2_WFA_final -> 20 | M119: ≥ | N119: =P81 -> 20 | O119: (mm) | Q119: =IF(L119>=N119,"Yes","No") -> Yes
I120: =C81&2 -> SMo2 | J120: Gap dimension on the opening side for sliding sash 2 | L120: =E2_WFZ2+E2_WFA_final -> 20 | M120: ≥ | N120: =N119 -> 20 | O120: (mm) | Q120: =IF(L120>=N120,"Yes","No") -> Yes
C121: Glass dimensions of fixed sash 2 | I121: =IF(OR(Q119="No",Q120="No"),"Note: if the gap on the opening side is too small , please increase WFZ1 or WFZ2.","") -> 
C123: WF2 | D123: Glass width of fixed sash 2 | E123: =E2_WS2+E2_WFZ2-E2_WSZ_final -> 421 | F123: (mm)
I124: =IF(OR(Q99="No",Q101="No",Q105="No",Q107="No",Q111="No",Q114="No",Q119="No",Q120="No"),"Caution: the technical restrictions have not been observed; please change your planning!","") -> 
C125: HF2 | D125: Glass height of fixed sash 2 | E125: =E2_HF -> 1,958 | F125: (mm)
C127: Length of track profile/cover profile 1
C129: LS1 | D129: Length of track profile/cover profile 1 | E129: =E2_W1-E2_Eckenabzug -> 851 | F129: (mm)
C131: Length of track profile/cover profile 2
C133: LS2 | D133: Length of track profile/cover profile 2 | E133: =E2_W2-E2_Eckenabzug -> 851 | F133: (mm)
C135: For information: clearance with open doors
C137: LWt | D137: Clearance with open doors | E137: =((E2_W1-E2_WFA_final-E2_WF1-E2_WSZ_final-2*E2_Glasstärke-E2_Glasscheibenabstand)^2+(E2_W2-E2_WFA_final-E2_WF2-E2_WSZ_final-2*E2_Glasstärke-E2_Glasscheibenabstand)^2)^0.5 -> 532 | F137: (mm)
B140: =Haftungsausschluss -> Willach assumes no liability for damage of any kind that could arise as a result of using this profile and glass dimensions calculator. (11.05.2016 Rev. 3)
B142: =corner_1_sash!B131 -> Order list
C144: =corner_1_sash!C133 -> Profile sets
C146: Description | E146: Article number | I146: Quantity | J146: Unit | K146: Sales length | L146: Cut length*
C147: Profile set for side 1 | E147: =IF(K147<1000,"612 070.0"&K147&".111","612 070."&K147&".111") -> 612 070.0950.111 | I147: 1 | J147: piece | K147: =VLOOKUP(L147,$E$227:$I$230,2,TRUE) -> 950 mm | L147: =E2_LS1 -> 851 mm
C148: Profile set for side 2 | E148: =IF(K148<1000,"612 070.0"&K148&".111","612 070."&K148&".111") -> 612 070.0950.111 | I148: 1 | J148: piece | K148: =VLOOKUP(L148,$E$227:$I$230,2,TRUE) -> 950 mm | L148: =E2_LS2 -> 851 mm
C150: =corner_1_sash!C140 -> Accessory kits
C152: Description | E152: Article number | I152: Quantity | J152: Unit
C153: Accessory kit door sash 20 kg | E153: 612 002.0000.000 | I153: =IF(AND(E2_Flügelgewicht_1<=20,E2_Flügelgewicht_2<=20),2,IF(OR(E2_Flügelgewicht_1<=20,E2_Flügelgewicht_2<=20),1,0)) -> 2 | J153: piece
C154: Accessory kit door sash 40 kg | E154: 612 004.0000.000 | I154: =IF(AND(E2_Flügelgewicht_1>20,E2_Flügelgewicht_2>20),2,IF(OR(E2_Flügelgewicht_1>20,E2_Flügelgewicht_2>20),1,0)) -> 0 | J154: piece
C155: Accessory kit installation | E155: 612 010.0000.000 | I155: 1 | J155: piece
C156: Accessory kit corner bracket | E156: 612 020.0000.000 | I156: 1 | J156: piece
C158: =corner_1_sash!C148 -> Sealing strips (optional, please see above to select or deselect)
C160: Description | E160: Article number | I160: Quantity | J160: Unit | K160: Sales length | L160: Cut length*
C161: Magnetic seals 90° | E161: ="612 420."&K161&".305" -> 612 420.2000.305 | I161: =IF(E2_Wahl_Dichtl_schließseitig="Yes",1,0) -> 1 | J161: pair | K161: =VLOOKUP(L161,$E$232:$I$233,2,TRUE) -> 2,000 mm | L161: =E2_HS -> 1,970 mm
C162: Vertical sealing strips between fixed and sliding sash | E162: ="612 440."&K162&".305" -> 612 440.2000.305 | I162: =IF(E2_Wahl_Dichtl_F_u_S="Yes",2,0) -> 0 | J162: pair | K162: =VLOOKUP(L162,$E$232:$I$233,2,TRUE) -> 2,000 mm | L162: =E125-24 -> 1,934 mm
C164: =corner_1_sash!C154 -> Threshold profile (optional, please see above to select or deselect)
C166: Description | E166: Article number | I166: Quantity | J166: Unit | K166: Sales length | L166: Cut length*
C167: Threshold profile, bevelled on one side, gloss-polished aluminium | E167: 612 454.1000.111 | I167: =IF(E2_Wahl_Schwallschutz="Yes, made of gloss-polished aluminium",1,0) -> 0 | J167: pair | K167: 1,000 mm | L167: =E2_W1-E2_WF1-E2_WFA_final -> 477 mm | M167: =E2_W2-E2_WF2-E2_WFA_final -> 477 mm
C168: Threshold profile, bevelled on one side, transparent plastic | E168: 612 454.1000.305 | I168: =IF(E2_Wahl_Schwallschutz="Yes, made of transparent plastic",1,0) -> 0 | J168: pair | K168: 1,000 mm | L168: =E2_W1-E2_WF1-E2_WFA_final -> 477 mm | M168: =E2_W2-E2_WF2-E2_WFA_final -> 477 mm
C170: =corner_1_sash!C160 -> Wall profile (optional, please see above to select or deselect)
C172: Description | E172: Article number | I172: Quantity | J172: Unit | K172: Sales length | L172: Cut length*
C173: Wall profile incl. plastic insert | E173: ="612 520."&K173&".111" -> 612 520.2000.111 | I173: =IF(E2_Wahl_Wandanschluss="Profile",2,0) -> 0 | J173: piece | K173: =VLOOKUP(L173,$E$232:$I$233,2,TRUE) -> 2,000 mm | L173: =E2_H-50 -> 1,950 mm
C175: =corner_1_sash!C165 -> Floor profile (optional, please see above to select or deselect)
C177: Description | E177: Article number | I177: Quantity | J177: Unit | K177: Sales length
C178: Floor profile length 1000 mm | E178: ="612 530."&K178&".111" -> 612 530.1000.111 | I178: =IF(E2_Wahl_Bodenprofil="Yes",L192,0) -> 0 | J178: =corner_1_sash!J168 -> piece | K178: 1,000 mm
C179: Floor profile length 1500 mm | E179: ="612 530."&K179&".111" -> 612 530.1500.111 | I179: =IF(E2_Wahl_Bodenprofil="Yes",M192,0) -> 0 | J179: =corner_1_sash!J169 -> piece | K179: 1,500 mm
C181: Description | E181: Glass width of fixed sashes
C182: Approximate required length of floor profile for fixed sash 1 | E182: =E2_WF1 -> 421 mm
C183: Approximate required length of floor profile for fixed sash 2 | E183: =E2_WF2 -> 421 mm
C184: Approximate required total length of floor profile | E184: =SUM(E182:H183) -> 841 mm
C186: Kaufvarianten
L188: Im Minimum-Fall
C189: Zusammenfassung | I189: Preis Summe | J189: Mögl.? | K189: Minimum und möglich? | L189: Anzahl 1000 mm | M189: Anzahl 1500 mm
C190: =C194 -> Variante 1: Alle einzeln | I190: =IF(J190="Ja",M197,"n.a.") -> 64 | J190: =E205 -> Ja | K190: =IF(AND(I190=MIN($I$190:$I$191),J190="Ja"),"Ja","Nein") -> Nein | L190: =IF(K190="Ja",I195,0) -> 0 | M190: =IF(K190="Ja",I196,0) -> 0
C191: =C207 -> Variante 2: Alle zusammen | I191: =IF(J191="Ja",M210,"n.a.") -> 32 | J191: =E218 -> Ja | K191: =IF(AND(I191=MIN($I$190:$I$191),J191="Ja"),"Ja","Nein") -> Ja | L191: =IF(K191="Ja",I208,0) -> 1 | M191: =IF(K191="Ja",I209,0) -> 0
L192: =SUM(L190:L191) -> 1 | M192: =SUM(M190:M191) -> 0
C194: Variante 1: Alle einzeln | E194: Artikelnummer | I194: Anzahl | J194: Einheit | K194: Verkaufslänge | L194: Brutto-VK-Preis | M194: Summe Brutto-VK-Preis
C195: Anzahl benötigter Bodenprofile in Länge 1000 mm | E195: ="612 XXX."&K195&".111" -> 612 XXX.1000.111 | I195: =COUNTIF(H200:I$202,K195) -> 2 | J195: Stück | K195: 1,000 mm | L195: =$F$238 -> 32.22 € | M195: =I195*L195 -> 64.44 €
C196: Anzahl benötigter Bodenprofile in Länge 1500 mm | E196: ="612 XXX."&K196&".111" -> 612 XXX.1500.111 | I196: =COUNTIF(H200:I202,K196) -> 0 | J196: Stück | K196: 1,500 mm | L196: =$F$239 -> 48.33 € | M196: =I196*L196 -> 0
M197: =M195+M196 -> 64.44 €
E199: Länge ben. | I199: Verkaufslänge
C200: =C182 -> Approximate required length of floor profile for fixed sash 1 | E200: =E182 -> 421 mm | I200: =IF(E200<=1500,VLOOKUP(E200,$E$235:$I$236,2,TRUE),"nicht vorhanden") -> 1,000 mm
C201: =C183 -> Approximate required length of floor profile for fixed sash 2 | E201: =E183 -> 421 mm | I201: =IF(E201<=1500,VLOOKUP(E201,$E$235:$I$236,2,TRUE),"nicht vorhanden") -> 1,000 mm
C203: Summe | E203: =SUM(E200:F202) -> 841 mm
C205: Ist die Variante eine mögliche Lösung? | E205: =IF(OR(I200="nicht vorhanden",I201="nicht vorhanden",I202="nicht vorhanden"),"Nein","Ja") -> Ja
C207: Variante 2: Alle zusammen | E207: Artikelnummer | I207: Anzahl | J207: Einheit | K207: Verkaufslänge | L207: Brutto-VK-Preis | M207: Summe Brutto-VK-Preis
C208: Anzahl benötigter Bodenprofile in Länge 1000 mm | E208: ="612 XXX."&K208&".111" -> 612 XXX.1000.111 | I208: =COUNTIF($H$213:$I$215,K208) -> 1 | J208: Stück | K208: 1,000 mm | L208: =$F$238 -> 32.22 € | M208: =I208*L208 -> 32.22 €
C209: Anzahl benötigter Bodenprofile in Länge 1500 mm | E209: ="612 XXX."&K209&".111" -> 612 XXX.1500.111 | I209: =COUNTIF($H$213:$I$215,K209) -> 0 | J209: Stück | K209: 1,500 mm | L209: =$F$239 -> 48.33 € | M209: =I209*L209 -> 0
M210: =M208+M209 -> 32.22 €
E212: Länge ben. | I212: Verkaufslänge
C213: Ungefähr benötigte Länge an Bodenprofil für alle zusammen | E213: =E184 -> 841 mm | I213: =IF(E213<=1500,VLOOKUP(E213,$E$235:$I$236,2,TRUE),"nicht vorhanden") -> 1,000 mm
C216: Summe | E216: =SUM(E213:F215) -> 841 mm
C218: Ist die Variante eine mögliche Lösung? | E218: =IF(OR(I213="nicht vorhanden",I214="nicht vorhanden",I215="nicht vorhanden"),"Nein","Ja") -> Ja
C220: =corner_1_sash!C210 -> Finger pull handle (optional, please see above to select or deselect)
C222: =corner_1_sash!C212 -> Description | E222: =corner_1_sash!E212 -> Article number | I222: =corner_1_sash!I212 -> Quantity | J222: =corner_1_sash!J212 -> Unit | N222: =corner_1_sash!N212 -> * With exactly vertical walls and horizontal floors.
C223: =corner_1_sash!C213 -> Round finger pull handle, diameter 39 mm (diameter of glass drill hole 10 mm), 1 pair for 1 sash (inside and outside), stainless steel | E223: 612 267.0000.020 | I223: =IF(E2_Wahl_Griff="Yes",2,0) -> 2 | J223: =corner_1_sash!J213 -> pair
C226: Tabelle Profillängen
D227: Profil-Set | E227: 0 | F227: 950 | I227: 950
E228: 950.01 | F228: 1150 | I228: 1150
E229: 1150.01 | F229: 1550 | I229: 1550
E230: 1550.01 | F230: 2050 | I230: 2050
D232: Wandprofil/Dichtleisten | E232: 0 | F232: 2000 | I232: 2000
E233: 2000.01 | F233: 2490 | I233: 2490
D235: Bodenprofil | E235: 0 | F235: 1000 | I235: 1000 | K235: mm
E236: 1000.01 | F236: 1500 | I236: 1500 | K236: mm
D238: Brutto-VK-Bodenprofil | E238: 1000 | F238: 32.22
E239: 1500 | F239: 48.33
B241: =Haftungsausschluss -> Willach assumes no liability for damage of any kind that could arise as a result of using this profile and glass dimensions calculator. (11.05.2016 Rev. 3)

Sheet corner_2_sashes_on_one_side
B1: Aquant 40: corner shower with 2 sliding sashes on one side
B4: =corner_1_sash!B4 -> Drawings
B51: =corner_1_sash!B29 -> User input | H51: =corner_1_sash!H29 -> Legend & Formulas
I52: Legend W1 = System width of side 1 W1.1 = System width of side 1 section 1 W1.2 = System width of side 1 section 2 W2 = System width of side 2 H = System height LS1 = Length of track profile/cover profile 1 LS2 = Length of track profile/cover profile 2 LWt = Clearance with open doors WS1.1 = Glass width of sliding sash 1.1 with handle WS1.2 = Glass width of sliding sash 1.2 with handle WSZ = Additional width of sliding sash for handle HS1.1 = Glass height of sliding sash 1.1 HS1.2 = Glass height of sliding sash 1.2 WF1.1 = Glass width of fixed sash 1.1 WF1.2 = Glass width of fixed sash 1.2 WF2 = Glass width of fixed sash 2 WFA = Allowance for fixed sash for wall attachment WFZ1.1 = Additional width of fixed sash 1.1 WFZ1.2 = Additional width of fixed sash 1.2 HF1.1 = Glass height of fixed sash 1.1 HF1.2 = Glass height of fixed sash 1.2 HF2 = Glass height of fixed sash 2 UF = Overlap between sliding sash and fixed sash SMs = Size of gap on the closing side SMo1.1 = Size of gap on the opening side for sliding sash 1.1 SMo1.2 = Size of gap on the opening side for sliding sash 1.2 | M52: Formulas
C53: W1 | D53: System width of side 1 (max. 2,000 mm) | E53: 1,800 | F53: (mm) | M53: W1.2 = W1 - W1.1
M54: WS1.1 = (W1.1 - SMs - WFA - WFZ1.1 + UF + WSZ) / 2
C55: W1.1 | D55: System width of side 1 section 1 | E55: 900 | F55: (mm) | M55: WF1.1 = WS1.1 - WSZ + WFZ1.1
M56: WS1.2 = (W1.2 - SMs - WFZ1.2 + UF + WSZ) / 2
C57: W1.2 | D57: System width of side 1 section 2 | E57: =E3_W1-E3_W1.1 -> 900 | F57: (mm) | M57: WF1.2 = WS1.2 - WSZ + WFZ1.2
M58: WF2 = W2 - WFA - 11
C59: W2 | D59: System width of side 2 (max. 1,200 mm) | E59: 1,200 | F59: (mm) | M59: ="HS1.1 = HS1.2 = H - "&E3_HSA_System -> HS1.1 = HS1.2 = H - 30
M60: ="HF1.1 = HF1.2 = HF2 = H - "&E3_HFA_System -> HF1.1 = HF1.2 = HF2 = H - 42
C61: H | D61: System height (max. 2,500 mm) | E61: 2,000 | F61: (mm) | M61: SMo1.1 = WFZ1.1 + WFA
M62: SMo1.2 = WFZ1.2 - 8
C63: WFZ1.1 | D63: Additional width of fixed sash 1.1 | E63: 17 | F63: (mm) | M63: ="LS1 = W1 - "&E3_Eckenabzug -> LS1 = W1 - 49
M64: ="LS2 = W2 - "&E3_Eckenabzug -> LS2 = W2 - 49
C65: WFZ1.2 | D65: Additional width of fixed sash 1.2 | E65: 38 | F65: (mm) | M65: LWt = W1 - WFA - WFZ1.1 - WS1.1 - WS1.2 - WFZ1.2
C67: Do you wish to attach the fixed sash to the wall via a wall profile or directly via silicon? | E67: Silicon
C70: Do you wish to use the Aquant floor profile? | E70: No
C73: Do you wish to use vertical sealing strips between fixed and sliding sash? | E73: No
C76: Do you wish to use an optional threshold profile in the door area (in addition to the obligatory drip rail)?
D79: No
C82: Do you wish to use the Aquant magnetic seals 180°? | E82: Yes
C85: Do you wish to use the Aquant finger pull handle? | E85: Yes
B89: =Haftungsausschluss -> Willach assumes no liability for damage of any kind that could arise as a result of using this profile and glass dimensions calculator. (11.05.2016 Rev. 3)
B91: =corner_1_sash!B63 -> System dimensions
C93: =corner_1_sash!C65 -> System dimensions specified/recommended by Willach | H93: =corner_1_sash!H65 -> Deviations from system dimensions
C95: HSA | D95: =corner_1_sash!D67 -> Höhenabzugsmaß für Aufnahme Schiebeflügel | E95: 30 | F95: (mm) | H95: =corner_1_sash!H67 -> Deviation from system dimension? | L95: =IF(OR(E3_HSA_Wunsch="",E3_HSA_Wunsch=E3_HSA_System),"Nein","Ja") -> Nein | M95: =corner_1_sash!M67 -> Desired value | P95: =IF(OR(L95="Nein",O95=""),E95,O95) -> 30 | Q95: (mm)
C97: WSZ | D97: =corner_1_sash!D69 -> Additional width of sliding sash for handle | E97: 69 | F97: (mm) | H97: =corner_1_sash!H69 -> Deviation from system dimension? | L97: =IF(OR(E3_WSZ_Wunsch="",E3_WSZ_Wunsch=E3_WSZ_System),"Nein","Ja") -> Nein | M97: =corner_1_sash!M69 -> Desired value | P97: =IF(OR(L97="Nein",O97=""),E97,O97) -> 69 | Q97: (mm)
C99: WFA | D99: =corner_1_sash!D71 -> Allowance for fixed sash for wall attachment | E99: =IF(E67="Profile",14,3) -> 3 | F99: (mm) | H99: =corner_1_sash!H71 -> Deviation from system dimension? | L99: =IF(OR(E3_WFA_Wunsch="",E3_WFA_Wunsch=E3_WFA_System),"Nein","Ja") -> Nein | M99: =corner_1_sash!M71 -> Desired value | P99: =IF(OR(L99="Nein",O99=""),E99,O99) -> 3 | Q99: (mm)
C101: HFA | D101: =corner_1_sash!D73 -> Höhenabzugsmaß für Aufnahme Festflügel | E101: 42 | F101: (mm) | H101: =corner_1_sash!H73 -> Deviation from system dimension? | L101: =IF(OR(E3_HFA_Wunsch="",E3_HFA_Wunsch=E3_HFA_System),"Nein","Ja") -> Nein | M101: =corner_1_sash!M73 -> Desired value | P101: =IF(OR(L101="Nein",O101=""),E101,O101) -> 42 | Q101: (mm)
C103: UF | D103: =corner_1_sash!D75 -> Overlap between sliding sash and fixed sash | E103: =IF(E73="Yes",5,35) -> 35 | F103: (mm) | H103: =corner_1_sash!H75 -> Deviation from system dimension? | L103: =IF(OR(E3_UF_Wunsch="",E3_UF_Wunsch=E3_UF_System),"Nein","Ja") -> Nein | M103: =corner_1_sash!M75 -> Desired value | P103: =IF(OR(L103="Nein",O103=""),E103,O103) -> 35 | Q103: (mm)
C105: SMs | D105: =corner_1_sash!D77 -> Size of gap on the closing side | E105: 10 | F105: (mm) | H105: =corner_1_sash!H77 -> Deviation from system dimension? | L105: =IF(OR(E3_SMs_Wunsch="",E3_SMs_Wunsch=E3_SMs_System),"Nein","Ja") -> Nein | M105: =corner_1_sash!M77 -> Desired value | P105: =IF(OR(L105="Nein",O105=""),E105,O105) -> 10 | Q105: (mm)
D107: =corner_1_sash!D79&" Schiebeflg 1.1" -> Vorgabe Mindest-Spaltmaß öffnungsseitig Schiebeflg 1.1 | E107: =IF($E$67="Profile",40,20) -> 20 | F107: (mm) | H107: =corner_1_sash!H79 -> Deviation from system dimension? | L107: =IF(OR(E3_SMo1_Wunsch="",E3_SMo1_Wunsch=E3_SMo1_System),"Nein","Ja") -> Nein | M107: =corner_1_sash!M79 -> Desired value | P107: =IF(OR(L107="Nein",O107=""),E107,O107) -> 20 | Q107: (mm)
D109: =corner_1_sash!D79&" Schiebeflg 1.2" -> Vorgabe Mindest-Spaltmaß öffnungsseitig Schiebeflg 1.2 | E109: 30 | F109: (mm) | H109: =corner_1_sash!H79 -> Deviation from system dimension? | L109: =IF(OR(E3_SMo2_Wunsch="",E3_SMo2_Wunsch=E3_SMo2_System),"Nein","Ja") -> Nein | M109: =corner_1_sash!M79 -> Desired value | P109: =IF(OR(L109="Nein",O109=""),E109,O109) -> 30 | Q109: (mm)
D111: =corner_1_sash!D81 -> Weight of Aquant handle | E111: 0.2 | F111: (kg) | H111: =corner_1_sash!H81 -> Deviation from system dimension? | L111: =IF(OR(E3_Gewicht_Griff_Wunsch="",E3_Gewicht_Griff_Wunsch=E3_Gewicht_Griff),"Nein","Ja") -> Nein | M111: ='corner_2_sashes_corner entry'!M83 -> Desired value | P111: =IF(OR(L111="Nein",O111=""),E111,O111) -> 0.2 | Q111: (kg)
D113: Glasstärke | E113: 8 | F113: (mm)
D115: Eckenabzug | E115: 49 | F115: (mm)
D117: Glasscheibenabstand | E117: 15 | F117: (mm)
C119: =IF(OR(L95="Ja",L99="Ja",L101="Ja",L103="Ja",L105="Ja",L107="Ja",L97="Ja",L109="Ja",L111="Ja"),"Caution: you are deviating from the suggested system dimension, please check whether the system can be built with the value you have selected!","") -> 
B123: =corner_1_sash!B93 -> Automatic calculation of glass dimensions and profile lengths* | H123: =corner_1_sash!H93 -> Automatic check of door sash width, sash weight, aspect ratio and gap dimension on the opening side
C125: Glass dimensions of sliding sash 1.1 | I125: =corner_1_sash!I95 -> Check of the door sash width
C127: WS1.1 | D127: Glass width of sliding sash 1.1 with handle | E127: =(E3_W1.1-E3_SMs_final-E3_WFA_final-E3_WFZ1.1+E3_UF_final+E3_WSZ_final)/2 -> 487 | F127: (mm) | I127: WS1.1 | J127: =D127 -> Glass width of sliding sash 1.1 with handle | L127: =E3_WS1.1 -> 487 | M127: ≥ | N127: 380 | O127: (mm) | Q127: =IF(L127>=N127,"Yes","No") -> Yes
C129: HS1.1 | D129: Glass height of sliding sash 1.1 | E129: =E3_H-E3_HSA_final -> 1,970 | F129: (mm) | I129: WS1.2 | J129: =D136 -> Glass width of sliding sash 1.2 with handle | L129: =E3_WS1.2 -> 478 | M129: ≥ | N129: 380 | O129: (mm) | Q129: =IF(L129>=N129,"Yes","No") -> Yes
C131: Please note that drill holes are required, please refer to the relevant drilling drawings! | I131: =corner_1_sash!I99 -> Check of the sash weight
J133: Weight of sliding sash 1.1 | L133: =ROUND(E3_WS1.1/1000*E3_HS/1000*2.5*E3_Glasstärke+E3_Gewicht_Griff_final,0) -> 19 | M133: ≤ | N133: 40 | O133: (kg) | Q133: =IF(L133<=N133,"Yes","No") -> Yes
C134: Glass dimensions of sliding sash 1.2
J135: Weight of sliding sash 1.2 | L135: =ROUND(E3_WS1.2/1000*E138/1000*2.5*E3_Glasstärke+E3_Gewicht_Griff_final,0) -> 19 | M135: ≤ | N135: 40 | O135: (kg) | Q135: =IF(OR(L135<N135,L135=N135),"Yes","No") -> Yes
C136: WS1.2 | D136: Glass width of sliding sash 1.2 with handle | E136: =(E3_W1.2-E3_SMs_final-E3_WFZ1.2+E3_UF_final+E3_WSZ_final)/2 -> 478 | F136: (mm)
I137: =corner_1_sash!I103 -> Check of the aspect ratio
C138: HS1.2 | D138: Glass height of sliding sash 1.2 | E138: =E3_H-E3_HSA_final -> 1,970 | F138: (mm)
J139: Height-to-width ratio of sliding sash 1.1 | L139: =ROUND(E3_HS/E3_WS1.1,2) -> 4.05 | M139: ≤ | N139: 5 | Q139: =IF(L139<=N139,"Yes","No") -> Yes
C140: Please note that drill holes are required, please refer to the relevant drilling drawings!
J142: Height-to-width ratio of sliding sash 1.2 | L142: =ROUND(E138/E3_WS1.2,2) -> 4.12 | M142: ≤ | N142: 5 | Q142: =IF(L142<=N142,"Yes","No") -> Yes
C143: Glass dimensions of fixed sash 1.1
C145: WF1.1 | D145: Glass width of fixed sash 1.1 | E145: =E3_WS1.1-E3_WSZ_final+E3_WFZ1.1 -> 435 | F145: (mm) | I145: =corner_1_sash!I108 -> Check of the gap dimension on the opening side
C147: HF1.2 | D147: Glass height of fixed sash 1.1 | E147: =E3_H-E3_HFA_final -> 1,958 | F147: (mm) | I147: SMo1.1 | J147: Gap dimension on the opening side for sliding sash 1.1 | L147: =E3_WFZ1.1+E3_WFA_final -> 20 | M147: ≥ | N147: =E3_SMo1_System -> 20 | O147: (mm) | Q147: =IF(L147>=N147,"Yes","No") -> Yes
I148: SMo1.2 | J148: Gap dimension on the opening side for sliding sash 1.2 | L148: =E3_WFZ1.2-E3_Glasstärke -> 30 | M148: ≥ | N148: =E3_SMo2_System -> 30 | O148: (mm) | Q148: =IF(L148>=N148,"Yes","No") -> Yes
C149: Glass dimensions of fixed sash 1.2 | I149: =IF(OR(Q147="No",Q148="No"),"Note: if the gap on the opening side is too small , please increase WFZ1.1 or WFZ1.2.","") -> 
C151: WF1.2 | D151: Glass width of fixed sash 1.2 | E151: =E3_WS1.2+E3_WFZ1.2-E3_WSZ_final -> 447 | F151: (mm)
I152: =IF(OR(Q127="No",Q129="No",Q133="No",Q135="No",Q139="No",Q142="No",Q147="No",Q148="No"),"Caution: the technical restrictions have not been observed; please change your planning!","") -> 
C153: HF1.2 | D153: Glass height of fixed sash 1.2 | E153: =E3_HF -> 1,958 | F153: (mm)
C155: Glass dimensions of fixed sash 2
C157: WF2 | D157: Glass width of fixed sash 2 | E157: =E3_W2-E3_WFA_final-11 -> 1,186 | F157: (mm)
C159: HF2 | D159: Glass height of fixed sash 2 | E159: =E3_HF -> 1,958 | F159: (mm)
C161: Length of track profile/cover profile 1
C163: LS1 | D163: Length of track profile/cover profile 1 | E163: =E3_W1-E3_Eckenabzug -> 1,751 | F163: (mm)
C165: Length of track profile/cover profile 2
C167: LS2 | D167: Length of track profile/cover profile 2 | E167: =E3_W2-E3_Eckenabzug -> 1,151 | F167: (mm)
C169: For information: clearance with open doors
C171: LWt | D171: Clearance with open doors | E171: =E3_W1-E3_WFA_final-E3_WFZ1.1-E3_WS1.1-E3_WS1.2-E3_WFZ1.2 -> 777 | F171: (mm)
B174: =Haftungsausschluss -> Willach assumes no liability for damage of any kind that could arise as a result of using this profile and glass dimensions calculator. (11.05.2016 Rev. 3)
B176: =corner_1_sash!B131 -> Order list
C178: =corner_1_sash!C133 -> Profile sets
C180: =corner_1_sash!C135 -> Description | E180: =corner_1_sash!E135 -> Article number | I180: =corner_1_sash!I135 -> Quantity | J180: =corner_1_sash!J135 -> Unit | K180: =corner_1_sash!K135 -> Sales length | L180: =corner_1_sash!L135 -> Cut length*
C181: =corner_1_sash!C136 -> Profile set for side 1 | E181: =IF(K181<1000,"612 070.0"&K181&".111","612 070."&K181&".111") -> 612 070.2050.111 | I181: 1 | J181: =corner_1_sash!J136 -> piece | K181: =VLOOKUP(L181,$E$304:$I$308,2,TRUE) -> 2,050 mm | L181: =E3_LS1 -> 1,751 mm
C182: =corner_1_sash!C137 -> Profile set for side 2 | E182: =IF(K182<1000,"612 070.0"&K182&".111","612 070."&K182&".111") -> 612 070.1550.111 | I182: 1 | J182: =corner_1_sash!J137 -> piece | K182: =VLOOKUP(L182,$E$304:$I$308,2,TRUE) -> 1,550 mm | L182: =E3_LS2 -> 1,151 mm
C184: =corner_1_sash!C140 -> Accessory kits
C186: =corner_1_sash!C142 -> Description | E186: =corner_1_sash!E150 -> Article number | I186: =corner_1_sash!I142 -> Quantity | J186: =corner_1_sash!J142 -> Unit
C187: =corner_1_sash!C143 -> Accessory kit door sash 20 kg | E187: 612 002.0000.000 | I187: =IF(AND(E3_Flügelgewicht_1<=20,E3_Flügelgewicht_2<=20),2,IF(OR(E3_Flügelgewicht_1<=20,E3_Flügelgewicht_2<=20),1,0)) -> 2 | J187: =corner_1_sash!J143 -> piece
C188: =corner_1_sash!C144 -> Accessory kit door sash 40 kg | E188: 612 004.0000.000 | I188: =IF(AND(E3_Flügelgewicht_1>20,E3_Flügelgewicht_2>20),2,IF(OR(E3_Flügelgewicht_1>20,E3_Flügelgewicht_2>20),1,0)) -> 0 | J188: =corner_1_sash!J144 -> piece
C189: =corner_1_sash!C145 -> Accessory kit installation | E189: 612 010.0000.000 | I189: 1 | J189: =corner_1_sash!J145 -> piece
C190: =corner_1_sash!C146 -> Accessory kit corner bracket | E190: 612 020.0000.000 | I190: 1 | J190: =corner_1_sash!J146 -> piece
C192: =corner_1_sash!C148 -> Sealing strips (optional, please see above to select or deselect)
C194: =corner_1_sash!C150 -> Description | E194: =corner_1_sash!E150 -> Article number | I194: =corner_1_sash!I150 -> Quantity | J194: =corner_1_sash!J150 -> Unit | K194: =corner_1_sash!K150 -> Sales length | L194: =corner_1_sash!L150 -> Cut length*
C195: Magnetic seals 180° | E195: ="612 430."&K195&".305" -> 612 430.2000.305 | I195: =IF(E3_Wahl_Dichtl_schließseitig="Yes",1,0) -> 1 | J195: ='corner_2_sashes_corner entry'!J161 -> pair | K195: =VLOOKUP(L195,$E$310:$I$311,2,TRUE) -> 2,000 mm | L195: =E3_HS -> 1,970 mm
C196: =corner_1_sash!C152 -> Vertical sealing strips between fixed and sliding sash | E196: ="612 440."&K196&".305" -> 612 440.2000.305 | I196: =IF(E3_Wahl_Dichtl_F_u_S="Yes",2,0) -> 0 | J196: =corner_1_sash!J152 -> pair | K196: =VLOOKUP(L196,$E$310:$I$311,2,TRUE) -> 2,000 mm | L196: =E3_HF-24 -> 1,934 mm
C198: =corner_1_sash!C154 -> Threshold profile (optional, please see above to select or deselect)
C200: =corner_1_sash!C156 -> Description | E200: =corner_1_sash!E156 -> Article number | I200: =corner_1_sash!I156 -> Quantity | J200: =corner_1_sash!J156 -> Unit | K200: =corner_1_sash!K156 -> Sales length | L200: =corner_1_sash!L156 -> Cut length*
C201: Threshold profile, cut straight, gloss-polished aluminium | E201: 612 450.1000.111 | I201: =IF(E3_Wahl_Schwallschutz="Yes, made of gloss-polished aluminium",IF(L201<=1000,1,2),0) -> 0 | J201: =corner_1_sash!J157 -> piece | K201: 1,000 mm | L201: =E3_LWt+2*E3_WSZ_final -> 915 mm
C202: Threshold profile, cut straight, transparent plastic | E202: 612 450.1000.305 | I202: =IF(E3_Wahl_Schwallschutz="Yes, made of transparent plastic",IF(L201<=1000,1,2),0) -> 0 | J202: =corner_1_sash!J158 -> piece | K202: 1,000 mm | L202: =E3_LWt+2*E3_WSZ_final -> 915 mm
C204: =corner_1_sash!C160 -> Wall profile (optional, please see above to select or deselect)
C206: =corner_1_sash!C162 -> Description | E206: =corner_1_sash!E162 -> Article number | I206: =corner_1_sash!I162 -> Quantity | J206: =corner_1_sash!J162 -> Unit | K206: =corner_1_sash!K162 -> Sales length | L206: =corner_1_sash!L162 -> Cut length*
C207: =corner_1_sash!C163 -> Wall profile incl. plastic insert | E207: ="612 520."&K207&".111" -> 612 520.2000.111 | I207: =IF(E3_Wahl_Wandanschluss="Profile",2,0) -> 0 | J207: =corner_1_sash!J163 -> piece | K207: =VLOOKUP(L207,$E$310:$I$311,2,TRUE) -> 2,000 mm | L207: =E3_H-50 -> 1,950 mm
C209: =corner_1_sash!C165 -> Floor profile (optional, please see above to select or deselect)
C211: =corner_1_sash!C167 -> Description | E211: =corner_1_sash!E167 -> Article number | I211: =corner_1_sash!I167 -> Quantity | J211: =corner_1_sash!J167 -> Unit | K211: =corner_1_sash!K167 -> Sales length
C212: =corner_1_sash!C168 -> Floor profile length 1000 mm | E212: ="612 530."&K212&".111" -> 612 530.1000.111 | I212: =IF(E3_Wahl_Bodenprofil="Yes",VLOOKUP("Ja",$K$225:$M$229,2,0),0) -> 0 | J212: =corner_1_sash!J168 -> piece | K212: 1,000 mm
C213: =corner_1_sash!C169 -> Floor profile length 1500 mm | E213: ="612 530."&K213&".111" -> 612 530.1500.111 | I213: =IF(E3_Wahl_Bodenprofil="Yes",VLOOKUP("Ja",$K$225:$M$229,3,0),0) -> 0 | J213: =corner_1_sash!J169 -> piece | K213: 1,500 mm
C215: =corner_1_sash!C171 -> Description | E215: =corner_1_sash!E171 -> Glass width of fixed sashes
C216: Approximate required length of floor profile for fixed sash 1.1 | E216: =E3_WF1.1 -> 435 mm
C217: Approximate required length of floor profile for fixed sash 1.2 | E217: =E3_WF1.2 -> 447 mm
C218: Approximate required length of floor profile for fixed sash 2 | E218: =E3_WF2 -> 1,186 mm
C219: Approximate required total length of floor profile | E219: =SUM(E216:H218) -> 2,068 mm
C221: Kaufvarianten
L223: Im Minimum-Fall
C224: Zusammenfassung | I224: Preis Summe | J224: Mögl.? | K224: Minimum und möglich? | L224: Anzahl 1000 mm | M224: Anzahl 1500 mm
C225: =C232 -> Variante 1: Alle einzeln | I225: =IF(J225="Ja",M235,"n.a.") -> 113 | J225: =E243 -> Ja | K225: =IF(AND(I225=MIN($I$225:$I$229),J225="Ja"),"Ja","Nein") -> Nein | L225: =IF(K225="Ja",I233,0) -> 0 | M225: =IF(K225="Ja",I234,0) -> 0
C226: =C245 -> Variante 2: Festflügel 1.1 einzeln, Rest zusammen | I226: =IF(J226="Ja",M248,"n.a.") -> n.a. | J226: =E256 -> Nein | K226: =IF(AND(I226=MIN($I$225:$I$229),J226="Ja"),"Ja","Nein") -> Nein | L226: =IF(K226="Ja",I246,0) -> 0 | M226: =IF(K226="Ja",I247,0) -> 0
C227: =C258 -> Variante 3: Festflügel 1.2 einzeln, Rest zusammen | I227: =IF(J227="Ja",M261,"n.a.") -> n.a. | J227: =E269 -> Nein | K227: =IF(AND(I227=MIN($I$225:$I$229),J227="Ja"),"Ja","Nein") -> Nein | L227: =IF(K227="Ja",I259,0) -> 0 | M227: =IF(K227="Ja",I260,0) -> 0
C228: =C271 -> Variante 4: Festflügel 2 einzeln, Rest zusammen | I228: =IF(J228="Ja",M274,"n.a.") -> 81 | J228: =E282 -> Ja | K228: =IF(AND(I228=MIN($I$225:$I$229),J228="Ja"),"Ja","Nein") -> Ja | L228: =IF(K228="Ja",I272,0) -> 1 | M228: =IF(K228="Ja",I273,0) -> 1
C229: =C284 -> Variante 5: Alle zusammen | I229: =IF(J229="Ja",M287,"n.a.") -> n.a. | J229: =E295 -> Nein | K229: =IF(AND(I229=MIN($I$225:$I$229),J229="Ja"),"Ja","Nein") -> Nein | L229: =IF(K229="Ja",I285,0) -> 0 | M229: =IF(K229="Ja",I286,0) -> 0
C232: Variante 1: Alle einzeln | E232: Artikelnummer | I232: Anzahl | J232: Einheit | K232: Verkaufslänge | L232: Brutto-VK-Preis | M232: Summe Brutto-VK-Preis
C233: Anzahl benötigter Bodenprofile in Länge 1000 mm | E233: ="612 XXX."&K233&".111" -> 612 XXX.1000.111 | I233: =COUNTIF($I$238:$J$240,K233) -> 2 | J233: Stück | K233: 1,000 mm | L233: =$F$316 -> 32.22 € | M233: =I233*L233 -> 64.44 €
C234: Anzahl benötigter Bodenprofile in Länge 1500 mm | E234: ="612 XXX."&K234&".111" -> 612 XXX.1500.111 | I234: =COUNTIF($I$238:$J$240,K234) -> 1 | J234: Stück | K234: 1,500 mm | L234: =$F$317 -> 48.33 € | M234: =I234*L234 -> 48.33 €
M235: =M233+M234 -> 112.77 €
E237: Länge ben. | I237: Verkaufslänge
C238: Bodenprofil bei Festflügel 1.1 | E238: =E216 -> 435 mm | I238: =IF(E238<=1500,VLOOKUP(E238,$E$313:$I$314,2,TRUE),"nicht vorhanden") -> 1,000 mm
C239: Bodenprofil bei Festflügel 1.2 | E239: =E217 -> 447 mm | I239: =IF(E239<=1500,VLOOKUP(E239,$E$313:$I$314,2,TRUE),"nicht vorhanden") -> 1,000 mm
C240: Bodenprofil bei Festflügel 2 | E240: =E218 -> 1,186 mm | I240: =IF(E240<=1500,VLOOKUP(E240,$E$313:$I$314,2,TRUE),"nicht vorhanden") -> 1,500 mm
C241: Summe | E241: =SUM(E238:F240) -> 2,068 mm
C243: Ist die Variante eine mögliche Lösung? | E243: =IF(OR(I238="nicht vorhanden",I239="nicht vorhanden",I240="nicht vorhanden"),"Nein","Ja") -> Ja
C245: Variante 2: Festflügel 1.1 einzeln, Rest zusammen | E245: Artikelnummer | I245: Anzahl | J245: Einheit | K245: Verkaufslänge | L245: Brutto-VK-Preis | M245: Summe Brutto-VK-Preis
C246: Anzahl benötigter Bodenprofile in Länge 1000 mm | E246: ="612 XXX."&K246&".111" -> 612 XXX.1000.111 | I246: =COUNTIF(H251:I253,K246) -> 1 | J246: Stück | K246: 1,000 mm | L246: =$F$316 -> 32.22 € | M246: =I246*L246 -> 32.22 €
C247: Anzahl benötigter Bodenprofile in Länge 1500 mm | E247: ="612 XXX."&K247&".111" -> 612 XXX.1500.111 | I247: =COUNTIF(H251:I253,K247) -> 0 | J247: Stück | K247: 1,500 mm | L247: =$F$317 -> 48.33 € | M247: =I247*L247 -> 0
M248: =M246+M247 -> 32.22 €
E250: Länge ben. | I250: Verkaufslänge
C251: Ungefähr benötigte Länge an Bodenprofil bei Festflügel 1.1 | E251: =E216 -> 435 mm | I251: =IF(E251<=1500,VLOOKUP(E251,$E$313:$I$314,2,TRUE),"nicht vorhanden") -> 1,000 mm
C252: Ungefähr in Summe benötigte Länge an Bodenprofil für Festflügel 1.2 und Festflügel 2 in Summe | E252: =E217+E218 -> 1,633 mm | I252: =IF(E252<=1500,VLOOKUP(E252,$E$313:$I$314,2,TRUE),"nicht vorhanden") -> nicht vorhanden
C254: Summe | E254: =SUM(E251:F253) -> 2,068 mm
C256: Ist die Variante eine mögliche Lösung? | E256: =IF(OR(I251="nicht vorhanden",I252="nicht vorhanden",I253="nicht vorhanden"),"Nein","Ja") -> Nein
C258: Variante 3: Festflügel 1.2 einzeln, Rest zusammen | E258: Artikelnummer | I258: Anzahl | J258: Einheit | K258: Verkaufslänge | L258: Brutto-VK-Preis | M258: Summe Brutto-VK-Preis
C259: Anzahl benötigter Bodenprofile in Länge 1000 mm | E259: ="612 XXX."&K259&".111" -> 612 XXX.1000.111 | I259: =COUNTIF(H264:I266,K259) -> 1 | J259: Stück | K259: 1,000 mm | L259: =$F$316 -> 32.22 € | M259: =I259*L259 -> 32.22 €
C260: Anzahl benötigter Bodenprofile in Länge 1500 mm | E260: ="612 XXX."&K260&".111" -> 612 XXX.1500.111 | I260: =COUNTIF(H264:I266,K260) -> 0 | J260: Stück | K260: 1,500 mm | L260: =$F$317 -> 48.33 € | M260: =I260*L260 -> 0
M261: =M259+M260 -> 32.22 €
E263: Länge ben. | I263: Verkaufslänge
C264: Ungefähr benötigte Länge an Bodenprofil bei Festflügel 1.2 | E264: =E217 -> 447 mm | I264: =IF(E264<=1500,VLOOKUP(E264,$E$313:$I$314,2,TRUE),"nicht vorhanden") -> 1,000 mm
C265: Ungefähr in Summe benötigte Länge an Bodenprofil für Festflügel 1.1 und Festflügel 2 in Summe | E265: =E216+E218 -> 1,621 mm | I265: =IF(E265<=1500,VLOOKUP(E265,$E$313:$I$314,2,TRUE),"nicht vorhanden") -> nicht vorhanden
C267: Summe | E267: =SUM(E264:F266) -> 2,068 mm
C269: Ist die Variante eine mögliche Lösung? | E269: =IF(OR(I264="nicht vorhanden",I265="nicht vorhanden",I266="nicht vorhanden"),"Nein","Ja") -> Nein
C271: Variante 4: Festflügel 2 einzeln, Rest zusammen | E271: Artikelnummer | I271: Anzahl | J271: Einheit | K271: Verkaufslänge | L271: Brutto-VK-Preis | M271: Summe Brutto-VK-Preis
C272: Anzahl benötigter Bodenprofile in Länge 1000 mm | E272: ="612 XXX."&K272&".111" -> 612 XXX.1000.111 | I272: =COUNTIF(H277:I279,K272) -> 1 | J272: Stück | K272: 1,000 mm | L272: =$F$316 -> 32.22 € | M272: =I272*L272 -> 32.22 €
C273: Anzahl benötigter Bodenprofile in Länge 1500 mm | E273: ="612 XXX."&K273&".111" -> 612 XXX.1500.111 | I273: =COUNTIF(H277:I279,K273) -> 1 | J273: Stück | K273: 1,500 mm | L273: =$F$317 -> 48.33 € | M273: =I273*L273 -> 48.33 €
M274: =M272+M273 -> 80.55 €
E276: Länge ben. | I276: Verkaufslänge
C277: Ungefähr benötigte Länge an Bodenprofil bei Festflügel 2 | E277: =E218 -> 1,186 mm | I277: =IF(E277<=1500,VLOOKUP(E277,$E$313:$I$314,2,TRUE),"nicht vorhanden") -> 1,500 mm
C278: Ungefähr in Summe benötigte Länge an Bodenprofil für Festflügel 1.1 und Festflügel 1.2 in Summe | E278: =E216+E217 -> 882 mm | I278: =IF(E278<=1500,VLOOKUP(E278,$E$313:$I$314,2,TRUE),"nicht vorhanden") -> 1,000 mm
C280: Summe | E280: =SUM(E277:F279) -> 2,068 mm
C282: Ist die Variante eine mögliche Lösung? | E282: =IF(OR(I277="nicht vorhanden",I278="nicht vorhanden",I279="nicht vorhanden"),"Nein","Ja") -> Ja
C284: Variante 5: Alle zusammen | E284: Artikelnummer | I284: Anzahl | J284: Einheit | K284: Verkaufslänge | L284: Brutto-VK-Preis | M284: Summe Brutto-VK-Preis
C285: Anzahl benötigter Bodenprofile in Länge 1000 mm | E285: ="612 XXX."&K285&".111" -> 612 XXX.1000.111 | I285: =COUNTIF(H290:I292,K285) -> 0 | J285: Stück | K285: 1,000 mm | L285: =$F$316 -> 32.22 € | M285: =I285*L285 -> 0
C286: Anzahl benötigter Bodenprofile in Länge 1500 mm | E286: ="612 XXX."&K286&".111" -> 612 XXX.1500.111 | I286: =COUNTIF(H290:I292,K286) -> 0 | J286: Stück | K286: 1,500 mm | L286: =$F$317 -> 48.33 € | M286: =I286*L286 -> 0
M287: =M285+M286 -> 0
E289: Länge ben. | I289: Verkaufslänge
C290: Ungefähr benötigte Länge an Bodenprofil für alle zusammen | E290: =E219 -> 2,068 mm | I290: =IF(E290<=1500,VLOOKUP(E290,$E$313:$I$314,2,TRUE),"nicht vorhanden") -> nicht vorhanden
C293: Summe | E293: =SUM(E290:F292) -> 2,068 mm
C295: Ist die Variante eine mögliche Lösung? | E295: =IF(OR(I290="nicht vorhanden",I291="nicht vorhanden",I292="nicht vorhanden"),"Nein","Ja") -> Nein
C297: =corner_1_sash!C210 -> Finger pull handle (optional, please see above to select or deselect)
C299: =corner_1_sash!C212 -> Description | E299: =corner_1_sash!E212 -> Article number | I299: =corner_1_sash!I212 -> Quantity | J299: =corner_1_sash!J212 -> Unit | N299: =corner_1_sash!N212 -> * With exactly vertical walls and horizontal floors.
C300: =corner_1_sash!C213 -> Round finger pull handle, diameter 39 mm (diameter of glass drill hole 10 mm), 1 pair for 1 sash (inside and outside), stainless steel | E300: 612 267.0000.020 | I300: =IF(E3_Wahl_Griff="Yes",2,0) -> 2 | J300: =corner_1_sash!J213 -> pair
C303: Tabelle Profillängen
D304: Laufschiene/Blende | E304: 0 | F304: 950 | I304: 950 | K304: mm
E305: 950.01 | F305: 1150 | I305: 1150 | K305: mm
E306: 1150.01 | F306: 1550 | I306: 1550 | K306: mm
E307: 1550.01 | F307: 2050 | I307: 2050 | K307: mm
E308: 2050.01 | F308: 4880 | I308: 4880 | K308: mm
D310: Wandprofil/Dichtleisten | E310: 0 | F310: 2000 | I310: 2000 | K310: mm
E311: 2000.01 | F311: 2490 | I311: 2490 | K311: mm
D313: Bodenprofil | E313: 0 | F313: 1000 | I313: 1000 | K313: mm
E314: 1000.01 | F314: 1500 | I314: 1500 | K314: mm
D316: Brutto-VK-Bodenprofil | E316: 1000 | F316: 32.22
E317: 1500 | F317: 48.33
B319: =Haftungsausschluss -> Willach assumes no liability for damage of any kind that could arise as a result of using this profile and glass dimensions calculator. (11.05.2016 Rev. 3)

Sheet recess_1_sash
B1: Aquant 40: recess shower with 1 sliding sash
B4: =corner_1_sash!B4 -> Drawings
B29: =corner_1_sash!B29 -> User input | H29: =corner_1_sash!H29 -> Legend & Formulas
I30: Legend W1 = System width of side 1 H = System height LS1 = Length of track profile/cover profile 1 LWt = Clearance with open door WS1 = Glass width of sliding sash 1 with handle WSZ = Additional width of sliding sash for handle HS1 = Glass height of sliding sash 1 WF1 = Glass width of fixed sash 1 WFA = Allowance for fixed sash for wall attachment WFZ1 = Additional width of fixed sash 1 HF1 = Glass height of fixed sash 1 UF = Overlap between sliding sash and fixed sash SMs = Size of gap on the closing side SMo1 = Size of gap on the opening side for sliding sash 1 | M30: =corner_1_sash!M30 -> Formulas
C31: W1 | D31: System width of side 1 (max. 1,700 mm) | E31: 1,500 | F31: (mm) | M31: WS1 = (W1 - WFA - WFZ1 + WSZ + UF - SMs) / 2
M32: WF1 = WS1 - WSZ + WFZ1
C33: H | D33: System height (max. 2,500 mm) | E33: 2,000 | F33: (mm) | M33: ="HS = H - "&N1_HSA_System -> HS = H - 30
M34: ="HF = H - "&N1_HFA_System -> HF = H - 42
C35: WFZ1 | D35: Additional width of fixed sash 1 | E35: 17 | F35: (mm) | M35: SMo1 = WFZ1 + WFA
M36: LS1 = W1
C37: Do you wish to attach the fixed sash to the wall via a wall profile or directly via silicon? | E37: Silicon | M37: LWt = W1 - WFA - WF1 - WSZ
C40: Do you wish to use the Aquant floor profile? | E40: No
C43: Do you wish to use vertical sealing strips between fixed and sliding sash? | E43: No
C46: Do you wish to use an optional threshold profile in the door area (in addition to the obligatory drip rail)?
D49: No
C52: Do you wish to use the Aquant bulb seal? | E52: Yes
C55: Do you wish to use the Aquant finger pull handle? | E55: Yes
B59: =Haftungsausschluss -> Willach assumes no liability for damage of any kind that could arise as a result of using this profile and glass dimensions calculator. (11.05.2016 Rev. 3)
B62: =corner_1_sash!B63 -> System dimensions
C64: =corner_1_sash!C65 -> System dimensions specified/recommended by Willach | H64: =corner_1_sash!H65 -> Deviations from system dimensions
C66: HSA | D66: =corner_1_sash!D67 -> Höhenabzugsmaß für Aufnahme Schiebeflügel | E66: 30 | F66: (mm) | H66: =corner_1_sash!H67 -> Deviation from system dimension? | L66: =IF(OR(N1_HSA_Wunsch="",N1_HSA_Wunsch=N1_HSA_System),"Nein","Ja") -> Nein | M66: =corner_1_sash!M67 -> Desired value | P66: =IF(OR(L66="Nein",O66=""),E66,O66) -> 30 | Q66: (mm)
C68: WSZ | D68: =corner_1_sash!D69 -> Additional width of sliding sash for handle | E68: 69 | F68: (mm) | H68: =corner_1_sash!H69 -> Deviation from system dimension? | L68: =IF(OR(N1_WSZ_Wunsch="",N1_WSZ_Wunsch=N1_WSZ_System),"Nein","Ja") -> Nein | M68: =corner_1_sash!M69 -> Desired value | P68: =IF(OR(L68="Nein",O68=""),E68,O68) -> 69 | Q68: (mm)
C70: WFA | D70: =corner_1_sash!D71 -> Allowance for fixed sash for wall attachment | E70: =IF(E37="Profil",14,3) -> 3 | F70: (mm) | H70: =corner_1_sash!H71 -> Deviation from system dimension? | L70: =IF(OR(N1_WFA_Wunsch="",N1_WFA_Wunsch=N1_WFA_System),"Nein","Ja") -> Nein | M70: =corner_1_sash!M71 -> Desired value | P70: =IF(OR(L70="Nein",O70=""),E70,O70) -> 3 | Q70: (mm)
C72: HFA | D72: =corner_1_sash!D73 -> Höhenabzugsmaß für Aufnahme Festflügel | E72: 42 | F72: (mm) | H72: =corner_1_sash!H73 -> Deviation from system dimension? | L72: =IF(OR(N1_HFA_Wunsch="",N1_HFA_Wunsch=N1_HFA_System),"Nein","Ja") -> Nein | M72: =corner_1_sash!M73 -> Desired value | P72: =IF(OR(L72="Nein",O72=""),E72,O72) -> 42 | Q72: (mm)
C74: UF | D74: =corner_1_sash!D75 -> Overlap between sliding sash and fixed sash | E74: =IF(E43="Yes",5,35) -> 35 | F74: (mm) | H74: =corner_1_sash!H75 -> Deviation from system dimension? | L74: =IF(OR(N1_UF_Wunsch="",N1_UF_Wunsch=N1_UF_System),"Nein","Ja") -> Nein | M74: =corner_1_sash!M75 -> Desired value | P74: =IF(OR(L74="Nein",O74=""),E74,O74) -> 35 | Q74: (mm)
C76: SMs | D76: =corner_1_sash!D77 -> Size of gap on the closing side | E76: 14 | F76: (mm) | H76: =corner_1_sash!H77 -> Deviation from system dimension? | L76: =IF(OR(N1_SMs_Wunsch="",N1_SMs_Wunsch=N1_SMs_System),"Nein","Ja") -> Nein | M76: =corner_1_sash!M77 -> Desired value | P76: =IF(OR(L76="Nein",O76=""),E76,O76) -> 14 | Q76: (mm)
C78: SMo | D78: =corner_1_sash!D79 -> Vorgabe Mindest-Spaltmaß öffnungsseitig | E78: =IF($E$37="Profile",40,20) -> 20 | F78: (mm) | H78: =corner_1_sash!H79 -> Deviation from system dimension? | L78: =IF(OR(N1_SMo_Wunsch="",N1_SMo_Wunsch=N1_SMo_System),"Nein","Ja") -> Nein | M78: =corner_1_sash!M79 -> Desired value | P78: =IF(OR(L78="Nein",O78=""),E78,O78) -> 20 | Q78: (mm)
D80: =corner_1_sash!D81 -> Weight of Aquant handle | E80: 0.2 | F80: (kg) | H80: =corner_1_sash!H81 -> Deviation from system dimension? | L80: =IF(OR(N1_Gewicht_Griff_Wunsch="",N1_Gewicht_Griff_Wunsch=N1_Gewicht_Griff_System),"Nein","Ja") -> Nein | M80: =corner_1_sash!M81 -> Desired value | P80: =IF(OR(L80="Nein",O80=""),E80,O80) -> 0.2 | Q80: (kg)
D82: Glasstärke | E82: 8 | F82: (mm)
C84: =IF(OR(L66="Ja",L70="Ja",L72="Ja",L74="Ja",L76="Ja",L78="Ja",L68="Ja",L80="Ja"),"Caution: you are deviating from the suggested system dimension, please check whether the system can be built with the value you have selected!","") -> 
B88: =corner_1_sash!B93 -> Automatic calculation of glass dimensions and profile lengths* | H88: =corner_1_sash!H93 -> Automatic check of door sash width, sash weight, aspect ratio and gap dimension on the opening side
C90: =corner_1_sash!C95 -> Glass dimensions of sliding sash 1 | I90: =corner_1_sash!I95 -> Check of the door sash width
C92: WS1 | D92: =corner_1_sash!D97 -> Glass width of sliding sash 1 with handle | E92: =(N1_W1-N1_WFA_final-N1_WFZ1+N1_WSZ_final+N1_UF_final-N1_SMs_final)/2 -> 785 | F92: (mm) | I92: WS1 | J92: =D92 -> Glass width of sliding sash 1 with handle | L92: =N1_WS1 -> 785 | M92: ≥ | N92: 380 | O92: (mm) | Q92: =IF(L92>=N92,"Yes","No") -> Yes
C94: HS1 | D94: =corner_1_sash!D99 -> Glass height of sliding sash 1 | E94: =N1_H-N1_HSA_final -> 1,970 | F94: (mm) | I94: =corner_1_sash!I99 -> Check of the sash weight
C96: Please note that drill holes are required, please refer to the relevant drilling drawings! | J96: =corner_1_sash!J101 -> Weight of sliding sash 1 | L96: =ROUND(N1_WS1/1000*N1_HS/1000*2.5*N1_Glasstärke+N1_Gewicht_Griff_final,0) -> 31 | M96: ≤ | N96: 40 | O96: (kg) | Q96: =IF(L96<=N96,"Yes","No") -> Yes
I98: =corner_1_sash!I103 -> Check of the aspect ratio
C99: =corner_1_sash!C104 -> Glass dimensions of fixed sash 1
J100: =corner_1_sash!J105 -> Height-to-width ratio of sliding sash 1 | L100: =ROUND(N1_HS/N1_WS1,2) -> 2.51 | M100: ≤ | N100: 5 | Q100: =IF(L100<=N100,"Yes","No") -> Yes
C101: WF1 | D101: =corner_1_sash!D106 -> Glass width of fixed sash 1 | E101: =N1_WS1-N1_WSZ_final+N1_WFZ1 -> 733 | F101: (mm)
C103: HF1 | D103: =corner_1_sash!D108 -> Glass height of fixed sash 1 | E103: =N1_H-N1_HFA_final -> 1,958 | F103: (mm) | I103: =corner_1_sash!I108 -> Check of the gap dimension on the opening side
C105: =corner_1_sash!C116&"**" -> Length of track profile/cover profile 1** | I105: =C78&1 -> SMo1 | J105: =corner_1_sash!J110 -> Gap dimension on the opening side for sliding sash 1 | L105: =N1_WFZ1+N1_WFA_final -> 20 | M105: ≥ | N105: =P78 -> 20 | O105: (mm) | Q105: =IF(L105>=N105,"Yes","No") -> Yes
I106: =IF(Q105="No","Note: if the gap on the opening side is too small , please increase WFZ1.","") -> 
C107: LS1 | D107: =corner_1_sash!D118&"**" -> Length of track profile/cover profile 1** | E107: =N1_W1 -> 1,500 | F107: (mm)
I108: =IF(OR(Q92="No",Q96="No",Q100="No",Q105="No",),"Caution: the technical restrictions have not been observed; please change your planning!","") -> 
C109: =corner_1_sash!C124 -> For information: clearance with open door
C111: LWt | D111: =corner_1_sash!D126 -> Clearance with open door | E111: =N1_W1-N1_WFA_System-N1_WF1-N1_WSZ_final -> 695 | F111: (mm)
B114: =Haftungsausschluss -> Willach assumes no liability for damage of any kind that could arise as a result of using this profile and glass dimensions calculator. (11.05.2016 Rev. 3)
B116: =corner_1_sash!B131 -> Order list
C118: =corner_1_sash!C133 -> Profile sets
C120: =corner_1_sash!C135 -> Description | E120: =corner_1_sash!E135 -> Article number | I120: =corner_1_sash!I135 -> Quantity | J120: =corner_1_sash!J135 -> Unit | K120: =corner_1_sash!K135 -> Sales length | L120: =corner_1_sash!L135&"/**" -> Cut length*/**
C121: =corner_1_sash!C136 -> Profile set for side 1 | E121: =IF(K121<1000,"612 070.0"&K121&".111","612 070."&K121&".111") -> 612 070.1550.111 | I121: 1 | J121: =corner_1_sash!J136 -> piece | K121: =VLOOKUP(L121,$E$163:$I$167,2,TRUE) -> 1,550 mm | L121: =N1_LS1 -> 1,500 mm
C123: =corner_1_sash!C140 -> Accessory kits
C125: =corner_1_sash!C142 -> Description | E125: =corner_1_sash!E142 -> Article number | I125: =corner_1_sash!I142 -> Quantity | J125: =corner_1_sash!J142 -> Unit
C126: =corner_1_sash!C143 -> Accessory kit door sash 20 kg | E126: 612 002.0000.000 | I126: =IF(N1_Flügelgewicht_1<=20,1,0) -> 0 | J126: =corner_1_sash!J143 -> piece
C127: =corner_1_sash!C144 -> Accessory kit door sash 40 kg | E127: 612 004.0000.000 | I127: =IF(N1_Flügelgewicht_1>20,1,0) -> 1 | J127: =corner_1_sash!J144 -> piece
C128: =corner_1_sash!C145 -> Accessory kit installation | E128: 612 010.0000.000 | I128: 1 | J128: =corner_1_sash!J145 -> piece
C130: =corner_1_sash!C148 -> Sealing strips (optional, please see above to select or deselect)
C132: =corner_1_sash!C150 -> Description | E132: =corner_1_sash!E150 -> Article number | I132: =corner_1_sash!I150 -> Quantity | J132: =corner_1_sash!J150 -> Unit | K132: =corner_1_sash!K150 -> Sales length | L132: =corner_1_sash!L150 -> Cut length*
C133: =corner_1_sash!C151 -> Bulb seal | E133: ="612 410."&K133&".305" -> 612 410.2000.305 | I133: =IF(N1_Wahl_Dichtl_schließseitig="Yes",1,0) -> 1 | J133: =corner_1_sash!J151 -> piece | K133: =VLOOKUP(L133,$E$169:$I$170,2,TRUE) -> 2,000 mm | L133: =N1_H - 60 -> 1,940 mm
C134: =corner_1_sash!C152 -> Vertical sealing strips between fixed and sliding sash | E134: ="612 440."&K134&".305" -> 612 440.2000.305 | I134: =IF(N1_Wahl_Dichtl_F_u_S="Yes",1,0) -> 0 | J134: =corner_1_sash!J152 -> pair | K134: =VLOOKUP(L134,$E$169:$I$170,2,TRUE) -> 2,000 mm | L134: =N1_HF-24 -> 1,934 mm
C136: =corner_1_sash!C154 -> Threshold profile (optional, please see above to select or deselect)
C138: =corner_1_sash!C156 -> Description | E138: =corner_1_sash!E156 -> Article number | I138: =corner_1_sash!I156 -> Quantity | J138: =corner_1_sash!J156 -> Unit | K138: =corner_1_sash!K156 -> Sales length | L138: =corner_1_sash!L156 -> Cut length*
C139: =corner_1_sash!C157 -> Threshold profile, cut straight, gloss-polished aluminium | E139: 612 450.1000.111 | I139: =IF(N1_Wahl_Schwallschutz="Yes, made of gloss-polished aluminium",1,0) -> 0 | J139: =corner_1_sash!J157 -> piece | K139: 1000 mm | L139: =N1_LWt+N1_WSZ_final -> 764 mm
C140: =corner_1_sash!C158 -> Threshold profile, cut straight, transparent plastic | E140: 612 450.1000.305 | I140: =IF(N1_Wahl_Schwallschutz="Yes, made of transparent plastic",1,0) -> 0 | J140: =corner_1_sash!J158 -> piece | K140: 1000 mm | L140: =N1_LWt+N1_WSZ_final -> 764 mm
C142: =corner_1_sash!C160 -> Wall profile (optional, please see above to select or deselect)
C144: =corner_1_sash!C162 -> Description | E144: =corner_1_sash!E162 -> Article number | I144: =corner_1_sash!I162 -> Quantity | J144: =corner_1_sash!J162 -> Unit | K144: =corner_1_sash!K162 -> Sales length | L144: =corner_1_sash!L162 -> Cut length*
C145: =corner_1_sash!C163 -> Wall profile incl. plastic insert | E145: ="612 520."&K145&".111" -> 612 520.2000.111 | I145: =IF(N1_Wahl_Wandanschluss="Profile",1,0) -> 0 | J145: =corner_1_sash!J163 -> piece | K145: =VLOOKUP(L145,$E$169:$I$170,2,TRUE) -> 2,000 mm | L145: =N1_H-50 -> 1,950 mm
C147: =corner_1_sash!C165 -> Floor profile (optional, please see above to select or deselect)
C149: =corner_1_sash!C167 -> Description | E149: =corner_1_sash!E167 -> Article number | I149: =corner_1_sash!I167 -> Quantity | J149: =corner_1_sash!J167 -> Unit | K149: =corner_1_sash!K167 -> Sales length
C150: =corner_1_sash!C168 -> Floor profile length 1000 mm | E150: ="612 530."&K150&".111" -> 612 530.1000.111 | I150: =IF(N1_Wahl_Bodenprofil="No",0,IF(E154<=1000,1,0)) -> 0 | J150: =corner_1_sash!J168 -> piece | K150: 1,000 mm
C151: =corner_1_sash!C169 -> Floor profile length 1500 mm | E151: ="612 530."&K151&".111" -> 612 530.1500.111 | I151: =IF(N1_Wahl_Bodenprofil="No",0,IF(E154>1000,1,0)) -> 0 | J151: =corner_1_sash!J169 -> piece | K151: 1,500 mm
N152: =corner_1_sash!N212 -> * With exactly vertical walls and horizontal floors.
C153: =corner_1_sash!C171 -> Description | E153: =corner_1_sash!E171 -> Glass width of fixed sashes
C154: =corner_1_sash!C172 -> Approximate required length of floor profile for fixed sash 1 | E154: =N1_WF1 -> 733 mm
C156: =corner_1_sash!C210 -> Finger pull handle (optional, please see above to select or deselect) | N156: ** We recommend that you deduct an additional 2 mm so that the profile can be inserted between the walls.
C158: =corner_1_sash!C212 -> Description | E158: =corner_1_sash!E212 -> Article number | I158: =corner_1_sash!I212 -> Quantity | J158: =corner_1_sash!J212 -> Unit
C159: =corner_1_sash!C213 -> Round finger pull handle, diameter 39 mm (diameter of glass drill hole 10 mm), 1 pair for 1 sash (inside and outside), stainless steel | E159: 612 267.0000.020 | I159: =IF(N1_Wahl_Griff="Yes",1,0) -> 1 | J159: =corner_1_sash!J213 -> pair
C162: Tabelle Profillängen
D163: Laufschiene/Blende | E163: 0 | F163: 950 | I163: 950 | K163: mm
E164: 950.01 | F164: 1150 | I164: 1150 | K164: mm
E165: 1150.01 | F165: 1550 | I165: 1550 | K165: mm
E166: 1550.01 | F166: 2050 | I166: 2050 | K166: mm
E167: 2050.01 | F167: 4880 | I167: 4880 | K167: mm
D169: Wandprofil/Dichtleisten | E169: 0 | F169: 2000 | I169: 2000 | K169: mm
E170: 2000.01 | F170: 2490 | I170: 2490 | K170: mm
B172: =Haftungsausschluss -> Willach assumes no liability for damage of any kind that could arise as a result of using this profile and glass dimensions calculator. (11.05.2016 Rev. 3)

Sheet recess_2_sashes
B1: Aquant 40: recess shower with 2 sliding sashes
B4: =corner_1_sash!B4 -> Drawings
B29: =corner_1_sash!B29 -> User input | H29: =corner_1_sash!H29 -> Legend & Formulas
I30: Legend W1 = System width of side 1 W1.1 = System width of side 1 section 1 W1.2 = System width of side 1 section 2 H = System height LS1 = Length of track profile/cover profile 1 LWt = Clearance with open doors WS1.1 = Glass width of sliding sash 1.1 with handle WS1.2 = Glass width of sliding sash 1.2 with handle WSZ = Additional width of sliding sash for handle HS1.1 = Glass height of sliding sash 1.1 HS1.2 = Glass height of sliding sash 1.2 WF1.1 = Glass width of fixed sash 1.1 WF1.2 = Glass width of fixed sash 1.2 WFA = Allowance for fixed sash for wall attachment WFZ1.1 = Additional width of fixed sash 1.1 WFZ1.2 = Additional width of fixed sash 1.2 HF1.1 = Glass height of fixed sash 1.1 HF1.2 = Glass height of fixed sash 1.2 UF = Overlap between sliding sash and fixed sash SMs = Size of gap on the closing side SMo1.1 = Size of gap on the opening side for sliding sash 1.1 SMo1.2 = Size of gap on the opening side for sliding sash 1.2 | M30: =corner_1_sash!M30 -> Formulas
C31: W1 | D31: System width of side 1 (max. 2,000 mm) | E31: 2,000 | F31: (mm) | M31: W1.2 = W1 - W1.1
M32: WS1.1 = (W1.1 - WFA - WFZ1.1 + WSZ + UF - SMs) / 2
C33: W1.1 | D33: System width of side 1 section 1 | E33: 1,000 | F33: (mm) | M33: WF1.1 = WS1.1 - WSZ + WFZ1.1
M34: WS1.2 = (W1.2 - WFA - WFZ1.2 + WSZ + UF - SMs) / 2
C35: W1.2 | D35: System width of side 1 section 2 | E35: =N2_W1-N2_W1.1 -> 1,000 | F35: (mm) | M35: WF1.2 = WS1.2 - WSZ + WFZ1.2
M36: ="HS1.1 = HS1.2 = H - "&N2_HSA_System -> HS1.1 = HS1.2 = H - 30
C37: H | D37: System height (max. 2,500 mm) | E37: 2,000 | F37: (mm) | M37: ="HF1.1 = HF1.2 = H - "&N2_HFA_System -> HF1.1 = HF1.2 = H - 42
M38: SMo1.1 = WFZ1.1 + WFA
C39: WFZ1.1 | D39: Additional width of fixed sash 1.1 | E39: 17 | F39: (mm) | M39: SMo1.2 = WFZ1.2 + WFA
M40: LS = W1
C41: WFZ1.2 | D41: Additional width of fixed sash 1.2 | E41: 17 | F41: (mm) | M41: LWt = W1 - 2 WFA - WF1.1 - WF1.2 - 2 WSZ - 2 SMs
C43: Do you wish to attach the fixed sash to the wall via a wall profile or directly via silicon? | E43: Silicon
C46: Do you wish to use the Aquant floor profile? | E46: No
C49: Do you wish to use vertical sealing strips between fixed and sliding sash? | E49: No
C52: Do you wish to use an optional threshold profile in the door area (in addition to the obligatory drip rail)?
D55: No
C58: Do you wish to use the Aquant magnetic seals 180°? | E58: Yes
C61: Do you wish to use the Aquant finger pull handle? | E61: Yes
B65: =Haftungsausschluss -> Willach assumes no liability for damage of any kind that could arise as a result of using this profile and glass dimensions calculator. (11.05.2016 Rev. 3)
B68: =corner_1_sash!B63 -> System dimensions
C70: =corner_1_sash!C65 -> System dimensions specified/recommended by Willach | H70: =corner_1_sash!H65 -> Deviations from system dimensions
C72: HSA | D72: =corner_1_sash!D67 -> Höhenabzugsmaß für Aufnahme Schiebeflügel | E72: 30 | F72: (mm) | H72: vom Systemmaß abweichen? | L72: =IF(OR(N2_HSA_Wunsch="",N2_HSA_Wunsch=N2_HSA_System),"Nein","Ja") -> Nein | M72: gewünschter Wert | P72: =IF(OR(L72="Nein",O72=""),E72,O72) -> 30 | Q72: (mm)
C74: WSZ | D74: =corner_1_sash!D69 -> Additional width of sliding sash for handle | E74: 69 | F74: (mm) | H74: =corner_1_sash!$H$69 -> Deviation from system dimension? | L74: =IF(OR(N2_WSZ_Wunsch="",N2_WSZ_Wunsch=N2_WSZ_System),"Nein","Ja") -> Nein | M74: =corner_1_sash!$M$69 -> Desired value | P74: =IF(OR(L74="Nein",O74=""),E74,O74) -> 69 | Q74: (mm)
C76: WFA | D76: =corner_1_sash!D71 -> Allowance for fixed sash for wall attachment | E76: =IF(E43="Profile",14,3) -> 3 | F76: (mm) | H76: =corner_1_sash!$H$71 -> Deviation from system dimension? | L76: =IF(OR(N2_WFA_Wunsch="",N2_WFA_Wunsch=N2_WFA_System),"Nein","Ja") -> Nein | M76: =corner_1_sash!$M$71 -> Desired value | P76: =IF(OR(L76="Nein",O76=""),E76,O76) -> 3 | Q76: (mm)
C78: HFA | D78: =corner_1_sash!D73 -> Höhenabzugsmaß für Aufnahme Festflügel | E78: 42 | F78: (mm) | H78: vom Systemmaß abweichen? | L78: =IF(OR(N2_HFA_Wunsch="",N2_HFA_Wunsch=N2_HFA_System),"Nein","Ja") -> Nein | M78: gewünschter Wert | P78: =IF(OR(L78="Nein",O78=""),E78,O78) -> 42 | Q78: (mm)
C80: UF | D80: =corner_1_sash!D75 -> Overlap between sliding sash and fixed sash | E80: =IF(E49="Yes",5,35) -> 35 | F80: (mm) | H80: =corner_1_sash!$H$75 -> Deviation from system dimension? | L80: =IF(OR(N2_UF_Wunsch="",N2_UF_Wunsch=N2_UF_System),"Nein","Ja") -> Nein | M80: =corner_1_sash!$M$75 -> Desired value | P80: =IF(OR(L80="Nein",O80=""),E80,O80) -> 35 | Q80: (mm)
C82: SMs | D82: =corner_1_sash!D77 -> Size of gap on the closing side | E82: 10 | F82: (mm) | H82: =corner_1_sash!$H$77 -> Deviation from system dimension? | L82: =IF(OR(N2_SMs_Wunsch="",N2_SMs_Wunsch=N2_SMs_System),"Nein","Ja") -> Nein | M82: =corner_1_sash!$M$77 -> Desired value | P82: =IF(OR(L82="Nein",O82=""),E82,O82) -> 10 | Q82: (mm)
C84: SMo | D84: =corner_1_sash!D79 -> Vorgabe Mindest-Spaltmaß öffnungsseitig | E84: =IF($E$43="Profile",40,20) -> 20 | F84: (mm) | H84: vom Systemmaß abweichen? | L84: =IF(OR(N2_SMo_Wunsch="",N2_SMo_Wunsch=N2_SMo_System),"Nein","Ja") -> Nein | M84: gewünschter Wert | P84: =IF(OR(L84="Nein",O84=""),E84,O84) -> 20 | Q84: (mm)
D86: =corner_1_sash!D81 -> Weight of Aquant handle | E86: 0.2 | F86: (kg) | H86: =corner_1_sash!$H$81 -> Deviation from system dimension? | L86: =IF(OR(N2_Griff_Wunsch="",N2_Griff_Wunsch=N2_Griff_System),"Nein","Ja") -> Nein | M86: =corner_1_sash!$M$81 -> Desired value | P86: =IF(OR(L86="Nein",O86=""),E86,O86) -> 0.2 | Q86: (kg)
D88: Glasstärke | E88: 8 | F88: (mm)
C90: =IF(OR(L72="Ja",L76="Ja",L78="Ja",L80="Ja",L82="Ja",L84="Ja",L74="Ja",L86="Ja"),"Caution: you are deviating from the suggested system dimension, please check whether the system can be built with the value you have selected!","") -> 
B94: =corner_1_sash!B93 -> Automatic calculation of glass dimensions and profile lengths* | H94: =corner_1_sash!H93 -> Automatic check of door sash width, sash weight, aspect ratio and gap dimension on the opening side
C96: =corner_2_sashes_on_one_side!C125 -> Glass dimensions of sliding sash 1.1 | I96: =corner_1_sash!I95 -> Check of the door sash width
C98: WS1.1 | D98: =corner_2_sashes_on_one_side!D127 -> Glass width of sliding sash 1.1 with handle | E98: =(N2_W1.1-N2_WFA_final-N2_WFZ1.1+N2_WSZ_final+N2_UF_final-N2_SMs_final)/2 -> 537 | F98: (mm) | I98: WS1.1 | J98: =corner_2_sashes_on_one_side!J127 -> Glass width of sliding sash 1.1 with handle | L98: =N2_WS1 -> 537 | M98: ≥ | N98: 380 | O98: (mm) | Q98: =IF(L98>=N98,"Yes","No") -> Yes
C100: HS1.1 | D100: =corner_2_sashes_on_one_side!D129 -> Glass height of sliding sash 1.1 | E100: =N2_H-N2_HSA_final -> 1,970 | F100: (mm) | I100: WS1.2 | J100: =corner_2_sashes_on_one_side!J129 -> Glass width of sliding sash 1.2 with handle | L100: =N2_WS2 -> 537 | M100: ≥ | N100: 380 | O100: (mm) | Q100: =IF(L100>=N100,"Yes","No") -> Yes
C102: Please note that drill holes are required, please refer to the relevant drilling drawings! | I102: =corner_1_sash!I99 -> Check of the sash weight
J104: =corner_2_sashes_on_one_side!J133 -> Weight of sliding sash 1.1 | L104: =ROUND(N2_WS1/1000*N2_HS/1000*N2_Glasstärke*2.5+N2_Griff_final,0) -> 21 | M104: ≤ | N104: 40 | O104: (kg) | Q104: =IF(L104<=N104,"Yes","No") -> Yes
C105: =corner_2_sashes_on_one_side!C134 -> Glass dimensions of sliding sash 1.2
J106: =corner_2_sashes_on_one_side!J135 -> Weight of sliding sash 1.2 | L106: =ROUND(N2_WS2/1000*E109/1000*2.5*N2_Glasstärke+N2_Griff_final,0) -> 21 | M106: ≤ | N106: 40 | O106: (kg) | Q106: =IF(OR(L106<N106,L106=N106),"Yes","No") -> Yes
C107: WS1.2 | D107: =corner_2_sashes_on_one_side!D136 -> Glass width of sliding sash 1.2 with handle | E107: =(N2_W1.2-N2_WFA_final-N2_WFZ1.2+N2_WSZ_final+N2_UF_final-N2_SMs_final)/2 -> 537 | F107: (mm)
I108: =corner_1_sash!I103 -> Check of the aspect ratio
C109: HS1.2 | D109: =corner_2_sashes_on_one_side!D138 -> Glass height of sliding sash 1.2 | E109: =N2_H-N2_HSA_final -> 1,970 | F109: (mm)
J110: =corner_2_sashes_on_one_side!J139 -> Height-to-width ratio of sliding sash 1.1 | L110: =ROUND(N2_HS/N2_WS1,2) -> 3.67 | M110: ≤ | N110: 5 | Q110: =IF(L110<=N110,"Yes","No") -> Yes
C111: Please note that drill holes are required, please refer to the relevant drilling drawings!
J113: =corner_2_sashes_on_one_side!J142 -> Height-to-width ratio of sliding sash 1.2 | L113: =ROUND(E109/N2_WS2,2) -> 3.67 | M113: ≤ | N113: 5 | Q113: =IF(L113<=N113,"Yes","No") -> Yes
C114: =corner_2_sashes_on_one_side!C143 -> Glass dimensions of fixed sash 1.1
C116: WF1.1 | D116: =corner_2_sashes_on_one_side!D145 -> Glass width of fixed sash 1.1 | E116: =N2_WS1+N2_WFZ1.1-N2_WSZ_final -> 485 | F116: (mm) | I116: =corner_1_sash!I108 -> Check of the gap dimension on the opening side
C118: HF1.1 | D118: =corner_2_sashes_on_one_side!D147 -> Glass height of fixed sash 1.1 | E118: =N2_H-N2_HFA_final -> 1,958 | F118: (mm) | I118: =C84&"1.1" -> SMo1.1 | J118: =corner_2_sashes_on_one_side!J147 -> Gap dimension on the opening side for sliding sash 1.1 | L118: =N2_WFA_final+N2_WFZ1.1 -> 20 | M118: ≥ | N118: =P84 -> 20 | O118: (mm) | Q118: =IF(L118>=N118,"Yes","No") -> Yes
I119: =C84&"1.2" -> SMo1.2 | J119: =corner_2_sashes_on_one_side!J148 -> Gap dimension on the opening side for sliding sash 1.2 | L119: =N2_WFA_final+N2_WFZ1.2 -> 20 | M119: ≥ | N119: =N118 -> 20 | O119: (mm) | Q119: =IF(L119>=N119,"Yes","No") -> Yes
C120: =corner_2_sashes_on_one_side!C149 -> Glass dimensions of fixed sash 1.2 | I120: =IF(OR(Q118="No",Q119="No"),"Note: if the gap on the opening side is too small , please increase WFZ1.1 or WFZ1.2.","") -> 
C122: WF1.2 | D122: =corner_2_sashes_on_one_side!D151 -> Glass width of fixed sash 1.2 | E122: =N2_WS2+N2_WFZ1.2-N2_WSZ_final -> 485 | F122: (mm)
I123: =IF(OR(Q98="No",Q100="No",Q104="No",Q106="No",Q110="No",Q113="No",Q118="No",Q119="No"),"Caution: the technical restrictions have not been observed; please change your planning!","") -> 
C124: HF1.2 | D124: =corner_2_sashes_on_one_side!D153 -> Glass height of fixed sash 1.2 | E124: =N2_HF -> 1,958 | F124: (mm)
C126: =corner_1_sash!$C$116&"**" -> Length of track profile/cover profile 1**
C128: LS1 | D128: =corner_1_sash!$D$118&"**" -> Length of track profile/cover profile 1** | E128: =N2_W1 -> 2,000 | F128: (mm)
C130: ='corner_2_sashes_corner entry'!C135:E135 -> For information: clearance with open doors
C132: LWt | D132: ='corner_2_sashes_corner entry'!D137 -> Clearance with open doors | E132: =N2_W1-2*N2_WFA_final-2*N2_WSZ_final-N2_WF1.1-N2_WF1.2 -> 886 | F132: (mm)
B135: =Haftungsausschluss -> Willach assumes no liability for damage of any kind that could arise as a result of using this profile and glass dimensions calculator. (11.05.2016 Rev. 3)
B137: =corner_1_sash!$B$131 -> Order list
C139: =corner_1_sash!$C$133 -> Profile sets
C141: =corner_1_sash!$C$135 -> Description | E141: =corner_1_sash!$E$135 -> Article number | I141: =corner_1_sash!$I$135 -> Quantity | J141: =corner_1_sash!$J$135 -> Unit | K141: =corner_1_sash!$K$135 -> Sales length | L141: =recess_1_sash!L120 -> Cut length*/**
C142: =corner_1_sash!$C$136 -> Profile set for side 1 | E142: =IF(K142<1000,"612 070.0"&K142&".111","612 070."&K142&".111") -> 612 070.2050.111 | I142: 1 | J142: =corner_1_sash!$J$136 -> piece | K142: =VLOOKUP(L142,$E$220:$I$224,2,TRUE) -> 2,050 mm | L142: =N2_LS -> 2,000 mm
C144: =corner_1_sash!$C$140 -> Accessory kits
C146: =corner_1_sash!$C$142 -> Description | E146: =corner_1_sash!$E$142 -> Article number | I146: =corner_1_sash!$I$142 -> Quantity | J146: =corner_1_sash!$J$142 -> Unit
C147: =corner_1_sash!$C$143 -> Accessory kit door sash 20 kg | E147: 612 002.0000.000 | I147: =IF(AND(N2_Flügelgewicht_1<=20,N2_Flügelgewicht_2<=20),2,IF(OR(N2_Flügelgewicht_1<=20,N2_Flügelgewicht_2<=20),1,0)) -> 0 | J147: =corner_1_sash!$J$143 -> piece
C148: =corner_1_sash!$C$144 -> Accessory kit door sash 40 kg | E148: 612 004.0000.000 | I148: =IF(AND(N2_Flügelgewicht_1>20,N2_Flügelgewicht_2>20),2,IF(OR(N2_Flügelgewicht_1>20,N2_Flügelgewicht_2>20),1,0)) -> 2 | J148: =corner_1_sash!$J$144 -> piece
C149: =corner_1_sash!$C$145 -> Accessory kit installation | E149: 612 010.0000.000 | I149: 1 | J149: =corner_1_sash!$J$145 -> piece
C151: =corner_1_sash!$C$148 -> Sealing strips (optional, please see above to select or deselect)
C153: =corner_1_sash!$C$150 -> Description | E153: =corner_1_sash!$E$150 -> Article number | I153: =corner_1_sash!$I$150 -> Quantity | J153: =corner_1_sash!$J$150 -> Unit | K153: =corner_1_sash!$K$150 -> Sales length | L153: =corner_1_sash!$L$150 -> Cut length*
C154: =corner_2_sashes_on_one_side!C195 -> Magnetic seals 180° | E154: ="612 430."&K154&".305" -> 612 430.2000.305 | I154: =IF(N2_Wahl_Dichtl_schließseitig ="Yes",1,0) -> 1 | J154: =corner_2_sashes_on_one_side!J195 -> pair | K154: =VLOOKUP(L154,$E$226:$I$227,2,TRUE) -> 2,000 mm | L154: =N2_HS -> 1,970 mm
C155: =corner_1_sash!$C$152 -> Vertical sealing strips between fixed and sliding sash | E155: ="612 440."&K155&".305" -> 612 440.2000.305 | I155: =IF(N2_Wahl_Dichtl_F_u_S="Yes", 2,0) -> 0 | J155: =corner_1_sash!$J$152 -> pair | K155: =VLOOKUP(L155,$E$226:$I$227,2,TRUE) -> 2,000 mm | L155: =N2_HF-24 -> 1,934 mm
C157: =corner_1_sash!$C$154 -> Threshold profile (optional, please see above to select or deselect)
C159: =corner_1_sash!$C$156 -> Description | E159: =corner_1_sash!$E$156 -> Article number | I159: =corner_1_sash!$I$156 -> Quantity | J159: =corner_1_sash!$J$156 -> Unit | K159: =corner_1_sash!$K$156 -> Sales length | L159: =corner_1_sash!$L$156 -> Cut length*
C160: =corner_2_sashes_on_one_side!C201 -> Threshold profile, cut straight, gloss-polished aluminium | E160: 612 450.1000.111 | I160: =IF(N2_Wahl_Schwallschutz="Yes, made of gloss-polished aluminium",IF(L160<=1000,1,2),0) -> 0 | J160: =corner_1_sash!$J$157 -> piece | K160: 1,000 mm | L160: =N2_LWt+2*N2_WSZ_final -> 1,024 mm
C161: =corner_2_sashes_on_one_side!C202 -> Threshold profile, cut straight, transparent plastic | E161: 612 450.1000.305 | I161: =IF(N2_Wahl_Schwallschutz="Yes, made of transparent plastic",IF(L160<=1000,1,2),0) -> 0 | J161: =corner_1_sash!$J$158 -> piece | K161: 1,000 mm | L161: =N2_LWt+2*N2_WSZ_final -> 1,024 mm
C163: =corner_1_sash!$C$160 -> Wall profile (optional, please see above to select or deselect)
C165: =corner_1_sash!$C$162 -> Description | E165: =corner_1_sash!$E$162 -> Article number | I165: =corner_1_sash!$I$162 -> Quantity | J165: =corner_1_sash!$J$162 -> Unit | K165: =corner_1_sash!$K$162 -> Sales length | L165: =corner_1_sash!$L$162 -> Cut length*
C166: =corner_1_sash!$C$163 -> Wall profile incl. plastic insert | E166: ="612 520."&K166&".111" -> 612 520.2000.111 | I166: =IF(N2_Wahl_Wandanschluss="Profile",2,0) -> 0 | J166: =corner_1_sash!$J$163 -> piece | K166: =VLOOKUP(L166,$E$226:$I$227,2,TRUE) -> 2,000 mm | L166: =N2_H-50 -> 1,950 mm
C168: =corner_1_sash!$C$165 -> Floor profile (optional, please see above to select or deselect)
C170: =corner_1_sash!$C$167 -> Description | E170: =corner_1_sash!$E$167 -> Article number | I170: =corner_1_sash!$I$167 -> Quantity | J170: =corner_1_sash!$J$167 -> Unit | K170: =corner_1_sash!$K$167 -> Sales length
C171: =corner_1_sash!$C$168 -> Floor profile length 1000 mm | E171: ="612 530."&K171&".111" -> 612 530.1000.111 | I171: =IF(N2_Wahl_Bodenprofil="Yes",L185,0) -> 0 | J171: =corner_1_sash!$J$168 -> piece | K171: 1,000 mm
C172: =corner_1_sash!$C$169 -> Floor profile length 1500 mm | E172: ="612 530."&K172&".111" -> 612 530.1500.111 | I172: =IF(N2_Wahl_Bodenprofil="Yes",M185,0) -> 0 | J172: =corner_1_sash!$J$169 -> piece | K172: 1,500 mm
C174: =corner_1_sash!$C$171 -> Description | E174: =corner_1_sash!$E$171 -> Glass width of fixed sashes
C175: =corner_2_sashes_on_one_side!C216 -> Approximate required length of floor profile for fixed sash 1.1 | E175: =N2_WF1.1 -> 485 mm | N175: =corner_1_sash!N212 -> * With exactly vertical walls and horizontal floors.
C176: =corner_2_sashes_on_one_side!C217 -> Approximate required length of floor profile for fixed sash 1.2 | E176: =N2_WF1.2 -> 485 mm
C177: =corner_1_sash!$C$174 -> Approximate required total length of floor profile | E177: =SUM(E175:H176) -> 970 mm
C179: Kaufvarianten
L181: Im Minimum-Fall
C182: Zusammenfassung | I182: Preis Summe | J182: Mögl.? | K182: Minimum und möglich? | L182: Anzahl 1000 mm | M182: Anzahl 1500 mm
C183: =C187 -> Variante 1: Alle einzeln | I183: =IF(J183="Ja",M190,"n.a.") -> 64 | J183: =E198 -> Ja | K183: =IF(AND(I183=MIN($I$183:$I$184),J183="Ja"),"Ja","Nein") -> Nein | L183: =IF(K183="Ja",I188,0) -> 0 | M183: =IF(K183="Ja",I189,0) -> 0
C184: =C200 -> Variante 2: Alle zusammen | I184: =IF(J184="Ja",M203,"n.a.") -> 32 | J184: =E211 -> Ja | K184: =IF(AND(I184=MIN($I$183:$I$184),J184="Ja"),"Ja","Nein") -> Ja | L184: =IF(K184="Ja",I201,0) -> 1 | M184: =IF(K184="Ja",I202,0) -> 0
L185: =SUM(L183:L184) -> 1 | M185: =SUM(M183:M184) -> 0
C187: Variante 1: Alle einzeln | E187: Artikelnummer | I187: Anzahl | J187: Einheit | K187: Verkaufslänge | L187: Brutto-VK-Preis | M187: Summe Brutto-VK-Preis
C188: Anzahl benötigter Bodenprofile in Länge 1000 mm | E188: ="612 XXX."&K188&".111" -> 612 XXX.1000.111 | I188: =COUNTIF(H193:I$195,K188) -> 2 | J188: Stück | K188: 1,000 mm | L188: =F232 -> 32.22 € | M188: =I188*L188 -> 64.44 €
C189: Anzahl benötigter Bodenprofile in Länge 1500 mm | E189: ="612 XXX."&K189&".111" -> 612 XXX.1500.111 | I189: =COUNTIF(H193:I195,K189) -> 0 | J189: Stück | K189: 1,500 mm | L189: =F233 -> 48.33 € | M189: =I189*L189 -> 0
M190: =M188+M189 -> 64.44 €
E192: Länge ben. | I192: Verkaufslänge
C193: =C175 -> Approximate required length of floor profile for fixed sash 1.1 | E193: =E175 -> 485 mm | I193: =IF(E193<=1500,VLOOKUP(E193,$E$229:$I$230,2,TRUE),"nicht vorhanden") -> 1,000 mm
C194: =C176 -> Approximate required length of floor profile for fixed sash 1.2 | E194: =N2_WF1.2 -> 485 mm | I194: =IF(E194<=1500,VLOOKUP(E194,$E$229:$I$230,2,TRUE),"nicht vorhanden") -> 1,000 mm
C196: Summe | E196: =SUM(E193:F195) -> 970 mm
C198: Ist die Variante eine mögliche Lösung? | E198: =IF(OR(I193="nicht vorhanden",I194="nicht vorhanden",I195="nicht vorhanden"),"Nein","Ja") -> Ja
C200: Variante 2: Alle zusammen | E200: Artikelnummer | I200: Anzahl | J200: Einheit | K200: Verkaufslänge | L200: Brutto-VK-Preis | M200: Summe Brutto-VK-Preis
C201: Anzahl benötigter Bodenprofile in Länge 1000 mm | E201: ="612 XXX."&K201&".111" -> 612 XXX.1000.111 | I201: =COUNTIF($H$206:$I$208,K201) -> 1 | J201: Stück | K201: 1,000 mm | L201: =F232 -> 32.22 € | M201: =I201*L201 -> 32.22 €
C202: Anzahl benötigter Bodenprofile in Länge 1500 mm | E202: ="612 XXX."&K202&".111" -> 612 XXX.1500.111 | I202: =COUNTIF($H$206:$I$208,K202) -> 0 | J202: Stück | K202: 1,500 mm | L202: =F233 -> 48.33 € | M202: =I202*L202 -> 0
M203: =M201+M202 -> 32.22 €
E205: Länge ben. | I205: Verkaufslänge
C206: Ungefähr benötigte Länge an Bodenprofil für alle zusammen | E206: =E177 -> 970 mm | I206: =IF(E206<=1500,VLOOKUP(E206,$E$229:$I$230,2,TRUE),"nicht vorhanden") -> 1,000 mm
C209: Summe | E209: =SUM(E206:F208) -> 970 mm
C211: Ist die Variante eine mögliche Lösung? | E211: =IF(OR(I206="nicht vorhanden",I207="nicht vorhanden",I208="nicht vorhanden"),"Nein","Ja") -> Ja
C213: =corner_1_sash!$C$210 -> Finger pull handle (optional, please see above to select or deselect) | N213: =recess_1_sash!N156 -> ** We recommend that you deduct an additional 2 mm so that the profile can be inserted between the walls.
C215: =corner_1_sash!$C$212 -> Description | E215: =corner_1_sash!$E$212 -> Article number | I215: =corner_1_sash!$I$212 -> Quantity | J215: =corner_1_sash!$J$212 -> Unit
C216: =corner_1_sash!$C$213 -> Round finger pull handle, diameter 39 mm (diameter of glass drill hole 10 mm), 1 pair for 1 sash (inside and outside), stainless steel | E216: 612 267.0000.020 | I216: =IF(N2_Wahl_Griff="Yes",2,0) -> 2 | J216: =corner_1_sash!$J$213 -> pair
C219: Tabelle Profillängen
D220: Laufschiene/Blende | E220: 0 | F220: 950 | I220: 950 | K220: mm
E221: 950.01 | F221: 1150 | I221: 1150 | K221: mm
E222: 1150.01 | F222: 1550 | I222: 1550 | K222: mm
E223: 1550.01 | F223: 2050 | I223: 2050 | K223: mm
E224: 2050.01 | F224: 4880 | I224: 4880 | K224: mm
D226: Wandprofil/Dichtleisten | E226: 0 | F226: 2000 | I226: 2000 | K226: mm
E227: 2000.01 | F227: 2490 | I227: 2490 | K227: mm
D229: Bodenprofil | E229: 0 | F229: 1000 | I229: 1000 | K229: mm
E230: 1000.01 | F230: 1500 | I230: 1500 | K230: mm
D232: Brutto-VK-Bodenprofil | E232: 1000 | F232: 32.22
E233: 1500 | F233: 48.33
B236: =Haftungsausschluss -> Willach assumes no liability for damage of any kind that could arise as a result of using this profile and glass dimensions calculator. (11.05.2016 Rev. 3)

Sheet U-shower_1_sash_front
B1: Aquant 40: U-shower with 1 sliding sash, door at the front
B4: =corner_1_sash!B4 -> Drawings
B29: =corner_1_sash!B29 -> User input | H29: =corner_1_sash!H29 -> Legend & Formulas
I30: Legend W1 = System width of side 1 W2 = System width of side 2 H = System height LS1 = Length of track profile/cover profile 1 LS2 = Length of track profile/cover profile 2 LS3 = Length of track profile/cover profile 3 LWt = Clearance with open door WS2 = Glass width of sliding sash 2 with handle WSZ = Additional width of sliding sash for handle HS2 = Glass height of sliding sash 2 WF1 = Glass width of fixed sash 1 WF2 = Glass width of fixed sash 2 WF3 = Glass width of fixed sash 3 WFA = Allowance for fixed sash for wall attachment WFZ2 = Additional width of fixed sash 2 HF1 = Glass height of fixed sash 1 HF2 = Glass height of fixed sash 2 HF3 = Glass height of fixed sash 3 UF = Overlap between sliding sash and fixed sash SMs = Size of gap on the closing side SMo2 = Size of gap on the opening side for sliding sash 2 | M30: Formulas
C31: W1 | D31: =corner_1_sash!D31 -> System width of side 1 (max. 1,500 mm) | E31: 1,200 | F31: (mm) | M31: ="WS2 = (W2 - WFZ2 + WSZ + UF - SMs - "&U1_Glasstärke&") / 2" -> WS2 = (W2 - WFZ2 + WSZ + UF - SMs - 8) / 2
M32: ="WF1 = W1 - WFA - "&I90 -> WF1 = W1 - WFA - 11
C33: W2 | D33: =corner_1_sash!D33 -> System width of side 2 (max. 1,500 mm) | E33: 1,200 | F33: (mm) | M33: WF2 = WS2 - WSZ + WFZ2
M34: WF3 = W1 - WFA
C35: H | D35: =corner_1_sash!D35 -> System height (max. 2,500 mm) | E35: 2,000 | F35: (mm) | M35: ="HS2 = H - "&U1_HSA_System -> HS2 = H - 30
M36: ="HF1 = HF2 = HF3 = H - "&U1_HFA_System -> HF1 = HF2 = HF3 = H - 42
C37: WFZ2 | D37: Additional width of fixed sash 2 | E37: 38 | F37: (mm) | M37: ="SMo2 = WFZ2 - "&U1_Glasstärke -> SMo2 = WFZ2 - 8
M38: ="LS1 = LS3 = W1 - "&U1_Eckstück -> LS1 = LS3 = W1 - 49
C39: Do you wish to attach the fixed sash to the wall via a wall profile or directly via silicon? | E39: Silicon | M39: ="LS 2 = W2 - "&I86 -> LS 2 = W2 - 98
M40: ="LWt = W2 - WF2 - WSZ - "&U1_Glasstärke -> LWt = W2 - WF2 - WSZ - 8
C42: Do you wish to use the Aquant floor profile? | E42: No
C45: Do you wish to use vertical sealing strips between fixed and sliding sash? | E45: No
C48: Do you wish to use an optional threshold profile in the door area (in addition to the obligatory drip rail)?
D51: No
C54: Do you wish to use the Aquant bulb seal? | E54: Yes
C57: Do you wish to use the Aquant finger pull handle? | E57: Yes
B61: =Haftungsausschluss -> Willach assumes no liability for damage of any kind that could arise as a result of using this profile and glass dimensions calculator. (11.05.2016 Rev. 3)
B64: =corner_1_sash!B63 -> System dimensions
C66: =corner_1_sash!C65 -> System dimensions specified/recommended by Willach | H66: =corner_1_sash!H65 -> Deviations from system dimensions
C68: HSA | D68: =corner_1_sash!D67 -> Höhenabzugsmaß für Aufnahme Schiebeflügel | E68: 30 | F68: (mm) | H68: =corner_1_sash!H67 -> Deviation from system dimension? | L68: =IF(OR(U1_HSA_Wunsch="",U1_HSA_Wunsch=U1_HSA_System),"Nein","Ja") -> Nein | M68: =corner_1_sash!M67 -> Desired value | P68: =IF(OR(L68="Nein",O68=""),E68,O68) -> 30 | Q68: (mm)
C70: WSZ | D70: =corner_1_sash!D69 -> Additional width of sliding sash for handle | E70: 69 | F70: (mm) | H70: =corner_1_sash!H69 -> Deviation from system dimension? | L70: =IF(OR(U1_WSZ_Wunsch="",U1_WSZ_Wunsch=U1_WSZ_System),"Nein","Ja") -> Nein | M70: =corner_1_sash!M69 -> Desired value | P70: =IF(OR(L70="Nein",O70=""),E70,O70) -> 69 | Q70: (mm)
C72: WFA | D72: =corner_1_sash!D71 -> Allowance for fixed sash for wall attachment | E72: =IF(E39="Profile",14,3) -> 3 | F72: (mm) | H72: =corner_1_sash!H71 -> Deviation from system dimension? | L72: =IF(OR(U1_WFA_Wunsch="",U1_WFA_Wunsch=U1_WFA_System),"Nein","Ja") -> Nein | M72: =corner_1_sash!M71 -> Desired value | P72: =IF(OR(L72="Nein",O72=""),E72,O72) -> 3 | Q72: (mm)
C74: HFA | D74: =corner_1_sash!D73 -> Höhenabzugsmaß für Aufnahme Festflügel | E74: 42 | F74: (mm) | H74: =corner_1_sash!H73 -> Deviation from system dimension? | L74: =IF(OR(U1_HFA_Wunsch="",U1_HFA_Wunsch=U1_HFA_System),"Nein","Ja") -> Nein | M74: =corner_1_sash!M73 -> Desired value | P74: =IF(OR(L74="Nein",O74=""),E74,O74) -> 42 | Q74: (mm)
C76: UF | D76: =corner_1_sash!D75 -> Overlap between sliding sash and fixed sash | E76: =IF(E45="Yes",5,35) -> 35 | F76: (mm) | H76: =corner_1_sash!H75 -> Deviation from system dimension? | L76: =IF(OR(U1_UF_Wunsch="",U1_UF_Wunsch=U1_UF_System),"Nein","Ja") -> Nein | M76: =corner_1_sash!M75 -> Desired value | P76: =IF(OR(L76="Nein",O76=""),E76,O76) -> 35 | Q76: (mm)
C78: SMs | D78: =corner_1_sash!D77 -> Size of gap on the closing side | E78: 14 | F78: (mm) | H78: =corner_1_sash!H77 -> Deviation from system dimension? | L78: =IF(OR(U1_SMs_Wunsch="",U1_SMs_Wunsch=U1_SMs_System),"Nein","Ja") -> Nein | M78: =corner_1_sash!M77 -> Desired value | P78: =IF(OR(L78="Nein",O78=""),E78,O78) -> 14 | Q78: (mm)
C80: SMo | D80: =corner_1_sash!D79 -> Vorgabe Mindest-Spaltmaß öffnungsseitig | E80: 30 | F80: (mm) | H80: =corner_1_sash!H79 -> Deviation from system dimension? | L80: =IF(OR(U1_SMo_Wunsch="",U1_SMo_Wunsch=U1_SMo_System),"Nein","Ja") -> Nein | M80: =corner_1_sash!M79 -> Desired value | P80: =IF(OR(L80="Nein",O80=""),E80,O80) -> 30 | Q80: (mm)
D82: =corner_1_sash!D81 -> Weight of Aquant handle | E82: 0.2 | F82: (kg) | H82: =corner_1_sash!H81 -> Deviation from system dimension? | L82: =IF(OR(U1_Gewicht_Griff_Wunsch="",U1_Gewicht_Griff_Wunsch=U1_Gewicht_Griff_System),"Nein","Ja") -> Nein | M82: =corner_1_sash!M81 -> Desired value | P82: =IF(OR(L82="Nein",O82=""),E82,O82) -> 0.2 | Q82: (kg)
D84: Glasstärke | E84: 8 | F84: (mm)
D86: Eckenabzug | E86: 49 | F86: (mm) | I86: =2*U1_Eckstück -> 98
D88: Glasscheibenabstand | E88: 15 | F88: (mm)
D90: Silikon zw. zwei Festflügeln | E90: 3 | F90: (mm) | I90: =U1_Glasstärke+E90 -> 11
C92: =IF(OR(L68="Ja",L72="Ja",L74="Ja",L76="Ja",L78="Ja",L80="Ja",L70="Ja",L82="Ja"),"Caution: you are deviating from the suggested system dimension, please check whether the system can be built with the value you have selected!","") -> 
B96: =corner_1_sash!B93 -> Automatic calculation of glass dimensions and profile lengths* | H96: =corner_1_sash!H93 -> Automatic check of door sash width, sash weight, aspect ratio and gap dimension on the opening side
C98: Glass dimensions of sliding sash 2 | I98: =corner_1_sash!I95 -> Check of the door sash width
C100: WS2 | D100: Glass width of sliding sash 2 with handle | E100: =(U1_W2-U1_WFZ2+U1_WSZ_final+U1_UF_final-U1_SMs_final-U1_Glasstärke)/2 -> 622 | F100: (mm) | I100: WS2 | J100: =D100 -> Glass width of sliding sash 2 with handle | L100: =U1_WS2 -> 622 | M100: ≥ | N100: 380 | O100: (mm) | Q100: =IF(L100>=N100,"Yes","No") -> Yes
C102: HS2 | D102: Glass height of sliding sash 2 | E102: =U1_H-U1_HSA_final -> 1,970 | F102: (mm) | I102: =corner_1_sash!I99 -> Check of the sash weight
C104: Please note that drill holes are required, please refer to the relevant drilling drawings! | J104: Weight of sliding sash 2 | L104: =ROUND(U1_WS2/1000*U1_HS/1000*2.5*U1_Glasstärke+U1_Griff_final,0) -> 25 | M104: ≤ | N104: 40 | O104: (kg) | Q104: =IF(L104<=N104,"Yes","No") -> Yes
I106: =corner_1_sash!I103 -> Check of the aspect ratio
C107: Glass dimensions of fixed sash 1
J108: Height-to-width ratio of sliding sash 2 | L108: =ROUND(U1_HS/U1_WS2,2) -> 3.17 | M108: ≤ | N108: 5 | Q108: =IF(L108<=N108,"Yes","No") -> Yes
C109: WF1 | D109: Glass width of fixed sash 1 | E109: =U1_W1-U1_WFA_final-U1_Glasstärke-E90 -> 1,186 | F109: (mm)
C111: HF1 | D111: Glass height of fixed sash 1 | E111: =U1_H-U1_HFA_final -> 1,958 | F111: (mm) | I111: =corner_1_sash!I108 -> Check of the gap dimension on the opening side
C113: Glass dimensions of fixed sash 2 | I113: =C80&2 -> SMo2 | J113: ='corner_2_sashes_corner entry'!J120:K120 -> Gap dimension on the opening side for sliding sash 2 | L113: =U1_WFZ2-U1_Glasstärke -> 30 | M113: ≥ | N113: =P80 -> 30 | O113: (mm) | Q113: =IF(L113>=N113,"Yes","No") -> Yes
I114: =IF(Q113="No","Note: if the gap on the opening side is too small , please increase WFZ2.","") -> 
C115: WF2 | D115: Glass width of fixed sash 2 | E115: =U1_WS2-U1_WSZ_final+U1_WFZ2 -> 591 | F115: (mm)
I116: =IF(OR(Q100="No",Q104="No",Q108="No",Q113="No",),"Caution: the technical restrictions have not been observed; please change your planning!","") -> 
C117: HF2 | D117: Glass height of fixed sash 2 | E117: =U1_HF -> 1,958 | F117: (mm)
C119: Glass dimensions of fixed sash 3
C121: WF3 | D121: Glass width of fixed sash 3 | E121: =U1_W1-U1_WFA_final -> 1,197 | F121: (mm)
C123: HF3 | D123: Glass height of fixed sash 3 | E123: =U1_HF -> 1,958 | F123: (mm)
C125: Length of track profile/cover profile 1
C127: LS1 | D127: Length of track profile/cover profile 1 | E127: =U1_W1-U1_Eckstück -> 1,151 | F127: (mm)
C129: Length of track profile/cover profile 2
C131: LS2 | D131: Length of track profile/cover profile 2 | E131: =U1_W2-(2*U1_Eckstück) -> 1,102 | F131: (mm)
C133: Length of track profile/cover profile 3
C135: LS3 | D135: Length of track profile/cover profile 3 | E135: =U1_LS1 -> 1,151 | F135: (mm)
C137: =corner_1_sash!C124 -> For information: clearance with open door
C139: LWt | D139: =corner_1_sash!D126 -> Clearance with open door | E139: =U1_W2-U1_WF2-U1_WSZ_final-U1_Glasstärke -> 532 | F139: (mm)
B142: =Haftungsausschluss -> Willach assumes no liability for damage of any kind that could arise as a result of using this profile and glass dimensions calculator. (11.05.2016 Rev. 3)
B144: =corner_1_sash!B131 -> Order list
C146: =corner_1_sash!C133 -> Profile sets
C148: =corner_1_sash!C135 -> Description | E148: =corner_1_sash!E135 -> Article number | I148: =corner_1_sash!I135 -> Quantity | J148: =corner_1_sash!J135 -> Unit | K148: =corner_1_sash!K135 -> Sales length | L148: =corner_1_sash!L135 -> Cut length*
C149: =corner_1_sash!C136 -> Profile set for side 1 | E149: =IF(K149<1000,"612 070.0"&K149&".111","612 070."&K149&".111") -> 612 070.1550.111 | I149: 1 | J149: =corner_1_sash!J136 -> piece | K149: =VLOOKUP(L149,$E$274:$I$278,2,TRUE) -> 1,550 mm | L149: =U1_LS1 -> 1,151 mm
C150: =corner_1_sash!C137 -> Profile set for side 2 | E150: =IF(K150<1000,"612 070.0"&K150&".111","612 070."&K150&".111") -> 612 070.1150.111 | I150: 1 | J150: =J149 -> piece | K150: =VLOOKUP(L150,$E$274:$I$278,2,TRUE) -> 1,150 mm | L150: =U1_LS2 -> 1,102 mm
C151: Profile set for side 3 | E151: =IF(K151<1000,"612 070.0"&K151&".111","612 070."&K151&".111") -> 612 070.1550.111 | I151: 1 | J151: =J149 -> piece | K151: =VLOOKUP(L151,$E$274:$I$278,2,TRUE) -> 1,550 mm | L151: =U1_LS3 -> 1,151 mm
C154: =corner_1_sash!C140 -> Accessory kits
C156: =corner_1_sash!C142 -> Description | E156: =corner_1_sash!E142 -> Article number | I156: =corner_1_sash!I142 -> Quantity | J156: =corner_1_sash!J142 -> Unit
C157: =corner_1_sash!C143 -> Accessory kit door sash 20 kg | E157: 612 002.0000.000 | I157: =IF(U1_Flügelgewicht_2<=20,1,0) -> 0 | J157: =corner_1_sash!J143 -> piece
C158: =corner_1_sash!C144 -> Accessory kit door sash 40 kg | E158: 612 004.0000.000 | I158: =IF(U1_Flügelgewicht_2>20,1,0) -> 1 | J158: =corner_1_sash!J144 -> piece
C159: =corner_1_sash!C145 -> Accessory kit installation | E159: 612 010.0000.000 | I159: 1 | J159: =corner_1_sash!J145 -> piece
C160: =corner_1_sash!C146 -> Accessory kit corner bracket | E160: 612 020.0000.000 | I160: 2 | J160: =corner_1_sash!J146 -> piece
C162: =corner_1_sash!C148 -> Sealing strips (optional, please see above to select or deselect)
C164: =corner_1_sash!C150 -> Description | E164: =corner_1_sash!E150 -> Article number | I164: =corner_1_sash!I150 -> Quantity | J164: =corner_1_sash!J150 -> Unit | K164: =corner_1_sash!K150 -> Sales length | L164: =corner_1_sash!L150 -> Cut length*
C165: =corner_1_sash!C151 -> Bulb seal | E165: ="612 410."&K165&".305" -> 612 410.2000.305 | I165: =IF(U1_Wahl_Dichtl_schließseitig="Yes",1,0) -> 1 | J165: =corner_1_sash!J151 -> piece | K165: =VLOOKUP(L165,$E$280:$I$281,2,TRUE) -> 2,000 mm | L165: =U1_HS -> 1,970 mm
C166: =corner_1_sash!C152 -> Vertical sealing strips between fixed and sliding sash | E166: ="612 440."&K166&".305" -> 612 440.2000.305 | I166: =IF(U1_Wahl_Dichtl_F_u_S="Yes",1,0) -> 0 | J166: =corner_1_sash!J152 -> pair | K166: =VLOOKUP(L166,$E$280:$I$281,2,TRUE) -> 2,000 mm | L166: =U1_HF-24 -> 1,934 mm
C168: =corner_1_sash!C154 -> Threshold profile (optional, please see above to select or deselect)
C170: =corner_1_sash!C156 -> Description | E170: =corner_1_sash!E156 -> Article number | I170: =corner_1_sash!I156 -> Quantity | J170: =corner_1_sash!J156 -> Unit | K170: =corner_1_sash!K156 -> Sales length | L170: =corner_1_sash!L156 -> Cut length*
C171: =corner_1_sash!C157 -> Threshold profile, cut straight, gloss-polished aluminium | E171: 612 450.1000.111 | I171: =IF(U1_Wahl_Schwallschutz="Yes, made of gloss-polished aluminium",1,0) -> 0 | J171: =corner_1_sash!J157 -> piece | K171: 1000 mm | L171: =U1_LWt+U1_WSZ_final -> 601 mm
C172: =corner_1_sash!C158 -> Threshold profile, cut straight, transparent plastic | E172: 612 450.1000.305 | I172: =IF(U1_Wahl_Schwallschutz="Yes, made of transparent plastic",1,0) -> 0 | J172: =corner_1_sash!J158 -> piece | K172: 1000 mm | L172: =L171 -> 601 mm
C174: =corner_1_sash!C160 -> Wall profile (optional, please see above to select or deselect)
C176: =corner_1_sash!C162 -> Description | E176: =corner_1_sash!E162 -> Article number | I176: =corner_1_sash!I162 -> Quantity | J176: =corner_1_sash!J162 -> Unit | K176: =corner_1_sash!K162 -> Sales length | L176: =corner_1_sash!L162 -> Cut length*
C177: =corner_1_sash!C163 -> Wall profile incl. plastic insert | E177: ="612 520."&K177&".111" -> 612 520.2000.111 | I177: =IF(U1_Wahl_Wandanschluss="Profile",2,0) -> 0 | J177: =corner_1_sash!J163 -> piece | K177: =VLOOKUP(L177,$E$280:$I$281,2,TRUE) -> 2,000 mm | L177: =U1_H-50 -> 1,950 mm
C179: =corner_1_sash!C165 -> Floor profile (optional, please see above to select or deselect)
C181: =corner_1_sash!C162 -> Description | E181: =corner_1_sash!E167 -> Article number | I181: =corner_1_sash!I167 -> Quantity | J181: =corner_1_sash!J167 -> Unit | K181: =corner_1_sash!K167 -> Sales length
C182: =corner_1_sash!C168 -> Floor profile length 1000 mm | E182: ="612 530."&K182&".111" -> 612 530.1000.111 | I182: =IF(U1_Wahl_Bodenprofil="Yes",VLOOKUP("Ja",$K$195:$M$199,2,0),0) -> 0 | J182: =corner_1_sash!J168 -> piece | K182: 1,000 mm
C183: =corner_1_sash!C169 -> Floor profile length 1500 mm | E183: ="612 530."&K183&".111" -> 612 530.1500.111 | I183: =IF(U1_Wahl_Bodenprofil="Yes",VLOOKUP("Ja",$K$195:$M$199,3,0),0) -> 0 | J183: =corner_1_sash!J169 -> piece | K183: 1,500 mm
C185: =corner_1_sash!C171 -> Description | E185: =corner_1_sash!E171 -> Glass width of fixed sashes
C186: =corner_1_sash!C172 -> Approximate required length of floor profile for fixed sash 1 | E186: =U1_WF1 -> 1,186 mm
C187: =corner_1_sash!C173 -> Approximate required length of floor profile for fixed sash 2 | E187: =U1_WF2 -> 591 mm
C188: Approximate required length of floor profile for fixed sash 3 | E188: =U1_WF3 -> 1,197 mm
C189: =corner_1_sash!C174 -> Approximate required total length of floor profile | E189: =SUM(E186:H188) -> 2,974 mm
C191: Kaufvarianten
L193: Im Minimum-Fall
C194: Zusammenfassung | I194: Preis Summe | J194: Mögl.? | K194: Minimum und möglich? | L194: Anzahl 1000 mm | M194: Anzahl 1500 mm
C195: =C202 -> Variante 1: Alle einzeln | I195: =IF(J195="Ja",M205,"n.a.") -> 129 | J195: =E213 -> Ja | K195: =IF(AND(I195=MIN(I195:I199),J195="Ja"),"Ja","Nein") -> Ja | L195: =IF(K195="Ja",I203,0) -> 1 | M195: =IF(K195="Ja",I204,0) -> 2
C196: =C215 -> Variante 2: Festflügel 1 einzeln, Rest zusammen | I196: =IF(J196="Ja",M218,"n.a.") -> n.a. | J196: =E226 -> Nein | K196: =IF(AND(I196=MIN(I195:I199),J196="Ja"),"Ja","Nein") -> Nein | L196: =IF(K196="Ja",I216,0) -> 0 | M196: =IF(K196="Ja",I217,0) -> 0
C197: =C228 -> Variante 3: Festflügel 2 einzeln, Rest zusammen | I197: =IF(J197="Ja",M231,"n.a.") -> n.a. | J197: =E239 -> Nein | K197: =IF(AND(I197=MIN(I195:I199),J197="Ja"),"Ja","Nein") -> Nein | L197: =IF(K197="Ja",I229,0) -> 0 | M197: =IF(K197="Ja",I230,0) -> 0
C198: =C241 -> Variante 4: Festflügel 3 einzeln, Rest zusammen | I198: =IF(J198="Ja",M244,"n.a.") -> n.a. | J198: =E252 -> Nein | K198: =IF(AND(I198=MIN(I195:I199),J198="Ja"),"Ja","Nein") -> Nein | L198: =IF(K198="Ja",I242,0) -> 0 | M198: =IF(K198="Ja",I243,0) -> 0
C199: =C254 -> Variante 5: Alle zusammen | I199: =IF(J199="Ja",M257,"n.a.") -> n.a. | J199: =E265 -> Nein | K199: =IF(AND(I199=MIN(I195:I199),J199="Ja"),"Ja","Nein") -> Nein | L199: =IF(K199="Ja",I255,0) -> 0 | M199: =IF(K199="Ja",I256,0) -> 0
C202: Variante 1: Alle einzeln | E202: Artikelnummer | I202: Anzahl | J202: Einheit | K202: Verkaufslänge | L202: Brutto-VK-Preis | M202: Summe Brutto-VK-Preis
C203: Anzahl benötigter Bodenprofile in Länge 1000 mm | E203: ="612 XXX."&K203&".111" -> 612 XXX.1000.111 | I203: =COUNTIF(I208:J210,K203) -> 1 | J203: Stück | K203: 1,000 mm | L203: =$F$286 -> 32.22 € | M203: =I203*L203 -> 32.22 €
C204: Anzahl benötigter Bodenprofile in Länge 1500 mm | E204: ="612 XXX."&K204&".111" -> 612 XXX.1500.111 | I204: =COUNTIF(I208:J210,K204) -> 2 | J204: Stück | K204: 1,500 mm | L204: =$F$287 -> 48.33 € | M204: =I204*L204 -> 96.66 €
M205: =M203+M204 -> 128.88 €
E207: Länge ben. | I207: Verkaufslänge
C208: Bodenprofil bei Festflügel 1 | E208: =E186 -> 1,186 mm | I208: =IF(E208<=1500,VLOOKUP(E208,$E$283:$I$284,2,TRUE),"nicht vorhanden") -> 1,500 mm
C209: Bodenprofil bei Festflügel 2 | E209: =E187 -> 591 mm | I209: =IF(E209<=1500,VLOOKUP(E209,$E$283:$I$284,2,TRUE),"nicht vorhanden") -> 1,000 mm
C210: Bodenprofil bei Festflügel 3 | E210: =E188 -> 1,197 mm | I210: =IF(E210<=1500,VLOOKUP(E210,$E$283:$I$284,2,TRUE),"nicht vorhanden") -> 1,500 mm
C211: Summe | E211: =SUM(E208:F210) -> 2,974 mm
C213: Ist die Variante eine mögliche Lösung? | E213: =IF(OR(I208="nicht vorhanden",I209="nicht vorhanden",I210="nicht vorhanden"),"Nein","Ja") -> Ja
C215: Variante 2: Festflügel 1 einzeln, Rest zusammen | E215: Artikelnummer | I215: Anzahl | J215: Einheit | K215: Verkaufslänge | L215: Brutto-VK-Preis | M215: Summe Brutto-VK-Preis
C216: Anzahl benötigter Bodenprofile in Länge 1000 mm | E216: ="612 XXX."&K216&".111" -> 612 XXX.1000.111 | I216: =COUNTIF(H221:I223,K216) -> 0 | J216: Stück | K216: 1,000 mm | L216: =$F$286 -> 32.22 € | M216: =I216*L216 -> 0
C217: Anzahl benötigter Bodenprofile in Länge 1500 mm | E217: ="612 XXX."&K217&".111" -> 612 XXX.1500.111 | I217: =COUNTIF(H221:I223,K217) -> 1 | J217: Stück | K217: 1,500 mm | L217: =$F$287 -> 48.33 € | M217: =I217*L217 -> 48.33 €
M218: =M216+M217 -> 48.33 €
E220: Länge ben. | I220: Verkaufslänge
C221: Ungefähr benötigte Länge an Bodenprofil bei Festflügel 1 | E221: =E186 -> 1,186 mm | I221: =IF(E221<=1500,VLOOKUP(E221,$E$283:$I$284,2,TRUE),"nicht vorhanden") -> 1,500 mm
C222: Ungefähr in Summe benötigte Länge an Bodenprofil für Festflügel 2 und Festflügel 3 in Summe | E222: =E187+E188 -> 1,788 mm | I222: =IF(E222<=1500,VLOOKUP(E222,$E$283:$I$284,2,TRUE),"nicht vorhanden") -> nicht vorhanden
C224: Summe | E224: =SUM(E221:F223) -> 2,974 mm
C226: Ist die Variante eine mögliche Lösung? | E226: =IF(OR(I221="nicht vorhanden",I222="nicht vorhanden",I223="nicht vorhanden"),"Nein","Ja") -> Nein
C228: Variante 3: Festflügel 2 einzeln, Rest zusammen | E228: Artikelnummer | I228: Anzahl | J228: Einheit | K228: Verkaufslänge | L228: Brutto-VK-Preis | M228: Summe Brutto-VK-Preis
C229: Anzahl benötigter Bodenprofile in Länge 1000 mm | E229: ="612 XXX."&K229&".111" -> 612 XXX.1000.111 | I229: =COUNTIF(H234:I236,K229) -> 1 | J229: Stück | K229: 1,000 mm | L229: =$F$286 -> 32.22 € | M229: =I229*L229 -> 32.22 €
C230: Anzahl benötigter Bodenprofile in Länge 1500 mm | E230: ="612 XXX."&K230&".111" -> 612 XXX.1500.111 | I230: =COUNTIF(H234:I236,K230) -> 0 | J230: Stück | K230: 1,500 mm | L230: =$F$287 -> 48.33 € | M230: =I230*L230 -> 0
M231: =M229+M230 -> 32.22 €
E233: Länge ben. | I233: Verkaufslänge
C234: Ungefähr benötigte Länge an Bodenprofil bei Festflügel 2 | E234: =E187 -> 591 mm | I234: =IF(E234<=1500,VLOOKUP(E234,$E$283:$I$284,2,TRUE),"nicht vorhanden") -> 1,000 mm
C235: Ungefähr in Summe benötigte Länge an Bodenprofil für Festflügel 1 und Festflügel 3 in Summe | E235: =E186+E188 -> 2,383 mm | I235: =IF(E235<=1500,VLOOKUP(E235,$E$283:$I$284,2,TRUE),"nicht vorhanden") -> nicht vorhanden
C237: Summe | E237: =SUM(E234:F236) -> 2,974 mm
C239: Ist die Variante eine mögliche Lösung? | E239: =IF(OR(I234="nicht vorhanden",I235="nicht vorhanden",I236="nicht vorhanden"),"Nein","Ja") -> Nein
C241: Variante 4: Festflügel 3 einzeln, Rest zusammen | E241: Artikelnummer | I241: Anzahl | J241: Einheit | K241: Verkaufslänge | L241: Brutto-VK-Preis | M241: Summe Brutto-VK-Preis
C242: Anzahl benötigter Bodenprofile in Länge 1000 mm | E242: ="612 XXX."&K242&".111" -> 612 XXX.1000.111 | I242: =COUNTIF(H247:I249,K242) -> 0 | J242: Stück | K242: 1,000 mm | L242: =$F$286 -> 32.22 € | M242: =I242*L242 -> 0
C243: Anzahl benötigter Bodenprofile in Länge 1500 mm | E243: ="612 XXX."&K243&".111" -> 612 XXX.1500.111 | I243: =COUNTIF(H247:I249,K243) -> 1 | J243: Stück | K243: 1,500 mm | L243: =$F$287 -> 48.33 € | M243: =I243*L243 -> 48.33 €
M244: =M242+M243 -> 48.33 €
E246: Länge ben. | I246: Verkaufslänge
C247: Ungefähr benötigte Länge an Bodenprofil bei Festflügel 3 | E247: =E188 -> 1,197 mm | I247: =IF(E247<=1500,VLOOKUP(E247,$E$283:$I$284,2,TRUE),"nicht vorhanden") -> 1,500 mm
C248: Ungefähr in Summe benötigte Länge an Bodenprofil für Festflügel 1 und Festflügel 2 in Summe | E248: =E186+E187 -> 1,777 mm | I248: =IF(E248<=1500,VLOOKUP(E248,$E$283:$I$284,2,TRUE),"nicht vorhanden") -> nicht vorhanden
C250: Summe | E250: =SUM(E247:F249) -> 2,974 mm
C252: Ist die Variante eine mögliche Lösung? | E252: =IF(OR(I247="nicht vorhanden",I248="nicht vorhanden",I249="nicht vorhanden"),"Nein","Ja") -> Nein
C254: Variante 5: Alle zusammen | E254: Artikelnummer | I254: Anzahl | J254: Einheit | K254: Verkaufslänge | L254: Brutto-VK-Preis | M254: Summe Brutto-VK-Preis
C255: Anzahl benötigter Bodenprofile in Länge 1000 mm | E255: ="612 XXX."&K255&".111" -> 612 XXX.1000.111 | I255: =COUNTIF(H260:I262,K255) -> 0 | J255: Stück | K255: 1,000 mm | L255: =$F$286 -> 32.22 € | M255: =I255*L255 -> 0
C256: Anzahl benötigter Bodenprofile in Länge 1500 mm | E256: ="612 XXX."&K256&".111" -> 612 XXX.1500.111 | I256: =COUNTIF(H260:I262,K256) -> 0 | J256: Stück | K256: 1,500 mm | L256: =$F$287 -> 48.33 € | M256: =I256*L256 -> 0
M257: =M255+M256 -> 0
E259: Länge ben. | I259: Verkaufslänge
C260: Ungefähr benötigte Länge an Bodenprofil für alle zusammen | E260: =E189 -> 2,974 mm | I260: =IF(E260<=1500,VLOOKUP(E260,$E$283:$I$284,2,TRUE),"nicht vorhanden") -> nicht vorhanden
C263: Summe | E263: =SUM(E260:F262) -> 2,974 mm
C265: Ist die Variante eine mögliche Lösung? | E265: =IF(OR(I260="nicht vorhanden",I261="nicht vorhanden",I262="nicht vorhanden"),"Nein","Ja") -> Nein
C267: =corner_1_sash!C210 -> Finger pull handle (optional, please see above to select or deselect)
C269: =corner_1_sash!C212 -> Description | E269: =corner_1_sash!E212 -> Article number | I269: =corner_1_sash!I212 -> Quantity | J269: =corner_1_sash!J212 -> Unit | N269: =recess_2_sashes!N175 -> * With exactly vertical walls and horizontal floors.
C270: =corner_1_sash!C213 -> Round finger pull handle, diameter 39 mm (diameter of glass drill hole 10 mm), 1 pair for 1 sash (inside and outside), stainless steel | E270: 612 267.0000.020 | I270: =IF(U1_Wahl_Griff="Yes",1,0) -> 1 | J270: pair
C273: Tabelle Profillängen
D274: Laufschiene/Blende | E274: 0 | F274: 950 | I274: 950 | K274: mm
E275: 950.01 | F275: 1150 | I275: 1150 | K275: mm
E276: 1150.01 | F276: 1550 | I276: 1550 | K276: mm
E277: 1550.01 | F277: 2050 | I277: 2050 | K277: mm
E278: 2050.01 | F278: 4880 | I278: 4880 | K278: mm
D280: Wandprofil/Dichtleisten | E280: 0 | F280: 2000 | I280: 2000 | K280: mm
E281: 2000.01 | F281: 2490 | I281: 2490 | K281: mm
D283: Bodenprofil | E283: 0 | F283: 1000 | I283: 1000 | K283: mm
E284: 1000.01 | F284: 1500 | I284: 1500 | K284: mm
D286: Brutto-VK-Bodenprofil | E286: 1000 | F286: 32.22
E287: 1500 | F287: 48.33
B289: =Haftungsausschluss -> Willach assumes no liability for damage of any kind that could arise as a result of using this profile and glass dimensions calculator. (11.05.2016 Rev. 3)

Sheet U-shower_1_sash_side
B1: Aquant 40: U-shower with 1 sliding sash, door at the side
B4: =corner_1_sash!B4 -> Drawings
B29: =corner_1_sash!H29 -> Legend & Formulas | H29: =corner_1_sash!H29 -> Legend & Formulas
I30: Legend W1 = System width of side 1 W2 = System width of side 2 H = System height LS1 = Length of track profile/cover profile 1 LS2 = Length of track profile/cover profile 2 LS3 = Length of track profile/cover profile 3 LWt = Clearance with open door WS1 = Glass width of sliding sash 1 with handle WSZ = Additional width of sliding sash for handle HS1 = Glass height of sliding sash 1 WF1 = Glass width of fixed sash 1 WF2 = Glass width of fixed sash 2 WF3 = Glass width of fixed sash 3 WFA = Allowance for fixed sash for wall attachment WFZ1 = Additional width of fixed sash 1 HF1 = Glass height of fixed sash 1 HF2 = Glass height of fixed sash 2 HF3 = Glass height of fixed sash 3 UF = Overlap between sliding sash and fixed sash SMs = Size of gap on the closing side SMo1 = Size of gap on the opening side for sliding sash 1 | M30: Formulas
C31: W1 | D31: =corner_1_sash!D31 -> System width of side 1 (max. 1,500 mm) | E31: 1,200 | F31: (mm) | M31: ="WS1 = (W1 - WFA - WFZ1 + WSZ + UF - SMs - "&U2_Glasstärke&") / 2" -> WS1 = (W1 - WFA - WFZ1 + WSZ + UF - SMs - 8) / 2
M32: WF2 = W2
C33: W2 | D33: =corner_1_sash!D33 -> System width of side 2 (max. 1,500 mm) | E33: 1,200 | F33: (mm) | M33: ="WF3 = W1 - WFA - "&I90 -> WF3 = W1 - WFA - 11
M34: ="HS1 = H - "&U2_HSA_System -> HS1 = H - 30
C35: H | D35: =corner_1_sash!D35 -> System height (max. 2,500 mm) | E35: 2,000 | F35: (mm) | M35: ="HF1 = HF2 = HF3 = H - "&U2_HFA_System -> HF1 = HF2 = HF3 = H - 42
M36: SMo1 = WFZ1 + WFA
C37: WFZ1 | D37: =corner_1_sash!D37 -> Additional width of fixed sash 1 | E37: 17 | F37: (mm) | M37: ="LS1 = LS3 = W1 - "&U2_Eckstück -> LS1 = LS3 = W1 - 49
M38: ="LS 2 = W2 - "&I86 -> LS 2 = W2 - 98
C39: Do you wish to attach the fixed sash to the wall via a wall profile or directly via silicon? | E39: Silicon | M39: ="LWt = W1 - WF1 - WSZ - "&U2_Glasstärke -> LWt = W1 - WF1 - WSZ - 8
C42: Do you wish to use the Aquant floor profile? | E42: No
C45: Do you wish to use vertical sealing strips between fixed and sliding sash? | E45: No
C48: Do you wish to use an optional threshold profile in the door area (in addition to the obligatory drip rail)?
D51: No
C54: Do you wish to use the Aquant bulb seal? | E54: Yes
C57: Do you wish to use the Aquant finger pull handle? | E57: Yes
B62: =Haftungsausschluss -> Willach assumes no liability for damage of any kind that could arise as a result of using this profile and glass dimensions calculator. (11.05.2016 Rev. 3)
B64: =corner_1_sash!B63 -> System dimensions
C66: =corner_1_sash!C65 -> System dimensions specified/recommended by Willach | H66: =corner_1_sash!H65 -> Deviations from system dimensions
C68: HSA | D68: =corner_1_sash!D67 -> Höhenabzugsmaß für Aufnahme Schiebeflügel | E68: 30 | F68: (mm) | H68: =corner_1_sash!H67 -> Deviation from system dimension? | L68: =IF(OR(U2_HSA_Wunsch="",U2_HSA_Wunsch=U2_HSA_System),"Nein","Ja") -> Nein | M68: =corner_1_sash!M67 -> Desired value | P68: =IF(OR(L68="Nein",O68=""),E68,O68) -> 30 | Q68: (mm)
C70: WSZ | D70: =corner_1_sash!D69 -> Additional width of sliding sash for handle | E70: 69 | F70: (mm) | H70: =corner_1_sash!H69 -> Deviation from system dimension? | L70: =IF(OR(U2_WSZ_Wunsch="",U2_WSZ_Wunsch=U2_WSZ_System),"Nein","Ja") -> Nein | M70: =corner_1_sash!M69 -> Desired value | P70: =IF(OR(L70="Nein",O70=""),E70,O70) -> 69 | Q70: (mm)
C72: WFA | D72: =corner_1_sash!D71 -> Allowance for fixed sash for wall attachment | E72: =IF(E39="Profile",14,3) -> 3 | F72: (mm) | H72: =corner_1_sash!H71 -> Deviation from system dimension? | L72: =IF(OR(U2_WFA_Wunsch="",U2_WFA_Wunsch=U2_WFA_System),"Nein","Ja") -> Nein | M72: =corner_1_sash!M71 -> Desired value | P72: =IF(OR(L72="Nein",O72=""),E72,O72) -> 3 | Q72: (mm)
C74: HFA | D74: =corner_1_sash!D73 -> Höhenabzugsmaß für Aufnahme Festflügel | E74: 42 | F74: (mm) | H74: =corner_1_sash!H73 -> Deviation from system dimension? | L74: =IF(OR(U2_HFA_Wunsch="",U2_HFA_Wunsch=U2_HFA_System),"Nein","Ja") -> Nein | M74: =corner_1_sash!M73 -> Desired value | P74: =IF(OR(L74="Nein",O74=""),E74,O74) -> 42 | Q74: (mm)
C76: UF | D76: =corner_1_sash!D75 -> Overlap between sliding sash and fixed sash | E76: =IF(E45="Yes",5,35) -> 35 | F76: (mm) | H76: =corner_1_sash!H75 -> Deviation from system dimension? | L76: =IF(OR(U2_UF_Wunsch="",U2_UF_Wunsch=U2_UF_System),"Nein","Ja") -> Nein | M76: =corner_1_sash!M75 -> Desired value | P76: =IF(OR(L76="Nein",O76=""),E76,O76) -> 35 | Q76: (mm)
C78: SMs | D78: =corner_1_sash!D77 -> Size of gap on the closing side | E78: 14 | F78: (mm) | H78: =corner_1_sash!H77 -> Deviation from system dimension? | L78: =IF(OR(U2_SMs_Wunsch="",U2_SMs_Wunsch=U2_SMs_System),"Nein","Ja") -> Nein | M78: =corner_1_sash!M77 -> Desired value | P78: =IF(OR(L78="Nein",O78=""),E78,O78) -> 14 | Q78: (mm)
C80: SMo | D80: =corner_1_sash!D79 -> Vorgabe Mindest-Spaltmaß öffnungsseitig | E80: =IF($E$39="profile",40,20) -> 20 | F80: (mm) | H80: =corner_1_sash!H79 -> Deviation from system dimension? | L80: =IF(OR(U2_SMo_Wunsch="",U2_SMo_Wunsch=U2_SMo_System),"Nein","Ja") -> Nein | M80: =corner_1_sash!M79 -> Desired value | P80: =IF(OR(L80="Nein",O80=""),E80,O80) -> 20 | Q80: (mm)
D82: =corner_1_sash!D81 -> Weight of Aquant handle | E82: 0.2 | F82: (kg) | H82: =corner_1_sash!H81 -> Deviation from system dimension? | L82: =IF(OR(U2_Gewicht_Griff_Wunsch="",U2_Gewicht_Griff_Wunsch=U2_Gewicht_Griff_System),"Nein","Ja") -> Nein | M82: =corner_1_sash!M81 -> Desired value | P82: =IF(OR(L82="Nein",O82=""),E82,O82) -> 0.2 | Q82: (kg)
D84: Glasstärke | E84: 8 | F84: (mm)
D86: Eckenabzug | E86: 49 | F86: (mm) | I86: =U2_Eckstück*2 -> 98
D88: Glasscheibenabstand | E88: 15 | F88: (mm)
D90: Silikon zw. zwei Festflügeln | E90: 3 | F90: (mm) | I90: =U2_Glasstärke+E90 -> 11
C92: =IF(OR(L68="Ja",L72="Ja",L74="Ja",L76="Ja",L78="Ja",L80="Ja",L70="Ja",L82="Ja"),"Caution: you are deviating from the suggested system dimension, please check whether the system can be built with the value you have selected!","") -> 
B96: =corner_1_sash!B93 -> Automatic calculation of glass dimensions and profile lengths* | H96: =corner_1_sash!H93 -> Automatic check of door sash width, sash weight, aspect ratio and gap dimension on the opening side
C98: Glass dimensions of sliding sash 1 | I98: =corner_1_sash!I95 -> Check of the door sash width
C100: WS1 | D100: Glass width of sliding sash 1 with handle | E100: =(U2_W1-U2_WFA_final-U2_WFZ1+U2_WSZ_final+U2_UF_final-U2_SMs_final-U2_Glasstärke)/2 -> 631 | F100: (mm) | I100: WS1 | J100: =D100 -> Glass width of sliding sash 1 with handle | L100: =U2_WS1 -> 631 | M100: ≥ | N100: 380 | O100: (mm) | Q100: =IF(L100>=N100,"Yes","No") -> Yes
C102: HS1 | D102: Glass height of sliding sash 1 | E102: =U2_H-U2_HSA_final -> 1,970 | F102: (mm) | I102: =corner_1_sash!I99 -> Check of the sash weight
C104: Please note that drill holes are required, please refer to the relevant drilling drawings! | J104: =corner_1_sash!J101 -> Weight of sliding sash 1 | L104: =ROUND(U2_WS1/1000*U2_HS/1000*2.5*U2_Glasstärke+U2_Griff_final,0) -> 25 | M104: ≤ | N104: 40 | O104: (kg) | Q104: =IF(L104<=N104,"Yes","No") -> Yes
I106: =corner_1_sash!I103 -> Check of the aspect ratio
C107: Glass dimensions of fixed sash 1
J108: =corner_1_sash!J105 -> Height-to-width ratio of sliding sash 1 | L108: =ROUND(U2_HS/U2_WS1,2) -> 3.12 | M108: ≤ | N108: 5 | Q108: =IF(L108<=N108,"Yes","No") -> Yes
C109: WF1 | D109: Glass width of fixed sash 1 | E109: =U2_WS1-U2_WSZ_final+U2_WFZ1 -> 579 | F109: (mm)
C111: HF1 | D111: Glass height of fixed sash 1 | E111: =U2_H-U2_HFA_final -> 1,958 | F111: (mm) | I111: =corner_1_sash!I108 -> Check of the gap dimension on the opening side
C113: Glass dimensions of fixed sash 2 | I113: =C80&1 -> SMo1 | J113: =corner_1_sash!J110 -> Gap dimension on the opening side for sliding sash 1 | L113: =U2_WFZ1+U2_WFA_final -> 20 | M113: ≥ | N113: =P80 -> 20 | O113: (mm) | Q113: =IF(L113>=N113,"Yes","No") -> Yes
I114: =IF(Q113="No","Note: if the gap on the opening side is too small , please increase WFZ1.","") -> 
C115: WF2 | D115: Glass width of fixed sash 2 | E115: =U2_W2 -> 1,200 | F115: (mm)
I116: =IF(OR(Q100="No",Q104="No",Q108="No",Q113="No",),"Caution: the technical restrictions have not been observed; please change your planning!","") -> 
C117: HF2 | D117: Glass height of fixed sash 2 | E117: =U2_HF -> 1,958 | F117: (mm)
C119: Glass dimensions of fixed sash 3
C121: WF3 | D121: Glass width of fixed sash 3 | E121: =U2_W1-U2_WFA_final-(U2_Glasstärke+E90) -> 1,186 | F121: (mm)
C123: HF3 | D123: Glass height of fixed sash 3 | E123: =U2_HF -> 1,958 | F123: (mm)
C125: Length of track profile/cover profile 1
C127: LS1 | D127: =corner_1_sash!D118 -> Length of track profile/cover profile 1 | E127: =U2_W1-U2_Eckstück -> 1,151 | F127: (mm)
C129: Length of track profile/cover profile 2
C131: LS2 | D131: =corner_1_sash!D122 -> Length of track profile/cover profile 2 | E131: =U2_W2-(2*U2_Eckstück) -> 1,102 | F131: (mm)
C133: Length of track profile/cover profile 3
C135: LS3 | D135: ='U-shower_1_sash_front'!D135 -> Length of track profile/cover profile 3 | E135: =U2_LS1 -> 1,151 | F135: (mm)
C137: =corner_1_sash!C124 -> For information: clearance with open door
C139: LWt | D139: =corner_1_sash!D126 -> Clearance with open door | E139: =U2_W1-U2_WF1-U2_WSZ_final-U2_Glasstärke -> 544 | F139: (mm)
B142: =Haftungsausschluss -> Willach assumes no liability for damage of any kind that could arise as a result of using this profile and glass dimensions calculator. (11.05.2016 Rev. 3)
B144: =corner_1_sash!B131 -> Order list
C146: =corner_1_sash!C133 -> Profile sets
C148: =corner_1_sash!C135 -> Description | E148: =corner_1_sash!E135 -> Article number | I148: =corner_1_sash!I135 -> Quantity | J148: =corner_1_sash!J135 -> Unit | K148: =corner_1_sash!K135 -> Sales length | L148: =corner_1_sash!L135 -> Cut length*
C149: ='U-shower_1_sash_front'!C149:D149 -> Profile set for side 1 | E149: =IF(K149<1000,"612 070.0"&K149&".111","612 070."&K149&".111") -> 612 070.1550.111 | I149: 1 | J149: =corner_1_sash!J136 -> piece | K149: =VLOOKUP(L149,$E$274:$I$278,2,TRUE) -> 1,550 mm | L149: =U2_LS1 -> 1,151 mm
C150: ='U-shower_1_sash_front'!C150:D150 -> Profile set for side 2 | E150: =IF(K150<1000,"612 070.0"&K150&".111","612 070."&K150&".111") -> 612 070.1150.111 | I150: 1 | J150: =J149 -> piece | K150: =VLOOKUP(L150,$E$274:$I$278,2,TRUE) -> 1,150 mm | L150: =U2_LS2 -> 1,102 mm
C151: ='U-shower_1_sash_front'!C151:D151 -> Profile set for side 3 | E151: =IF(K151<1000,"612 070.0"&K151&".111","612 070."&K151&".111") -> 612 070.1550.111 | I151: 1 | J151: =J149 -> piece | K151: =VLOOKUP(L151,$E$274:$I$278,2,TRUE) -> 1,550 mm | L151: =U2_LS3 -> 1,151 mm
C154: =corner_1_sash!C140 -> Accessory kits
C156: =corner_1_sash!C142 -> Description | E156: =corner_1_sash!E142 -> Article number | I156: =corner_1_sash!I142 -> Quantity | J156: =corner_1_sash!J142 -> Unit
C157: =corner_1_sash!C143 -> Accessory kit door sash 20 kg | E157: 612 002.0000.000 | I157: =IF(U2_Flügelgewicht_1<=20,1,0) -> 0 | J157: =corner_1_sash!J143 -> piece
C158: =corner_1_sash!C144 -> Accessory kit door sash 40 kg | E158: 612 004.0000.000 | I158: =IF(U2_Flügelgewicht_1>20,1,0) -> 1 | J158: =corner_1_sash!J144 -> piece
C159: =corner_1_sash!C145 -> Accessory kit installation | E159: 612 010.0000.000 | I159: 1 | J159: =corner_1_sash!J145 -> piece
C160: =corner_1_sash!C146 -> Accessory kit corner bracket | E160: 612 020.0000.000 | I160: 2 | J160: =corner_1_sash!J146 -> piece
C162: =corner_1_sash!C148 -> Sealing strips (optional, please see above to select or deselect)
C164: =corner_1_sash!C150 -> Description | E164: =corner_1_sash!E150 -> Article number | I164: =corner_1_sash!I150 -> Quantity | J164: =corner_1_sash!J150 -> Unit | K164: =corner_1_sash!K150 -> Sales length | L164: =corner_1_sash!L150 -> Cut length*
C165: =corner_1_sash!C151 -> Bulb seal | E165: ="612 410."&K165&".305" -> 612 410.2000.305 | I165: =IF(U2_Wahl_Dichtl_schließseitig="Yes",1,0) -> 1 | J165: =corner_1_sash!J151 -> piece | K165: =VLOOKUP(L165,$E$280:$I$281,2,TRUE) -> 2,000 mm | L165: =U2_HS -> 1,970 mm
C166: =corner_1_sash!C152 -> Vertical sealing strips between fixed and sliding sash | E166: ="612 440."&K166&".305" -> 612 440.2000.305 | I166: =IF(U2_Wahl_Dichtl_F_u_S="Yes",1,0) -> 0 | J166: =corner_1_sash!J152 -> pair | K166: =VLOOKUP(L166,$E$280:$I$281,2,TRUE) -> 2,000 mm | L166: =U2_HF-24 -> 1,934 mm
C168: =corner_1_sash!C154 -> Threshold profile (optional, please see above to select or deselect)
C170: =corner_1_sash!C156 -> Description | E170: =corner_1_sash!E156 -> Article number | I170: =corner_1_sash!I156 -> Quantity | J170: =corner_1_sash!J156 -> Unit | K170: =corner_1_sash!K156 -> Sales length | L170: =corner_1_sash!L156 -> Cut length*
C171: =corner_1_sash!C157 -> Threshold profile, cut straight, gloss-polished aluminium | E171: 612 450.1000.111 | I171: =IF(U2_Wahl_Schwallschutz="Yes, made of gloss-polished aluminium",1,0) -> 0 | J171: =corner_1_sash!J157 -> piece | K171: 1000 mm | L171: =U2_LWt+U2_WSZ_final -> 613 mm
C172: =corner_1_sash!C158 -> Threshold profile, cut straight, transparent plastic | E172: 612 450.1000.305 | I172: =IF(U2_Wahl_Schwallschutz="Yes, made of transparent plastic",1,0) -> 0 | J172: =corner_1_sash!J158 -> piece | K172: 1000 mm | L172: =L171 -> 613 mm
C174: =corner_1_sash!C160 -> Wall profile (optional, please see above to select or deselect)
C176: =corner_1_sash!C162 -> Description | E176: =corner_1_sash!E162 -> Article number | I176: =corner_1_sash!I162 -> Quantity | J176: =corner_1_sash!J162 -> Unit | K176: =corner_1_sash!K162 -> Sales length | L176: =corner_1_sash!L162 -> Cut length*
C177: =corner_1_sash!C163 -> Wall profile incl. plastic insert | E177: ="612 520."&K177&".111" -> 612 520.2000.111 | I177: =IF(U2_Wahl_Wandanschluss="Profile",2,0) -> 0 | J177: =corner_1_sash!J163 -> piece | K177: =VLOOKUP(L177,$E$280:$I$281,2,TRUE) -> 2,000 mm | L177: =U2_H-50 -> 1,950 mm
C179: =corner_1_sash!C165 -> Floor profile (optional, please see above to select or deselect)
C181: =corner_1_sash!C167 -> Description | E181: =corner_1_sash!E167 -> Article number | I181: =corner_1_sash!I167 -> Quantity | J181: =corner_1_sash!J167 -> Unit | K181: =corner_1_sash!K167 -> Sales length
C182: =corner_1_sash!C168 -> Floor profile length 1000 mm | E182: ="612 530."&K182&".111" -> 612 530.1000.111 | I182: =IF(U2_Wahl_Bodenprofil="Yes",VLOOKUP("Ja",$K$195:$M$199,2,0),0) -> 0 | J182: =corner_1_sash!J168 -> piece | K182: 1,000 mm
C183: =corner_1_sash!C169 -> Floor profile length 1500 mm | E183: ="612 530."&K183&".111" -> 612 530.1500.111 | I183: =IF(U2_Wahl_Bodenprofil="Yes",VLOOKUP("Ja",$K$195:$M$199,3,0),0) -> 0 | J183: =corner_1_sash!J169 -> piece | K183: 1,500 mm
C185: =corner_1_sash!C167 -> Description | E185: =corner_1_sash!E171 -> Glass width of fixed sashes
C186: ='U-shower_1_sash_front'!C186:D186 -> Approximate required length of floor profile for fixed sash 1 | E186: =U2_WF1 -> 579 mm
C187: ='U-shower_1_sash_front'!C187:D187 -> Approximate required length of floor profile for fixed sash 2 | E187: =U2_WF2 -> 1,200 mm
C188: ='U-shower_1_sash_front'!C188:D188 -> Approximate required length of floor profile for fixed sash 3 | E188: =U2_WF3 -> 1,186 mm
C189: ='U-shower_1_sash_front'!C189:D189 -> Approximate required total length of floor profile | E189: =SUM(E186:H188) -> 2,965 mm
C191: Kaufvarianten
L193: Im Minimum-Fall
C194: Zusammenfassung | I194: Preis Summe | J194: Mögl.? | K194: Minimum und möglich? | L194: Anzahl 1000 mm | M194: Anzahl 1500 mm
C195: =C202 -> Variante 1: Alle einzeln | I195: =IF(J195="Ja",M205,"n.a.") -> 129 | J195: =E213 -> Ja | K195: =IF(AND(I195=MIN(I195:I199),J195="Ja"),"Ja","Nein") -> Ja | L195: =IF(K195="Ja",I203,0) -> 1 | M195: =IF(K195="Ja",I204,0) -> 2
C196: =C215 -> Variante 2: Festflügel 1 einzeln, Rest zusammen | I196: =IF(J196="Ja",M218,"n.a.") -> n.a. | J196: =E226 -> Nein | K196: =IF(AND(I196=MIN(I195:I199),J196="Ja"),"Ja","Nein") -> Nein | L196: =IF(K196="Ja",I216,0) -> 0 | M196: =IF(K196="Ja",I217,0) -> 0
C197: =C228 -> Variante 3: Festflügel 2 einzeln, Rest zusammen | I197: =IF(J197="Ja",M231,"n.a.") -> n.a. | J197: =E239 -> Nein | K197: =IF(AND(I197=MIN(I195:I199),J197="Ja"),"Ja","Nein") -> Nein | L197: =IF(K197="Ja",I229,0) -> 0 | M197: =IF(K197="Ja",I230,0) -> 0
C198: =C241 -> Variante 4: Festflügel 3 einzeln, Rest zusammen | I198: =IF(J198="Ja",M244,"n.a.") -> n.a. | J198: =E252 -> Nein | K198: =IF(AND(I198=MIN(I195:I199),J198="Ja"),"Ja","Nein") -> Nein | L198: =IF(K198="Ja",I242,0) -> 0 | M198: =IF(K198="Ja",I243,0) -> 0
C199: =C254 -> Variante 5: Alle zusammen | I199: =IF(J199="Ja",M257,"n.a.") -> n.a. | J199: =E265 -> Nein | K199: =IF(AND(I199=MIN(I195:I199),J199="Ja"),"Ja","Nein") -> Nein | L199: =IF(K199="Ja",I255,0) -> 0 | M199: =IF(K199="Ja",I256,0) -> 0
C202: Variante 1: Alle einzeln | E202: Artikelnummer | I202: Anzahl | J202: Einheit | K202: Verkaufslänge | L202: Brutto-VK-Preis | M202: Summe Brutto-VK-Preis
C203: Anzahl benötigter Bodenprofile in Länge 1000 mm | E203: ="612 XXX."&K203&".111" -> 612 XXX.1000.111 | I203: =COUNTIF(I208:J210,K203) -> 1 | J203: Stück | K203: 1,000 mm | L203: =$F$286 -> 32.22 € | M203: =I203*L203 -> 32.22 €
C204: Anzahl benötigter Bodenprofile in Länge 1500 mm | E204: ="612 XXX."&K204&".111" -> 612 XXX.1500.111 | I204: =COUNTIF(I208:J210,K204) -> 2 | J204: Stück | K204: 1,500 mm | L204: =$F$287 -> 48.33 € | M204: =I204*L204 -> 96.66 €
M205: =M203+M204 -> 128.88 €
E207: Länge ben. | I207: Verkaufslänge
C208: Bodenprofil bei Festflügel 1 | E208: =E186 -> 579 mm | I208: =IF(E208<=1500,VLOOKUP(E208,$E$283:$I$284,2,TRUE),"nicht vorhanden") -> 1,000 mm
C209: Bodenprofil bei Festflügel 2 | E209: =E187 -> 1,200 mm | I209: =IF(E209<=1500,VLOOKUP(E209,$E$283:$I$284,2,TRUE),"nicht vorhanden") -> 1,500 mm
C210: Bodenprofil bei Festflügel 3 | E210: =E188 -> 1,186 mm | I210: 1,500 mm
C211: Summe | E211: =SUM(E208:F210) -> 2,965 mm
C213: Ist die Variante eine mögliche Lösung? | E213: =IF(OR(I208="nicht vorhanden",I209="nicht vorhanden",I210="nicht vorhanden"),"Nein","Ja") -> Ja
C215: Variante 2: Festflügel 1 einzeln, Rest zusammen | E215: Artikelnummer | I215: Anzahl | J215: Einheit | K215: Verkaufslänge | L215: Brutto-VK-Preis | M215: Summe Brutto-VK-Preis
C216: Anzahl benötigter Bodenprofile in Länge 1000 mm | E216: ="612 XXX."&K216&".111" -> 612 XXX.1000.111 | I216: =COUNTIF(H221:I223,K216) -> 1 | J216: Stück | K216: 1,000 mm | L216: =$F$286 -> 32.22 € | M216: =I216*L216 -> 32.22 €
C217: Anzahl benötigter Bodenprofile in Länge 1500 mm | E217: ="612 XXX."&K217&".111" -> 612 XXX.1500.111 | I217: =COUNTIF(H221:I223,K217) -> 0 | J217: Stück | K217: 1,500 mm | L217: =$F$287 -> 48.33 € | M217: =I217*L217 -> 0
M218: =M216+M217 -> 32.22 €
E220: Länge ben. | I220: Verkaufslänge
C221: Ungefähr benötigte Länge an Bodenprofil bei Festflügel 1 | E221: =E186 -> 579 mm | I221: =IF(E221<=1500,VLOOKUP(E221,$E$283:$I$284,2,TRUE),"nicht vorhanden") -> 1,000 mm
C222: Ungefähr in Summe benötigte Länge an Bodenprofil für Festflügel 2 und Festflügel 3 in Summe | E222: =E187+E188 -> 2,386 mm | I222: =IF(E222<=1500,VLOOKUP(E222,$E$283:$I$284,2,TRUE),"nicht vorhanden") -> nicht vorhanden
C224: Summe | E224: =SUM(E221:F223) -> 2,965 mm
C226: Ist die Variante eine mögliche Lösung? | E226: =IF(OR(I221="nicht vorhanden",I222="nicht vorhanden",I223="nicht vorhanden"),"Nein","Ja") -> Nein
C228: Variante 3: Festflügel 2 einzeln, Rest zusammen | E228: Artikelnummer | I228: Anzahl | J228: Einheit | K228: Verkaufslänge | L228: Brutto-VK-Preis | M228: Summe Brutto-VK-Preis
C229: Anzahl benötigter Bodenprofile in Länge 1000 mm | E229: ="612 XXX."&K229&".111" -> 612 XXX.1000.111 | I229: =COUNTIF(H234:I236,K229) -> 0 | J229: Stück | K229: 1,000 mm | L229: =$F$286 -> 32.22 € | M229: =I229*L229 -> 0
C230: Anzahl benötigter Bodenprofile in Länge 1500 mm | E230: ="612 XXX."&K230&".111" -> 612 XXX.1500.111 | I230: =COUNTIF(H234:I236,K230) -> 1 | J230: Stück | K230: 1,500 mm | L230: =$F$287 -> 48.33 € | M230: =I230*L230 -> 48.33 €
M231: =M229+M230 -> 48.33 €
E233: Länge ben. | I233: Verkaufslänge
C234: Ungefähr benötigte Länge an Bodenprofil bei Festflügel 2 | E234: =E187 -> 1,200 mm | I234: =IF(E234<=1500,VLOOKUP(E234,$E$283:$I$284,2,TRUE),"nicht vorhanden") -> 1,500 mm
C235: Ungefähr in Summe benötigte Länge an Bodenprofil für Festflügel 1 und Festflügel 3 in Summe | E235: =E186+E188 -> 1,765 mm | I235: =IF(E235<=1500,VLOOKUP(E235,$E$283:$I$284,2,TRUE),"nicht vorhanden") -> nicht vorhanden
C237: Summe | E237: =SUM(E234:F236) -> 2,965 mm
C239: Ist die Variante eine mögliche Lösung? | E239: =IF(OR(I234="nicht vorhanden",I235="nicht vorhanden",I236="nicht vorhanden"),"Nein","Ja") -> Nein
C241: Variante 4: Festflügel 3 einzeln, Rest zusammen | E241: Artikelnummer | I241: Anzahl | J241: Einheit | K241: Verkaufslänge | L241: Brutto-VK-Preis | M241: Summe Brutto-VK-Preis
C242: Anzahl benötigter Bodenprofile in Länge 1000 mm | E242: ="612 XXX."&K242&".111" -> 612 XXX.1000.111 | I242: =COUNTIF(H247:I249,K242) -> 0 | J242: Stück | K242: 1,000 mm | L242: =$F$286 -> 32.22 € | M242: =I242*L242 -> 0
C243: Anzahl benötigter Bodenprofile in Länge 1500 mm | E243: ="612 XXX."&K243&".111" -> 612 XXX.1500.111 | I243: =COUNTIF(H247:I249,K243) -> 1 | J243: Stück | K243: 1,500 mm | L243: =$F$287 -> 48.33 € | M243: =I243*L243 -> 48.33 €
M244: =M242+M243 -> 48.33 €
E246: Länge ben. | I246: Verkaufslänge
C247: Ungefähr benötigte Länge an Bodenprofil bei Festflügel 3 | E247: =E188 -> 1,186 mm | I247: =IF(E247<=1500,VLOOKUP(E247,$E$283:$I$284,2,TRUE),"nicht vorhanden") -> 1,500 mm
C248: Ungefähr in Summe benötigte Länge an Bodenprofil für Festflügel 1 und Festflügel 2 in Summe | E248: =E186+E187 -> 1,779 mm | I248: =IF(E248<=1500,VLOOKUP(E248,$E$283:$I$284,2,TRUE),"nicht vorhanden") -> nicht vorhanden
C250: Summe | E250: =SUM(E247:F249) -> 2,965 mm
C252: Ist die Variante eine mögliche Lösung? | E252: =IF(OR(I247="nicht vorhanden",I248="nicht vorhanden",I249="nicht vorhanden"),"Nein","Ja") -> Nein
C254: Variante 5: Alle zusammen | E254: Artikelnummer | I254: Anzahl | J254: Einheit | K254: Verkaufslänge | L254: Brutto-VK-Preis | M254: Summe Brutto-VK-Preis
C255: Anzahl benötigter Bodenprofile in Länge 1000 mm | E255: ="612 XXX."&K255&".111" -> 612 XXX.1000.111 | I255: =COUNTIF(H260:I262,K255) -> 0 | J255: Stück | K255: 1,000 mm | L255: =$F$286 -> 32.22 € | M255: =I255*L255 -> 0
C256: Anzahl benötigter Bodenprofile in Länge 1500 mm | E256: ="612 XXX."&K256&".111" -> 612 XXX.1500.111 | I256: =COUNTIF(H260:I262,K256) -> 0 | J256: Stück | K256: 1,500 mm | L256: =$F$287 -> 48.33 € | M256: =I256*L256 -> 0
M257: =M255+M256 -> 0
E259: Länge ben. | I259: Verkaufslänge
C260: Ungefähr benötigte Länge an Bodenprofil für alle zusammen | E260: =E189 -> 2,965 mm | I260: =IF(E260<=1500,VLOOKUP(E260,$E$283:$I$284,2,TRUE),"nicht vorhanden") -> nicht vorhanden
C263: Summe | E263: =SUM(E260:F262) -> 2,965 mm
C265: Ist die Variante eine mögliche Lösung? | E265: =IF(OR(I260="nicht vorhanden",I261="nicht vorhanden",I262="nicht vorhanden"),"Nein","Ja") -> Nein
C267: =corner_1_sash!C210 -> Finger pull handle (optional, please see above to select or deselect)
C269: =corner_1_sash!C212 -> Description | E269: =corner_1_sash!E212 -> Article number | I269: =corner_1_sash!I212 -> Quantity | J269: =corner_1_sash!J212 -> Unit | N269: =corner_1_sash!N212 -> * With exactly vertical walls and horizontal floors.
C270: =corner_1_sash!C213 -> Round finger pull handle, diameter 39 mm (diameter of glass drill hole 10 mm), 1 pair for 1 sash (inside and outside), stainless steel | E270: 612 267.0000.020 | I270: =IF(U2_Wahl_Griff="Yes",1,0) -> 1 | J270: =corner_1_sash!J213 -> pair
C273: Tabelle Profillängen
D274: Laufschiene/Blende | E274: 0 | F274: 950 | I274: 950 | K274: mm
E275: 950.01 | F275: 1150 | I275: 1150 | K275: mm
E276: 1150.01 | F276: 1550 | I276: 1550 | K276: mm
E277: 1550.01 | F277: 2050 | I277: 2050 | K277: mm
E278: 2050.01 | F278: 4880 | I278: 4880 | K278: mm
D280: Wandprofil/Dichtleisten | E280: 0 | F280: 2000 | I280: 2000 | K280: mm
E281: 2000.01 | F281: 2490 | I281: 2490 | K281: mm
D283: Bodenprofil | E283: 0 | F283: 1000 | I283: 1000 | K283: mm
E284: 1000.01 | F284: 1500 | I284: 1500 | K284: mm
D286: Brutto-VK-Bodenprofil | E286: 1000 | F286: 32.22
E287: 1500 | F287: 48.33
B289: =Haftungsausschluss -> Willach assumes no liability for damage of any kind that could arise as a result of using this profile and glass dimensions calculator. (11.05.2016 Rev. 3)

Sheet U-shower_2_sashes_corner entry
B1: Aquant 40: U-shower with 2 sliding sashes and corner entry
B4: =corner_1_sash!B4 -> Drawings
B29: =corner_1_sash!B29 -> User input | H29: =corner_1_sash!H29 -> Legend & Formulas
I30: Legend W1 = System width of side 1 (max. 1500 mm) W2 = System width of side 2 (max. 1500 mm) H = System height (max. 2500 mm) LS1 = Length of track profile/cover profile 1 LS2 = Length of track profile/cover profile 2 LS3 = Length of track profile/cover profile 3 LWt = Clearance with open door WS1 = Glass width of sliding sash 1 with handle WS2 = Glass width of sliding sash 2 with handle WSZ = Additional width of sliding sash for handle HS1 = Glass height of sliding sash 1 HS2 = Glass height of sliding sash 2 WF1 = Glass width of fixed sash 1 WF2 = Glass width of fixed sash 2 WFA = Allowance for fixed sash for wall attachment WFZ1 = Additional width of fixed sash 1 WFZ2 = Additional width of fixed sash 2 HF1 = Glass height of fixed sash 1 HF2 = Glass height of fixed sash 2 HF3 = Glass height of fixed sash 3 UF = Overlap between sliding sash and fixed sash SMs = Size of gap on the closing side SMo1 = Size of gap on the opening side for sliding sash 1 SMo2 = Size of gap on the opening side for sliding sash 2 | M30: Formulas
C31: W1 | D31: ='corner_2_sashes_corner entry'!D31 -> System width of side 1 (max. 1,500 mm) | E31: 1,200 | F31: (mm) | M31: ="WS1 = (W1 - SMs - WFA - WFZ1 + UF + WSZ - "&U3_Glasstärke&") / 2" -> WS1 = (W1 - SMs - WFA - WFZ1 + UF + WSZ - 8) / 2
M32: WF1 = WS1 - WSZ + WFZ1
C33: W2 | D33: =corner_1_sash!D33 -> System width of side 2 (max. 1,500 mm) | E33: 1,200 | F33: (mm) | M33: ="WS2 = (W2 - SMs - WFZ2 + UF + WSZ - "&U3_Glasstärke&") / 2" -> WS2 = (W2 - SMs - WFZ2 + UF + WSZ - 8) / 2
M34: WF2 = WS2 - WSZ + WFZ2
C35: H | D35: =corner_1_sash!D35 -> System height (max. 2,500 mm) | E35: 2,000 | F35: (mm) | M35: ="WF3 = W1 - WFA - "&I93 -> WF3 = W1 - WFA - 11
M36: ="HS1 = HS2 = H - "&U3_HSA_System -> HS1 = HS2 = H - 30
C37: WFZ1 | D37: =corner_1_sash!D37 -> Additional width of fixed sash 1 | E37: 17 | F37: (mm) | M37: ="HF1 = HF2 = HF3 = H- "&U3_HFA_System -> HF1 = HF2 = HF3 = H- 42
M38: SMo1 = WFZ1 + WFA
C39: WFZ2 | D39: ='corner_2_sashes_corner entry'!D39 -> Additional width of fixed sash 2 | E39: 38 | F39: (mm) | M39: ="SMo2 = WFZ2 - "&U3_Glasstärke -> SMo2 = WFZ2 - 8
M40: ="LS1 = LS3 = W1 - "&U3_Eckenabzug -> LS1 = LS3 = W1 - 49
C41: Do you wish to attach the fixed sash to the wall via a wall profile or directly via silicon? | E41: Silicon | M41: ="LS 2 = W2 - "&I89 -> LS 2 = W2 - 98
C44: Do you wish to use the Aquant floor profile? | E44: No
C47: Do you wish to use vertical sealing strips between fixed and sliding sash? | E47: No
C50: Do you wish to use an optional threshold profile in the door area (in addition to the obligatory drip rail)?
D53: No
C56: Do you wish to use the Aquant magnetic seals 90°? | E56: Yes
C59: Do you wish to use the Aquant finger pull handle? | E59: Yes
B63: =Haftungsausschluss -> Willach assumes no liability for damage of any kind that could arise as a result of using this profile and glass dimensions calculator. (11.05.2016 Rev. 3)
B65: =corner_1_sash!B63 -> System dimensions
C67: =corner_1_sash!C65 -> System dimensions specified/recommended by Willach | H67: =corner_1_sash!H65 -> Deviations from system dimensions
C69: HSA | D69: =corner_1_sash!D67 -> Höhenabzugsmaß für Aufnahme Schiebeflügel | E69: 30 | F69: (mm) | H69: =corner_1_sash!H67 -> Deviation from system dimension? | L69: =IF(OR(U3_HSA_Wunsch="",U3_HSA_Wunsch=U3_HSA_System),"Nein","Ja") -> Nein | M69: =corner_1_sash!M67 -> Desired value | P69: =IF(OR(L69="Nein",O69=""),E69,O69) -> 30 | Q69: (mm)
C71: WSZ | D71: =corner_1_sash!D69 -> Additional width of sliding sash for handle | E71: 69 | F71: (mm) | H71: =corner_1_sash!H69 -> Deviation from system dimension? | L71: =IF(OR(U3_WSZ_Wunsch="",U3_WSZ_Wunsch=U3_WSZ_System),"Nein","Ja") -> Nein | M71: =corner_1_sash!M69 -> Desired value | P71: =IF(OR(L71="Nein",O71=""),E71,O71) -> 69 | Q71: (mm)
C73: WFA | D73: =corner_1_sash!D71 -> Allowance for fixed sash for wall attachment | E73: =IF(E41="Profile",14,3) -> 3 | F73: (mm) | H73: =corner_1_sash!H71 -> Deviation from system dimension? | L73: =IF(OR(U3_WFA_Wunsch="",U3_WFA_Wunsch=U3_WFA_System),"Nein","Ja") -> Nein | M73: =corner_1_sash!M71 -> Desired value | P73: =IF(OR(L73="Nein",O73=""),E73,O73) -> 3 | Q73: (mm)
C75: HFA | D75: =corner_1_sash!D73 -> Höhenabzugsmaß für Aufnahme Festflügel | E75: 42 | F75: (mm) | H75: =corner_1_sash!H73 -> Deviation from system dimension? | L75: =IF(OR(U3_HFA_Wunsch="",U3_HFA_Wunsch=U3_HFA_System),"Nein","Ja") -> Nein | M75: =corner_1_sash!M73 -> Desired value | P75: =IF(OR(L75="Nein",O75=""),E75,O75) -> 42 | Q75: (mm)
C77: UF | D77: =corner_1_sash!D75 -> Overlap between sliding sash and fixed sash | E77: =IF(E47="Yes",5,35) -> 35 | F77: (mm) | H77: =corner_1_sash!H75 -> Deviation from system dimension? | L77: =IF(OR(U3_UF_Wunsch="",U3_UF_Wunsch=U3_UF_System),"Nein","Ja") -> Nein | M77: =corner_1_sash!M75 -> Desired value | P77: =IF(OR(L77="Nein",O77=""),E77,O77) -> 35 | Q77: (mm)
C79: SMs | D79: =corner_1_sash!D77 -> Size of gap on the closing side | E79: 31 | F79: (mm) | H79: =corner_1_sash!H77 -> Deviation from system dimension? | L79: =IF(OR(U3_SMs_Wunsch="",U3_SMs_Wunsch=U3_SMs_System),"Nein","Ja") -> Nein | M79: =corner_1_sash!M77 -> Desired value | P79: =IF(OR(L79="Nein",O79=""),E79,O79) -> 31 | Q79: (mm)
D81: =corner_1_sash!D79&" Schiebeflügel 1" -> Vorgabe Mindest-Spaltmaß öffnungsseitig Schiebeflügel 1 | E81: =IF(U3_Wahl_Wandanschluss="Profile",40,20) -> 20 | F81: (mm) | H81: =corner_1_sash!H79 -> Deviation from system dimension? | L81: =IF(OR(U3_SMo1_Wunsch="",U3_SMo1_Wunsch=U3_SMo1_System),"Nein","Ja") -> Nein | M81: =recess_1_sash!M78 -> Desired value | P81: =IF(OR(L81="Nein",O81=""),E81,O81) -> 20 | Q81: (mm)
D83: =corner_1_sash!D79&" Schiebeflügel 2" -> Vorgabe Mindest-Spaltmaß öffnungsseitig Schiebeflügel 2 | E83: 30 | F83: (mm) | H83: =H81 -> Deviation from system dimension? | L83: =IF(OR(U3_SMo2_Wunsch="",U3_SMo2_Wunsch=U3_SMo2_System),"Nein","Ja") -> Nein | M83: =M81 -> Desired value | P83: =IF(OR(L83="Nein",O83=""),E83,O83) -> 30 | Q83: (mm)
D85: =corner_1_sash!D81 -> Weight of Aquant handle | E85: 0.2 | F85: (kg) | H85: =corner_1_sash!H81 -> Deviation from system dimension? | L85: =IF(OR(U3_Gewicht_Griff_Wunsch="",U3_Gewicht_Griff_Wunsch=U3_Gewicht_Griff),"Nein","Ja") -> Nein | M85: =corner_1_sash!M81 -> Desired value | P85: =IF(OR(L85="Nein",O85=""),E85,O85) -> 0.2 | Q85: (kg)
D87: Glasstärke | E87: 8 | F87: (mm)
D89: Eckenabzug | E89: 49 | F89: (mm) | I89: =U3_Eckenabzug*2 -> 98
D91: Glasscheibenabstand | E91: 15 | F91: (mm)
D93: Silikon zw. zwei Festflügeln | E93: 3 | F93: (mm) | I93: =E93+U3_Glasstärke -> 11
C95: =IF(OR(L69="Ja",L73="Ja",L75="Ja",L77="Ja",L79="Ja",L81="Ja", L83="Ja",L71="Ja",L85="Ja"),"Caution: you are deviating from the suggested system dimension, please check whether the system can be built with the value you have selected!","") -> 
B99: =corner_1_sash!B93 -> Automatic calculation of glass dimensions and profile lengths* | H99: =corner_1_sash!H93 -> Automatic check of door sash width, sash weight, aspect ratio and gap dimension on the opening side
C101: ='corner_2_sashes_corner entry'!C97 -> Glass dimensions of sliding sash 1 | I101: ='corner_2_sashes_corner entry'!I97:Q97 -> Check of the door sash width
C103: WS1 | D103: ='corner_2_sashes_corner entry'!D99 -> Glass width of sliding sash 1 with handle | E103: =(U3_W1-U3_SMs_final-U3_WFA_final-U3_WFZ1+U3_UF_final+U3_WSZ_final-U3_Glasstärke)/2 -> 623 | F103: (mm) | I103: WS1 | J103: =D103 -> Glass width of sliding sash 1 with handle | L103: =U3_WS1 -> 623 | M103: ≥ | N103: 380 | O103: (mm) | Q103: =IF(L103>=N103,"Yes","No") -> Yes
C105: HS | D105: =corner_1_sash!D99 -> Glass height of sliding sash 1 | E105: =U3_H-U3_HSA_final -> 1,970 | F105: (mm) | I105: WS2 | J105: =D112 -> Glass width of sliding sash 2 with handle | L105: =U3_WS2 -> 614 | M105: ≥ | N105: 380 | O105: (mm) | Q105: =IF(L105>=N105,"Yes","No") -> Yes
C107: Please note that drill holes are required, please refer to the relevant drilling drawings! | I107: =corner_1_sash!I99 -> Check of the sash weight
J109: ='corner_2_sashes_corner entry'!J105:K105 -> Weight of sliding sash 1 | L109: =ROUND(U3_WS1/1000*U3_HS/1000*2.5*U3_Glasstärke+U3_Gewicht_Griff_final,0) -> 25 | M109: ≤ | N109: 40 | O109: (kg) | Q109: =IF(L109<=N109,"Yes","No") -> Yes
C110: ='corner_2_sashes_corner entry'!C106:E106 -> Glass dimensions of sliding sash 2
J111: ='corner_2_sashes_corner entry'!J107 -> Weight of sliding sash 2 | L111: =ROUND(U3_WS2/1000*U3_HS/1000*2.5*U3_Glasstärke+U3_Gewicht_Griff_final,0) -> 24 | M111: ≤ | N111: 40 | O111: (kg) | Q111: =IF(OR(L111<N111,L111=N111),"Yes","No") -> Yes
C112: WS2 | D112: ='corner_2_sashes_corner entry'!D108 -> Glass width of sliding sash 2 with handle | E112: =(U3_W2-U3_SMs_final-U3_WFZ2+U3_UF_final+U3_WSZ_final-U3_Glasstärke)/2 -> 614 | F112: (mm)
I113: =corner_1_sash!I103 -> Check of the aspect ratio
C114: HS | D114: ='corner_2_sashes_corner entry'!D110 -> Glass height of sliding sash 2 | E114: =U3_HS -> 1,970 | F114: (mm)
J115: =corner_1_sash!J105 -> Height-to-width ratio of sliding sash 1 | L115: =ROUND(U3_HS/U3_WS1,2) -> 3.16 | M115: ≤ | N115: 5 | Q115: =IF(L115<=N115,"Yes","No") -> Yes
C116: Please note that drill holes are required, please refer to the relevant drilling drawings!
J118: ='corner_2_sashes_corner entry'!J114 -> Height-to-width ratio of sliding sash 2 | L118: =ROUND(E114/U3_WS2,2) -> 3.21 | M118: ≤ | N118: 5 | Q118: =IF(L118<=N118,"Yes","No") -> Yes
C119: =corner_1_sash!C104 -> Glass dimensions of fixed sash 1
C121: WF1 | D121: ='corner_2_sashes_corner entry'!D117 -> Glass width of fixed sash 1 | E121: =ROUNDDOWN(U3_WS1-U3_WSZ_final+U3_WFZ1,0) -> 570 | F121: (mm) | I121: =corner_1_sash!I108 -> Check of the gap dimension on the opening side
C123: HF | D123: ='corner_2_sashes_corner entry'!D119 -> Glass height of fixed sash 1 | E123: =U3_H-U3_HFA_final -> 1,958 | F123: (mm) | I123: SMo1 | J123: ='corner_2_sashes_corner entry'!J119:K119 -> Gap dimension on the opening side for sliding sash 1 | L123: =U3_WFZ1+U3_WFA_final -> 20 | M123: ≥ | N123: =P81 -> 20 | O123: (mm) | Q123: =IF(L123>=N123,"Yes","No") -> Yes
I124: SMo2 | J124: ='corner_2_sashes_corner entry'!J120:K120 -> Gap dimension on the opening side for sliding sash 2 | L124: =U3_WFZ2-U3_Glasstärke -> 30 | M124: ≥ | N124: =P83 -> 30 | O124: (mm) | Q124: =IF(L124>=N124,"Yes","No") -> Yes
C125: =corner_1_sash!C110 -> Glass dimensions of fixed sash 2 | I125: =IF(OR(Q123="No",Q124="No"),"Note: if the gap on the opening side is too small , please increase WFZ1 or WFZ2.","") -> 
C127: WF2 | D127: ='corner_2_sashes_corner entry'!D123 -> Glass width of fixed sash 2 | E127: =ROUNDDOWN(U3_WS2+U3_WFZ2-U3_WSZ_final,0) -> 582 | F127: (mm)
I128: =IF(OR(Q103="No",Q105="No",Q109="No",Q111="No",Q115="No",Q118="No",Q123="No",Q124="No"),"Caution: the technical restrictions have not been observed; please change your planning!","") -> 
C129: HF | D129: ='corner_2_sashes_corner entry'!D125 -> Glass height of fixed sash 2 | E129: =U3_HF -> 1,958 | F129: (mm)
C131: ='U-shower_1_sash_side'!C119 -> Glass dimensions of fixed sash 3
C133: WF3 | D133: ='U-shower_1_sash_side'!D121 -> Glass width of fixed sash 3 | E133: =U3_W1-U3_WFA_final-I93 -> 1,186 | F133: (mm)
C135: HF | D135: ='U-shower_1_sash_side'!D123 -> Glass height of fixed sash 3 | E135: =U3_HF -> 1,958 | F135: (mm)
C137: =corner_2_sashes_on_one_side!C161 -> Length of track profile/cover profile 1
C139: LS1 | D139: ='U-shower_1_sash_front'!D127 -> Length of track profile/cover profile 1 | E139: =U3_W1-U3_Eckenabzug -> 1,151 | F139: (mm)
C141: ='corner_2_sashes_corner entry'!C131:E131 -> Length of track profile/cover profile 2
C143: LS2 | D143: ='U-shower_1_sash_front'!D131 -> Length of track profile/cover profile 2 | E143: =U3_W2-(2*U3_Eckenabzug) -> 1,102 | F143: (mm)
C145: ='U-shower_1_sash_side'!C133 -> Length of track profile/cover profile 3
C147: LS3 | D147: ='U-shower_1_sash_side'!D135 -> Length of track profile/cover profile 3 | E147: =U3_LS1 -> 1,151 | F147: (mm)
C149: ='corner_2_sashes_corner entry'!C135:E135 -> For information: clearance with open doors
C151: LWt | D151: ='corner_2_sashes_corner entry'!D137 -> Clearance with open doors | E151: =((U3_W1-U3_WFA_final-U3_WF1-U3_WSZ_final-2*U3_Glasstärke-U3_Glasscheibenabstand)^2+(U3_W2-U3_WF2-U3_WSZ_final-2*U3_Glasstärke-U3_Glasscheibenabstand)^2)^0.5 -> 739 | F151: (mm)
B154: =Haftungsausschluss -> Willach assumes no liability for damage of any kind that could arise as a result of using this profile and glass dimensions calculator. (11.05.2016 Rev. 3)
B156: =corner_1_sash!B131 -> Order list
C158: =corner_1_sash!C133 -> Profile sets
C160: =corner_1_sash!C135 -> Description | E160: =corner_1_sash!E135 -> Article number | I160: =corner_1_sash!I135 -> Quantity | J160: =corner_1_sash!J135 -> Unit | K160: =corner_1_sash!K135 -> Sales length | L160: =corner_1_sash!L135 -> Cut length*
C161: ='U-shower_1_sash_side'!C149:D149 -> Profile set for side 1 | E161: =IF(K161<1000,"612 070.0"&K161&".111","612 070."&K161&".111") -> 612 070.1550.111 | I161: 1 | J161: ='U-shower_1_sash_side'!J149 -> piece | K161: =VLOOKUP(L161,$E$285:$I$289,2,TRUE) -> 1,550 mm | L161: =U3_LS1 -> 1,151 mm
C162: ='U-shower_1_sash_side'!C150:D150 -> Profile set for side 2 | E162: =IF(K162<1000,"612 070.0"&K162&".111","612 070."&K162&".111") -> 612 070.1150.111 | I162: 1 | J162: =J161 -> piece | K162: =VLOOKUP(L162,$E$285:$I$289,2,TRUE) -> 1,150 mm | L162: =U3_LS2 -> 1,102 mm
C163: ='U-shower_1_sash_side'!C151:D151 -> Profile set for side 3 | E163: =IF(K163<1000,"612 070.0"&K163&".111","612 070."&K163&".111") -> 612 070.1550.111 | I163: 1 | J163: =J162 -> piece | K163: =VLOOKUP(L163,$E$285:$I$289,2,TRUE) -> 1,550 mm | L163: =U3_LS3 -> 1,151 mm
C165: =corner_1_sash!C140 -> Accessory kits
C167: =corner_1_sash!C142 -> Description | E167: =corner_1_sash!E142 -> Article number | I167: =corner_1_sash!I142 -> Quantity | J167: =corner_1_sash!J142 -> Unit
C168: ='U-shower_1_sash_side'!C157:D157 -> Accessory kit door sash 20 kg | E168: 612 002.0000.000 | I168: =IF(AND(U3_Flügelgewicht_1<=20,U3_Flügelgewicht_2<=20),2,IF(OR(U3_Flügelgewicht_1<=20,U3_Flügelgewicht_2<=20),1,0)) -> 0 | J168: =corner_1_sash!J143 -> piece
C169: ='U-shower_1_sash_side'!C158:D158 -> Accessory kit door sash 40 kg | E169: 612 004.0000.000 | I169: =IF(AND(U3_Flügelgewicht_1>20,U3_Flügelgewicht_2>20),2,IF(OR(U3_Flügelgewicht_1>20,U3_Flügelgewicht_2>20),1,0)) -> 2 | J169: =corner_1_sash!J144 -> piece
C170: =corner_1_sash!C145 -> Accessory kit installation | E170: 612 010.0000.000 | I170: 1 | J170: =corner_1_sash!J145 -> piece
C171: =corner_1_sash!C146 -> Accessory kit corner bracket | E171: 612 020.0000.000 | I171: 2 | J171: =corner_1_sash!J146 -> piece
C173: =corner_1_sash!C148 -> Sealing strips (optional, please see above to select or deselect)
C175: =corner_1_sash!C150 -> Description | E175: =corner_1_sash!E150 -> Article number | I175: =corner_1_sash!I150 -> Quantity | J175: =corner_1_sash!J150 -> Unit | K175: =corner_1_sash!K150 -> Sales length | L175: =corner_1_sash!L150 -> Cut length*
C176: ='corner_2_sashes_corner entry'!C161:D161 -> Magnetic seals 90° | E176: ="612 420."&K176&".305" -> 612 420.2000.305 | I176: =IF(U3_Wahll_Dichtl_schließseitig="Yes",1,0) -> 1 | J176: ='corner_2_sashes_corner entry'!J161 -> pair | K176: =VLOOKUP(L176,$E$291:$I$292,2,TRUE) -> 2,000 mm | L176: =U3_HS -> 1,970 mm
C177: =corner_1_sash!C152 -> Vertical sealing strips between fixed and sliding sash | E177: ="612 440."&K177&".305" -> 612 440.2000.305 | I177: =IF(U3_Wahl_Dichtl_F_u_S="Yes",2,0) -> 0 | J177: =corner_1_sash!J152 -> pair | K177: =VLOOKUP(L177,$E$291:$I$292,2,TRUE) -> 2,000 mm | L177: =U3_HF-24 -> 1,934 mm
C179: =corner_1_sash!C154 -> Threshold profile (optional, please see above to select or deselect)
C181: =corner_1_sash!C156 -> Description | E181: =corner_1_sash!E156 -> Article number | I181: =corner_1_sash!I156 -> Quantity | J181: =corner_1_sash!J156 -> Unit | K181: =corner_1_sash!K156 -> Sales length | L181: =corner_1_sash!L156 -> Cut length*
C182: ='corner_2_sashes_corner entry'!C167:D167 -> Threshold profile, bevelled on one side, gloss-polished aluminium | E182: 612 454.1000.111 | I182: =IF(U3_Wahl_Schwallschutz="Yes, made of gloss-polished aluminium",1,0) -> 0 | J182: =corner_1_sash!J157 -> piece | K182: 1000 mm | L182: =U3_W1-U3_WF1-U3_WFA_final -> 627 mm | M182: =U3_W2-U3_WF2-U3 -> 618 mm
C183: ='corner_2_sashes_corner entry'!C168:D168 -> Threshold profile, bevelled on one side, transparent plastic | E183: 612 454.1000.305 | I183: =IF(U3_Wahl_Schwallschutz="Yes, made of transparent plastic",1,0) -> 0 | J183: =corner_1_sash!J158 -> piece | K183: 1000 mm | L183: =U3_W1-U3_WF1-U3_WFA_final -> 627 mm | M183: =U3_W2-U3_WF2 -> 618 mm
C185: =corner_1_sash!C160 -> Wall profile (optional, please see above to select or deselect)
C187: =corner_1_sash!C162 -> Description | E187: =corner_1_sash!E162 -> Article number | I187: =corner_1_sash!I162 -> Quantity | J187: =corner_1_sash!J162 -> Unit | K187: =corner_1_sash!K162 -> Sales length | L187: =corner_1_sash!L162 -> Cut length*
C188: =corner_1_sash!C163 -> Wall profile incl. plastic insert | E188: ="612 520."&K188&".111" -> 612 520.2000.111 | I188: =IF(U3_Wahl_Wandanschluss="Profile",2,0) -> 0 | J188: =corner_1_sash!J163 -> piece | K188: =VLOOKUP(L188,$E$291:$I$292,2,TRUE) -> 2,000 mm | L188: =U3_H-50 -> 1,950 mm
C190: =corner_1_sash!C165 -> Floor profile (optional, please see above to select or deselect)
C192: =corner_1_sash!C162 -> Description | E192: =corner_1_sash!E162 -> Article number | I192: =corner_1_sash!I162 -> Quantity | J192: =corner_1_sash!J167 -> Unit | K192: =corner_1_sash!K167 -> Sales length
C193: =corner_1_sash!C168 -> Floor profile length 1000 mm | E193: ="612 530."&K193&".111" -> 612 530.1000.111 | I193: =IF(U3_Wahl_Bodenprofil="Yes",VLOOKUP("Ja",$K$206:$M$210,2,0),0) -> 0 | J193: =corner_1_sash!J168 -> piece | K193: 1,000 mm
C194: =corner_1_sash!C169 -> Floor profile length 1500 mm | E194: ="612 530."&K194&".111" -> 612 530.1500.111 | I194: =IF(U3_Wahl_Bodenprofil="Yes",VLOOKUP("Ja",$K$206:$M$210,3,0),0) -> 0 | J194: =corner_1_sash!J169 -> piece | K194: 1,500 mm
C196: =corner_1_sash!C171 -> Description | E196: =corner_1_sash!E171 -> Glass width of fixed sashes
C197: ='U-shower_1_sash_side'!C186:D186 -> Approximate required length of floor profile for fixed sash 1 | E197: =U3_WF1 -> 570 mm
C198: ='U-shower_1_sash_side'!C187:D187 -> Approximate required length of floor profile for fixed sash 2 | E198: =U3_WF2 -> 582 mm
C199: ='U-shower_1_sash_side'!C188:D188 -> Approximate required length of floor profile for fixed sash 3 | E199: =U3_WF3 -> 1,186 mm
C200: ='U-shower_1_sash_side'!C189:D189 -> Approximate required total length of floor profile | E200: =SUM(E197:H199) -> 2,338 mm
C202: Kaufvarianten
L204: Im Minimum-Fall
C205: Zusammenfassung | I205: Preis Summe | J205: Mögl.? | K205: Minimum und möglich? | L205: Anzahl 1000 mm | M205: Anzahl 1500 mm
C206: =C213 -> Variante 1: Alle einzeln | I206: =IF(J206="Ja",M216,"n.a.") -> 113 | J206: =E224 -> Ja | K206: =IF(AND(I206=MIN(I206:I210),J206="Ja"),"Ja","Nein") -> Nein | L206: =IF(K206="Ja",I214,0) -> 0 | M206: =IF(K206="Ja",I215,0) -> 0
C207: =C226 -> Variante 2: Festflügel 1 einzeln, Rest zusammen | I207: =IF(J207="Ja",M229,"n.a.") -> n.a. | J207: =E237 -> Nein | K207: =IF(AND(I207=MIN(I206:I210),J207="Ja"),"Ja","Nein") -> Nein | L207: =IF(K207="Ja",I227,0) -> 0 | M207: =IF(K207="Ja",I228,0) -> 0
C208: =C239 -> Variante 3: Festflügel 2 einzeln, Rest zusammen | I208: =IF(J208="Ja",M242,"n.a.") -> n.a. | J208: =E250 -> Nein | K208: =IF(AND(I208=MIN(I206:I210),J208="Ja"),"Ja","Nein") -> Nein | L208: =IF(K208="Ja",I240,0) -> 0 | M208: =IF(K208="Ja",I241,0) -> 0
C209: =C252 -> Variante 4: Festflügel 3 einzeln, Rest zusammen | I209: =IF(J209="Ja",M255,"n.a.") -> 97 | J209: =E263 -> Ja | K209: =IF(AND(I209=MIN(I206:I210),J209="Ja"),"Ja","Nein") -> Ja | L209: =IF(K209="Ja",I253,0) -> 0 | M209: =IF(K209="Ja",I254,0) -> 2
C210: =C265 -> Variante 5: Alle zusammen | I210: =IF(J210="Ja",M268,"n.a.") -> n.a. | J210: =E276 -> Nein | K210: =IF(AND(I210=MIN(I206:I210),J210="Ja"),"Ja","Nein") -> Nein | L210: =IF(K210="Ja",I266,0) -> 0 | M210: =IF(K210="Ja",I267,0) -> 0
C213: Variante 1: Alle einzeln | E213: Artikelnummer | I213: Anzahl | J213: Einheit | K213: Verkaufslänge | L213: Brutto-VK-Preis | M213: Summe Brutto-VK-Preis
C214: Anzahl benötigter Bodenprofile in Länge 1000 mm | E214: ="612 XXX."&K214&".111" -> 612 XXX.1000.111 | I214: =COUNTIF(I219:J221,K214) -> 2 | J214: Stück | K214: 1,000 mm | L214: =$F$297 -> 32.22 € | M214: =I214*L214 -> 64.44 €
C215: Anzahl benötigter Bodenprofile in Länge 1500 mm | E215: ="612 XXX."&K215&".111" -> 612 XXX.1500.111 | I215: =COUNTIF(I219:J221,K215) -> 1 | J215: Stück | K215: 1,500 mm | L215: =$F$298 -> 48.33 € | M215: =I215*L215 -> 48.33 €
M216: =M214+M215 -> 112.77 €
E218: Länge ben. | I218: Verkaufslänge
C219: Bodenprofil bei Festflügel 1 | E219: =E197 -> 570 mm | I219: =IF(E219<=1500,VLOOKUP(E219,$E$294:$I$295,2,TRUE),"nicht vorhanden") -> 1,000 mm
C220: Bodenprofil bei Festflügel 2 | E220: =E198 -> 582 mm | I220: =IF(E220<=1500,VLOOKUP(E220,$E$294:$I$295,2,TRUE),"nicht vorhanden") -> 1,000 mm
C221: Bodenprofil bei Festflügel 3 | E221: =E199 -> 1,186 mm | I221: 1,500 mm
C222: Summe | E222: =SUM(E219:F221) -> 2,338 mm
C224: Ist die Variante eine mögliche Lösung? | E224: =IF(OR(I219="nicht vorhanden",I220="nicht vorhanden",I221="nicht vorhanden"),"Nein","Ja") -> Ja
C226: Variante 2: Festflügel 1 einzeln, Rest zusammen | E226: Artikelnummer | I226: Anzahl | J226: Einheit | K226: Verkaufslänge | L226: Brutto-VK-Preis | M226: Summe Brutto-VK-Preis
C227: Anzahl benötigter Bodenprofile in Länge 1000 mm | E227: ="612 XXX."&K227&".111" -> 612 XXX.1000.111 | I227: =COUNTIF(H232:I234,K227) -> 1 | J227: Stück | K227: 1,000 mm | L227: =$F$297 -> 32.22 € | M227: =I227*L227 -> 32.22 €
C228: Anzahl benötigter Bodenprofile in Länge 1500 mm | E228: ="612 XXX."&K228&".111" -> 612 XXX.1500.111 | I228: =COUNTIF(H232:I234,K228) -> 0 | J228: Stück | K228: 1,500 mm | L228: =$F$298 -> 48.33 € | M228: =I228*L228 -> 0
M229: =M227+M228 -> 32.22 €
E231: Länge ben. | I231: Verkaufslänge
C232: Ungefähr benötigte Länge an Bodenprofil bei Festflügel 1 | E232: =E197 -> 570 mm | I232: =IF(E232<=1500,VLOOKUP(E232,$E$294:$I$295,2,TRUE),"nicht vorhanden") -> 1,000 mm
C233: Ungefähr in Summe benötigte Länge an Bodenprofil für Festflügel 2 und Festflügel 3 in Summe | E233: =E198+E199 -> 1,768 mm | I233: =IF(E233<=1500,VLOOKUP(E233,$E$294:$I$295,2,TRUE),"nicht vorhanden") -> nicht vorhanden
C235: Summe | E235: =SUM(E232:F234) -> 2,338 mm
C237: Ist die Variante eine mögliche Lösung? | E237: =IF(OR(I232="nicht vorhanden",I233="nicht vorhanden",I234="nicht vorhanden"),"Nein","Ja") -> Nein
C239: Variante 3: Festflügel 2 einzeln, Rest zusammen | E239: Artikelnummer | I239: Anzahl | J239: Einheit | K239: Verkaufslänge | L239: Brutto-VK-Preis | M239: Summe Brutto-VK-Preis
C240: Anzahl benötigter Bodenprofile in Länge 1000 mm | E240: ="612 XXX."&K240&".111" -> 612 XXX.1000.111 | I240: =COUNTIF(H245:I247,K240) -> 1 | J240: Stück | K240: 1,000 mm | L240: =$F$297 -> 32.22 € | M240: =I240*L240 -> 32.22 €
C241: Anzahl benötigter Bodenprofile in Länge 1500 mm | E241: ="612 XXX."&K241&".111" -> 612 XXX.1500.111 | I241: =COUNTIF(H245:I247,K241) -> 0 | J241: Stück | K241: 1,500 mm | L241: =$F$298 -> 48.33 € | M241: =I241*L241 -> 0
M242: =M240+M241 -> 32.22 €
E244: Länge ben. | I244: Verkaufslänge
C245: Ungefähr benötigte Länge an Bodenprofil bei Festflügel 2 | E245: =E198 -> 582 mm | I245: =IF(E245<=1500,VLOOKUP(E245,$E$294:$I$295,2,TRUE),"nicht vorhanden") -> 1,000 mm
C246: Ungefähr in Summe benötigte Länge an Bodenprofil für Festflügel 1 und Festflügel 3 in Summe | E246: =E197+E199 -> 1,756 mm | I246: =IF(E246<=1500,VLOOKUP(E246,$E$294:$I$295,2,TRUE),"nicht vorhanden") -> nicht vorhanden
C248: Summe | E248: =SUM(E245:F247) -> 2,338 mm
C250: Ist die Variante eine mögliche Lösung? | E250: =IF(OR(I245="nicht vorhanden",I246="nicht vorhanden",I247="nicht vorhanden"),"Nein","Ja") -> Nein
C252: Variante 4: Festflügel 3 einzeln, Rest zusammen | E252: Artikelnummer | I252: Anzahl | J252: Einheit | K252: Verkaufslänge | L252: Brutto-VK-Preis | M252: Summe Brutto-VK-Preis
C253: Anzahl benötigter Bodenprofile in Länge 1000 mm | E253: ="612 XXX."&K253&".111" -> 612 XXX.1000.111 | I253: =COUNTIF(H258:I260,K253) -> 0 | J253: Stück | K253: 1,000 mm | L253: =$F$297 -> 32.22 € | M253: =I253*L253 -> 0
C254: Anzahl benötigter Bodenprofile in Länge 1500 mm | E254: ="612 XXX."&K254&".111" -> 612 XXX.1500.111 | I254: =COUNTIF(H258:I260,K254) -> 2 | J254: Stück | K254: 1,500 mm | L254: =$F$298 -> 48.33 € | M254: =I254*L254 -> 96.66 €
M255: =M253+M254 -> 96.66 €
E257: Länge ben. | I257: Verkaufslänge
C258: Ungefähr benötigte Länge an Bodenprofil bei Festflügel 3 | E258: =E199 -> 1,186 mm | I258: =IF(E258<=1500,VLOOKUP(E258,$E$294:$I$295,2,TRUE),"nicht vorhanden") -> 1,500 mm
C259: Ungefähr in Summe benötigte Länge an Bodenprofil für Festflügel 1 und Festflügel 2 in Summe | E259: =E197+E198 -> 1,152 mm | I259: =IF(E259<=1500,VLOOKUP(E259,$E$294:$I$295,2,TRUE),"nicht vorhanden") -> 1,500 mm
C261: Summe | E261: =SUM(E258:F260) -> 2,338 mm
C263: Ist die Variante eine mögliche Lösung? | E263: =IF(OR(I258="nicht vorhanden",I259="nicht vorhanden",I260="nicht vorhanden"),"Nein","Ja") -> Ja
C265: Variante 5: Alle zusammen | E265: Artikelnummer | I265: Anzahl | J265: Einheit | K265: Verkaufslänge | L265: Brutto-VK-Preis | M265: Summe Brutto-VK-Preis
C266: Anzahl benötigter Bodenprofile in Länge 1000 mm | E266: ="612 XXX."&K266&".111" -> 612 XXX.1000.111 | I266: =COUNTIF(H271:I273,K266) -> 0 | J266: Stück | K266: 1,000 mm | L266: =$F$297 -> 32.22 € | M266: =I266*L266 -> 0
C267: Anzahl benötigter Bodenprofile in Länge 1500 mm | E267: ="612 XXX."&K267&".111" -> 612 XXX.1500.111 | I267: =COUNTIF(H271:I273,K267) -> 0 | J267: Stück | K267: 1,500 mm | L267: =$F$298 -> 48.33 € | M267: =I267*L267 -> 0
M268: =M266+M267 -> 0
E270: Länge ben. | I270: Verkaufslänge
C271: Ungefähr benötigte Länge an Bodenprofil für alle zusammen | E271: =E200 -> 2,338 mm | I271: =IF(E271<=1500,VLOOKUP(E271,$E$294:$I$295,2,TRUE),"nicht vorhanden") -> nicht vorhanden
C274: Summe | E274: =SUM(E271:F273) -> 2,338 mm
C276: Ist die Variante eine mögliche Lösung? | E276: =IF(OR(I271="nicht vorhanden",I272="nicht vorhanden",I273="nicht vorhanden"),"Nein","Ja") -> Nein
C278: Griff (optional, Aus- oder Abwahl siehe oben)
C280: =C192 -> Description | E280: =E192 -> Article number | I280: =I192 -> Quantity | J280: =J192 -> Unit | N280: =corner_1_sash!N212 -> * With exactly vertical walls and horizontal floors.
C281: =corner_1_sash!C213 -> Round finger pull handle, diameter 39 mm (diameter of glass drill hole 10 mm), 1 pair for 1 sash (inside and outside), stainless steel | E281: 612 267.0000.020 | I281: =IF(U3_Wahl_Griff="Yes",2,0) -> 2 | J281: =corner_1_sash!J213 -> pair
C284: Tabelle Profillängen
D285: Laufschiene/Blende | E285: 0 | F285: 950 | I285: 950 | K285: mm
E286: 950.01 | F286: 1150 | I286: 1150 | K286: mm
E287: 1150.01 | F287: 1550 | I287: 1550 | K287: mm
E288: 1550.01 | F288: 2050 | I288: 2050 | K288: mm
E289: 2050.01 | F289: 4880 | I289: 4880 | K289: mm
D291: Wandprofil/Dichtleisten | E291: 0 | F291: 2000 | I291: 2000 | K291: mm
E292: 2000.01 | F292: 2490 | I292: 2490 | K292: mm
D294: Bodenprofil | E294: 0 | F294: 1000 | I294: 1000 | K294: mm
E295: 1000.01 | F295: 1500 | I295: 1500 | K295: mm
D297: Brutto-VK-Bodenprofil | E297: 1000 | F297: 32.22
E298: 1500 | F298: 48.33
B301: =Haftungsausschluss -> Willach assumes no liability for damage of any kind that could arise as a result of using this profile and glass dimensions calculator. (11.05.2016 Rev. 3)

Sheet Glass_drill_holes
B1: Aquant 40: Glass drill holes
B4: Installation situation | N4: Installation situation
B26: Drill holes | N26: Drill holes
C66: Only make the 10 mm glass drill hole if using the Aquant handle. | O66: Only make the 10 mm glass drill hole if using the Aquant handle.
